Workbook

Sheet Accueil (hidden)
A1: £
C5: Outil de calcul des consommations en méthode mensuelle
G8: Saisie simple, en 10 questions, pour estimer le niveau de consomations d'un bâtiment
G13: Saisie plus fine, intègrant un metré précis des parois
K33: V 4.7

Sheet Charts (hidden)
A1: Ubat projet | B1: =Ubat!B39 -> 0 | Y1: =Chauffage!A5 -> Mois | Z1: Apports solaires (verticaux) | AA1: =Chauffage!C5 -> apports eclairage + hommes | AB1: =Chauffage!D5 -> q | AC1: Temp ext moyenne | AD1: =Chauffage!F5 -> dt | AE1: =Chauffage!G5 -> apports pertes | AF1: =Chauffage!H5 -> apports tot | AG1: =Chauffage!I5 -> n | AH1: =Chauffage!J5 -> dju | AI1: Bilan besoins-apports | AJ1: Besoin de chauffage
A2: =Ubat!A43 -> Ubât base | B2: =Ubat!B43 ->  | Y2: =Chauffage!A6 -> Janvier | Z2: =Chauffage!B6 ->  | AA2: =Chauffage!C6 -> 0 | AB2: =Chauffage!D6 ->  | AC2: =Chauffage!E6 ->  | AD2: =Chauffage!F6 ->  | AE2: =Chauffage!G6 ->  | AF2: =Chauffage!H6 ->  | AG2: =Chauffage!I6 ->  | AH2: =Chauffage!J6 ->  | AI2: =Chauffage!K6 ->  | AJ2: =Chauffage!L6 -> 
A3: Ubat ref rt2005 | B3: =Ubat!B41 ->  | Y3: =Chauffage!A7 -> Février | Z3: =Chauffage!B7 ->  | AA3: =Chauffage!C7 -> 0 | AB3: =Chauffage!D7 ->  | AC3: =Chauffage!E7 ->  | AD3: =Chauffage!F7 ->  | AE3: =Chauffage!G7 ->  | AF3: =Chauffage!H7 ->  | AG3: =Chauffage!I7 ->  | AH3: =Chauffage!J7 ->  | AI3: =Chauffage!K7 ->  | AJ3: =Chauffage!L7 -> 
A4: Ubat max RT 2005 | B4: =Ubat!B45 ->  | Y4: =Chauffage!A8 -> Mars | Z4: =Chauffage!B8 ->  | AA4: =Chauffage!C8 -> 0 | AB4: =Chauffage!D8 ->  | AC4: =Chauffage!E8 ->  | AD4: =Chauffage!F8 ->  | AE4: =Chauffage!G8 ->  | AF4: =Chauffage!H8 ->  | AG4: =Chauffage!I8 ->  | AH4: =Chauffage!J8 ->  | AI4: =Chauffage!K8 ->  | AJ4: =Chauffage!L8 -> 
A5: Ubat max BBC | B5: =B4-(B4*0.3) ->  | Y5: =Chauffage!A9 -> Avril | Z5: =Chauffage!B9 ->  | AA5: =Chauffage!C9 -> 0 | AB5: =Chauffage!D9 ->  | AC5: =Chauffage!E9 ->  | AD5: =Chauffage!F9 ->  | AE5: =Chauffage!G9 ->  | AF5: =Chauffage!H9 ->  | AG5: =Chauffage!I9 ->  | AH5: =Chauffage!J9 ->  | AI5: =Chauffage!K9 ->  | AJ5: =Chauffage!L9 -> 
Y6: =Chauffage!A10 -> Mai | Z6: =Chauffage!B10 ->  | AA6: =Chauffage!C10 -> 0 | AB6: =Chauffage!D10 ->  | AC6: =Chauffage!E10 ->  | AD6: =Chauffage!F10 ->  | AE6: =Chauffage!G10 ->  | AF6: =Chauffage!H10 ->  | AG6: =Chauffage!I10 ->  | AH6: =Chauffage!J10 ->  | AI6: =Chauffage!K10 ->  | AJ6: =Chauffage!L10 -> 
Y7: =Chauffage!A11 -> Juin | Z7: =Chauffage!B11 ->  | AA7: =Chauffage!C11 -> 0 | AB7: =Chauffage!D11 ->  | AC7: =Chauffage!E11 ->  | AD7: =Chauffage!F11 ->  | AE7: =Chauffage!G11 ->  | AF7: =Chauffage!H11 ->  | AG7: =Chauffage!I11 ->  | AH7: =Chauffage!J11 ->  | AI7: =Chauffage!K11 ->  | AJ7: =Chauffage!L11 -> 
A8: Ubat de référence RT 2005 | Y8: =Chauffage!A12 -> Juillet | Z8: =Chauffage!B12 ->  | AA8: =Chauffage!C12 -> 0 | AB8: =Chauffage!D12 ->  | AC8: =Chauffage!E12 ->  | AD8: =Chauffage!F12 ->  | AE8: =Chauffage!G12 ->  | AF8: =Chauffage!H12 ->  | AG8: =Chauffage!I12 ->  | AH8: =Chauffage!J12 ->  | AI8: =Chauffage!K12 ->  | AJ8: =Chauffage!L12 -> 
Y9: =Chauffage!A13 -> Août | Z9: =Chauffage!B13 ->  | AA9: =Chauffage!C13 -> 0 | AB9: =Chauffage!D13 ->  | AC9: =Chauffage!E13 ->  | AD9: =Chauffage!F13 ->  | AE9: =Chauffage!G13 ->  | AF9: =Chauffage!H13 ->  | AG9: =Chauffage!I13 ->  | AH9: =Chauffage!J13 ->  | AI9: =Chauffage!K13 ->  | AJ9: =Chauffage!L13 -> 
Y10: =Chauffage!A14 -> Septembre | Z10: =Chauffage!B14 ->  | AA10: =Chauffage!C14 -> 0 | AB10: =Chauffage!D14 ->  | AC10: =Chauffage!E14 ->  | AD10: =Chauffage!F14 ->  | AE10: =Chauffage!G14 ->  | AF10: =Chauffage!H14 ->  | AG10: =Chauffage!I14 ->  | AH10: =Chauffage!J14 ->  | AI10: =Chauffage!K14 ->  | AJ10: =Chauffage!L14 -> 
Y11: =Chauffage!A15 -> Octobre | Z11: =Chauffage!B15 ->  | AA11: =Chauffage!C15 -> 0 | AB11: =Chauffage!D15 ->  | AC11: =Chauffage!E15 ->  | AD11: =Chauffage!F15 ->  | AE11: =Chauffage!G15 ->  | AF11: =Chauffage!H15 ->  | AG11: =Chauffage!I15 ->  | AH11: =Chauffage!J15 ->  | AI11: =Chauffage!K15 ->  | AJ11: =Chauffage!L15 -> 
Y12: =Chauffage!A16 -> Novembre | Z12: =Chauffage!B16 ->  | AA12: =Chauffage!C16 -> 0 | AB12: =Chauffage!D16 ->  | AC12: =Chauffage!E16 ->  | AD12: =Chauffage!F16 ->  | AE12: =Chauffage!G16 ->  | AF12: =Chauffage!H16 ->  | AG12: =Chauffage!I16 ->  | AH12: =Chauffage!J16 ->  | AI12: =Chauffage!K16 ->  | AJ12: =Chauffage!L16 -> 
Y13: =Chauffage!A17 -> Décembre | Z13: =Chauffage!B17 ->  | AA13: =Chauffage!C17 -> 0 | AB13: =Chauffage!D17 ->  | AC13: =Chauffage!E17 ->  | AD13: =Chauffage!F17 ->  | AE13: =Chauffage!G17 ->  | AF13: =Chauffage!H17 ->  | AG13: =Chauffage!I17 ->  | AH13: =Chauffage!J17 ->  | AI13: =Chauffage!K17 ->  | AJ13: =Chauffage!L17 -> 
Y14: =Chauffage!A18 -> Besoin annuel en chauffage annuel (kWh/an) | Z14: =Chauffage!B18 ->  | AA14: =Chauffage!C18 -> 0 | AB14: =Chauffage!D18 -> 0 | AC14: =Chauffage!E18 -> 0 | AD14: =Chauffage!F18 -> 0 | AE14: =Chauffage!G18 -> 0 | AF14: =Chauffage!H18 -> 0 | AG14: =Chauffage!I18 -> 0 | AH14: =Chauffage!J18 -> 0 | AI14: =Chauffage!K18 ->  | AJ14: =Chauffage!L18 -> 0
Y15: =Chauffage!A19 -> Besoin annuel en chauffage (kWh/m²/an) | Z15: =Chauffage!B19 -> 0 | AA15: =Chauffage!C19 -> 0 | AB15: =Chauffage!D19 -> 0 | AC15: =Chauffage!E19 -> 0 | AD15: =Chauffage!F19 -> 0 | AE15: =Chauffage!G19 -> 0 | AF15: =Chauffage!H19 -> 0 | AG15: =Chauffage!I19 -> 0 | AH15: =Chauffage!J19 -> 0 | AI15: =Chauffage!K19 ->  | AJ15: =Chauffage!L19 -> 0
U16: Répartition des déperditions
A17: Répartition des déperditions | U17: Murs (ext et LNC) | V17: ='surface auto'!AH8 -> 
A18: Murs (ext et LNC) | B18: =IFERROR(C18*100/$C$25,0) -> 0 | C18: =Ubat!J5 -> 0
A19: Vitrages | B19: 0 | C19: =Ubat!I8 -> 0 | U19: Vitrages | V19: ='surface auto'!AJ15 -> 
A20: Portes | B20: 0 | C20: =Ubat!I6 -> 0 | U20: Portes | V20: =+'surface auto'!AH20 -> 4.725
A21: Plafond | B21: 0 | C21: =Ubat!I3 -> 0 | U21: Plafond | V21: ='surface auto'!AM5 -> 
A22: Plancher | B22: 0 | C22: =Ubat!I5 -> 0 | U22: Plancher | V22: ='surface auto'!AM16 -> 
A23: Ponts thermiques | B23: 0 | C23: =Ubat!I9 -> 0 | U23: Ponts thermiques
A24: Ventilation | B24: 0 | C24: =IFERROR(Calcul!V14,0) -> 0 | U24: Ventilation
A25: Total | C25: =SUM(C18:C24) -> 0 | U25: Total
A27: Répartition de la facture énergétique | U27: Répartition de la facture énergétique
A28: Chauffage | B28: =IFERROR(C28*100/$C$32,0) -> 0 | C28: =IFERROR(Calcul!P24,0) -> 0 | D28: =IFERROR(Calcul!N24+Calcul!N25,0) -> 0 | U28: Chauffage
A29: ECS | B29: =IFERROR(C29*100/$C$32,0) -> 0 | C29: =Calcul!P27 ->  | D29: =Calcul!N27 ->  | U29: ECS
A30: Eclairage | B30: =IFERROR(C30*100/$C$32,0) -> 0 | C30: =IFERROR(Calcul!P31,0) -> 0 | D30: =IFERROR(Calcul!N31,0) -> 0
A31: Auxiliaires chauffage/ventilation | B31: =IFERROR(C31*100/$C$32,0) -> 0 | C31: =IFERROR(Calcul!P29+Calcul!P30,0) -> 0 | D31: =IFERROR(Calcul!N29+Calcul!N30,0) -> 0 | U31: Eclairage
A32: Total | C32: =SUM(C28:C31) ->  | U32: Auxiliaires
U33: Total

Sheet synthèse (hidden)
B3: Syntèse des Saisies de l'étude
B5: Nom de l'étude : | D5: =Saisies!$G$2 -> 0 | G5: Type de chauffage : | I5: ='surface auto'!C8 -> Chauffage individuel
B6: Typologie : | D6: =Saisies!E6 -> 0 | G6: Production : | I6: ='surface auto'!C13 & " ( " & 'surface auto'!C17 & " )" -> 
B7: Nombre d'étages : | D7: =Saisies!E7 -> 0 | G7: Régulation : | I7: ='surface auto'!C15 -> Régulation + plancher chauffant, ou Emetteur ne permettant pas un arrêt total de l'émission
B8: Surface habitable : | D8: =Saisies!E11 -> 0 | G8: Type d'émission: | I8: ='surface auto'!C9 -> 
B9: Shon RT : | D9: =Saisies!E13 -> 0 | G9: Rendement global : | I9: ='surface auto'!C18 -> 
B10: Type de logement : | D10: =Saisies!E12 -> 0 | G10: Type d'appoint : | I10: =IF('surface auto'!F13="sans appoint","sans appoint",'surface auto'!F17 & " ( " & 'surface auto'!F13 & " )") -> 
B11: Ville : | D11: ='Liste communes'!S116 & " zone "& Saisies!G15 ->  | G11: Emission d'appoint : | I11: =IF('surface auto'!F13="sans appoint","-",'surface auto'!F9) -> 
B12: Mitoyenneté : | D12: =INDEX('surface auto'!AV9:AV14,'surface auto'!AU10,1) -> 1 petit et 1 grand | G12: Rendement global : | I12: =IF('surface auto'!F13="sans appoint","-",'surface auto'!F18) -> 
B13: Hauteur sous plafond : | D13: =Saisies!E17 -> 0 | G13: Couverture appoint : | I13: =IF('surface auto'!F13="sans appoint","-",Calcul!N69 & "%") -> 
B14: Forme du bâtiment : | D14: =INDEX('surface auto'!AO11:AO14,Saisies!M165,1) -> autres.. | G14: Production ECS : | I14: ='surface auto'!I8 -> 
B15: Nombre d'occupants : | D15: =Saisies!$E$21 -> 0 | G15: Rendement global : | I15: ='surface auto'!I11 -> 
B16: =IF(D27="intermédiaire","-","Type d'isolation") -> - | D16: =IF(D27="intermédiaire","-",Saisies!$E$22) -> - | G16: T° Consigne : | I16: =Calcul!N63 -> 55
B17: =IF(D27="intermédiaire","-","Type de plancher") -> - | D17: =IF(D27="intermédiaire","-",Saisies!$E$23) -> - | G17: Volume du ballon : | I17: =Calcul!N62 & " L" -> 0 L
B18: =IF(D27="intermédiaire","-","Type de plafond") -> - | D18: =IF(D27="intermédiaire","-",Saisies!$G$33) -> - | G18: Ballon en vol chauffé : | I18: =Calcul!L60 -> NON
B19: Consigne chauffage : | D19: =Calcul!N65 & "°C" -> 20°C | G19: Nb jours d'occupation : | I19: =Calcul!N64 & " jours" -> 330 jours
B20: Consigne réduit : | D20: =Calcul!L65-Calcul!N67 & "°C" -> -2°C | G20: Besoins en ECS : | I20: =Calcul!N61 & " L/jour/personnes" -> 35 L/jour/personnes
B21: Nb d'heures de réduit : | D21: =Calcul!N66 & " h" -> 6 h | G21: Surface solaire themique : | I21: =IF(Calcul!C33<>FALSE,Calcul!N56,"-") & " (utilisation en " & Calcul!C33 & " )" -> - (utilisation en FAUX )
B22: T°C extérieure de base : | D22: =Calcul!C13 ->  | G22: Type de capteur : | I22: =Calcul!L57 -> 0
B23: Puissance éclairage : | D23: =Calcul!N70 & " w/m² " -> 4 w/m² | G23: Orientation : | I23: =Calcul!N58 -> Sud
B24: Etanchéité à l'air Q4 : | D24: =Saisies!H92 -> 3 | G24: Inclinaison : | I24: =Calcul!N59 -> 45
B25: Type de ventilation : | D25: =Calcul!C11 ->  | G25: Taux de couverture : | I25: =Calcul!C39 -> 0
B27: Type de calcul : | D27: =IF(Chauffage!H20=0,"intermédiaire","simplifié") -> intermédiaire
B29: Menuiseries | H29: Toiture
C30: Surface (m²) | D30: U | E30: Déperditions (W/°C) | F30: masque | H30: Surface (m²) | I30: U | J30: Déperditions (W/°C)
B31: Nord | C31: =IFERROR(IF($D$27="intermédiaire",'surface auto'!Y12,"auto"),0) -> 0 | D31: =IFERROR(IF($D$27="intermédiaire",'surface auto'!Z12,"auto"),0) -> 0 | E31: =IFERROR(IF($D$27="intermédiaire",'surface auto'!AA12,"auto"),0) -> 0 | F31: =IFERROR(IF($D$27="intermédiaire",Calcul!N6,"auto"),0) -> 0 | H31: =IFERROR(IF($D$27="intermédiaire",'surface auto'!AC9,"auto"),0) -> 0 | I31: =IFERROR(IF($D$27="intermédiaire",'surface auto'!Z25,"auto"),0) -> 0 | J31: =IFERROR(IF($D$27="intermédiaire",'surface auto'!AD9,"auto"),0) -> 0
B32: Sud | C32: =IFERROR(IF($D$27="intermédiaire",'surface auto'!Y13,"auto"),0) -> 0 | D32: =IFERROR(IF($D$27="intermédiaire",'surface auto'!Z13,"auto"),0) -> 0 | E32: =IFERROR(IF($D$27="intermédiaire",'surface auto'!AA13,"auto"),0) -> 0 | F32: =IFERROR(IF($D$27="intermédiaire",Calcul!I6,"auto"),0) -> 0
B33: Est | C33: =IFERROR(IF($D$27="intermédiaire",'surface auto'!Y14,"auto"),0) -> 0 | D33: =IFERROR(IF($D$27="intermédiaire",'surface auto'!Z14,"auto"),0) -> 0 | E33: =IFERROR(IF($D$27="intermédiaire",'surface auto'!AA14,"auto"),0) -> 0 | F33: =IFERROR(IF($D$27="intermédiaire",Calcul!K6,"auto"),0) -> 0 | H33: Planchers
B34: Ouest | C34: =IFERROR(IF($D$27="intermédiaire",'surface auto'!Y15,"auto"),0) -> 0 | D34: =IFERROR(IF($D$27="intermédiaire",'surface auto'!Z15,"auto"),0) -> 0 | E34: =IFERROR(IF($D$27="intermédiaire",'surface auto'!AA15,"auto"),0) -> 0 | F34: =IFERROR(IF($D$27="intermédiaire",Calcul!L6,"auto"),0) -> 0 | H34: Surface (m²) | I34: U | J34: Déperditions (W/°C)
B35: Horizontal | C35: =IFERROR(IF($D$27="intermédiaire",'surface auto'!Y16,"auto"),0) -> 0 | D35: =IFERROR(IF($D$27="intermédiaire",'surface auto'!Z16,"auto"),0) ->  | E35: =IFERROR(IF($D$27="intermédiaire",'surface auto'!AA16,"auto"),0) -> 0 | F35: =IFERROR(IF($D$27="intermédiaire",Calcul!Q6,"auto"),0) -> 0 | H35: =IFERROR(IF($D$27="intermédiaire",'surface auto'!AC13,"auto"),0) -> 0 | I35: =IFERROR(IF($D$27="intermédiaire",'surface auto'!AB25,"auto"),0) -> 0 | J35: =IFERROR(IF($D$27="intermédiaire",'surface auto'!AD13,"auto"),0) -> 0
B36: Portes | C36: =IFERROR(IF($D$27="intermédiaire",'surface auto'!AC17,"auto"),0) -> 0 | D36: =IFERROR(IF($D$27="intermédiaire",'surface auto'!AC25,"auto"),0) -> 0 | E36: =IFERROR(IF($D$27="intermédiaire",'surface auto'!AD17,"auto"),0) -> 0 | F36: -
B37: TOTAL | C37: =IFERROR(IF($D$27="intermédiaire",'surface auto'!Y17+'surface auto'!AC17,'surface auto'!AH15+'surface auto'!AH20),0) -> 0 | E37: =IFERROR(IF($D$27="intermédiaire",'surface auto'!AA17+'surface auto'!AD17,'surface auto'!AJ15+'surface auto'!AH20),0) -> 0 | H37: Ponts thermiques
H38: type | I38: Psi | J38: longueur | K38: Déperditions (W/°C)
B39: Murs | H39: L8 | I39: =IFERROR(IF($D$27="intermédiaire",'Pont thermique'!J7,"auto"),0) -> 0 | J39: =IFERROR(IF($D$27="intermédiaire",'Pont thermique'!K7,"auto"),0) -> 0 | K39: =IFERROR(IF($D$27="intermédiaire",'Pont thermique'!L7,"auto"),0) -> 0
C40: Surface (m²) | D40: U | E40: Déperditions (W/°C) | H40: L9 | I40: =IFERROR(IF($D$27="intermédiaire",'Pont thermique'!J8,"auto"),0) -> 0 | J40: =IFERROR(IF($D$27="intermédiaire",'Pont thermique'!K8,"auto"),0) -> 0 | K40: =IFERROR(IF($D$27="intermédiaire",'Pont thermique'!L8,"auto"),0) -> 0
B41: Nord | C41: =IFERROR(IF($D$27="intermédiaire",'surface auto'!Y5,"auto"),0) -> 0 | D41: =IFERROR(IF($D$27="intermédiaire",'surface auto'!Z5,"auto"),0) -> 0 | E41: =IFERROR(IF($D$27="intermédiaire",'surface auto'!AA5,"auto"),0) -> 0 | H41: L10 | I41: =IFERROR(IF($D$27="intermédiaire",'Pont thermique'!J9,"auto"),0) -> 0 | J41: =IFERROR(IF($D$27="intermédiaire",'Pont thermique'!K9,"auto"),0) -> 0 | K41: =IFERROR(IF($D$27="intermédiaire",'Pont thermique'!L10+'Pont thermique'!L11+'Pont thermique'!L12+'Pont thermique'!L13+'Pont thermique'!L14,"auto"),0) -> 0
B42: Sud | C42: =IFERROR(IF($D$27="intermédiaire",'surface auto'!Y6,"auto"),0) -> 0 | D42: =IFERROR(IF($D$27="intermédiaire",'surface auto'!Z6,"auto"),0) -> 0 | E42: =IFERROR(IF($D$27="intermédiaire",'surface auto'!AA6,"auto"),0) -> 0 | H42: Autres | I42: =IFERROR(IF($D$27="intermédiaire",('Pont thermique'!J10*'Pont thermique'!K10+'Pont thermique'!J11*'Pont thermique'!K11+'Pont thermique'!J12*'Pont thermique'!K12+'Pont thermique'!J13*'Pont thermique'!K13+'Pont thermique'!J14*'Pont thermique'!K14)/('Pont thermique'!K10+'Pont thermique'!K11+'Pont thermique'!K12+'Pont thermique'!K13+'Pont thermique'!K14),"auto"),0) -> 0 | J42: =IFERROR(IF($D$27="intermédiaire",'Pont thermique'!K10+'Pont thermique'!K11+'Pont thermique'!K12+'Pont thermique'!K13+'Pont thermique'!K14,"auto"),0) -> 0 | K42: =IFERROR(IF($D$27="intermédiaire",'Pont thermique'!L10,"auto"),0) -> 0
B43: Est | C43: =IFERROR(IF($D$27="intermédiaire",'surface auto'!Y7,"auto"),0) -> 0 | D43: =IFERROR(IF($D$27="intermédiaire",'surface auto'!Z7,"auto"),0) -> 0 | E43: =IFERROR(IF($D$27="intermédiaire",'surface auto'!AA7,"auto"),0) -> 0 | H43: TOTAL | K43: =IFERROR(IF($D$27="intermédiaire",'Pont thermique'!L15,'Pont thermique'!H29),0) -> 0
B44: Ouest | C44: =IFERROR(IF($D$27="intermédiaire",'surface auto'!Y8,"auto"),0) -> 0 | D44: =IFERROR(IF($D$27="intermédiaire",'surface auto'!Z8,"auto"),0) -> 0 | E44: =IFERROR(IF($D$27="intermédiaire",'surface auto'!AA8,"auto"),0) -> 0
B45: Intérieurs | C45: =IFERROR(IF($D$27="intermédiaire",'surface auto'!AC5,"auto"),0) -> 0 | D45: =IFERROR(IF($D$27="intermédiaire",'surface auto'!X25,"auto"),0) -> 0 | E45: =IFERROR(IF($D$27="intermédiaire",'surface auto'!AD5,"auto"),0) -> 0 | H45: AT Bat | I45: =IF(D27="intermédiaire",ROUND('surface auto'!Y19,2),ROUND('surface auto'!AG26,2)) & " hors plancher bas : " & IF(D27="intermédiaire",ROUND('surface auto'!Y20,2),ROUND('surface auto'!AG27,2)) & " m²" -> 0 hors plancher bas : 0 m²
B46: TOTAL | C46: =IFERROR(IF($D$27="intermédiaire",'surface auto'!Y9+'surface auto'!AC5,'surface auto'!AG8+'surface auto'!AF24),0) -> 0 | E46: =IFERROR(IF($D$27="intermédiaire",'surface auto'!AA9+'surface auto'!AD5,'surface auto'!AH8+'surface auto'!AI24),0) -> 0 | H46: Puissance chauffage/ECS en KW | J46: =IF(Chauffage!A91=2,((Calcul!X13*(Calcul!L65-Calcul!C13))/1000)+ECS!C136,(Calcul!X13*(Calcul!L65-Calcul!C13))/1000) ->  | K46: =IF(Chauffage!B208>0,Chauffage!B208/1000+synthèse!J46) -> FALSE
B48: Répartition des déperditions
B65: Synthèse du calcul du Ubat
B85: Syntèse des résultats de l'étude
C88: =+Calcul!H22 -> Besoins chauffage (énergie finale) | G88: Puissance chauffage (kW) | I88: =((Calcul!V13+Calcul!V14)*'Liste communes'!J54)/1000 ->  | J88: Besoins chauffage (énergie primaire)
C89: =Calcul!H23 -> Besoin net chauffage | E89: =Calcul!J23 -> 0 | F89: =Calcul!K23 -> kwh/an | J89: =Calcul!O23 -> Kwh EP | K89: =Calcul!P23 -> Kwh Ep/m².an | L89: CO2 (kgC02/m²,an)
C90: =Calcul!H24 -> Conso combustible principal | E90: =Calcul!J24 ->  | F90: =Calcul!K24 -> kwh/an | G90: =Calcul!L24 ->  | H90: =Calcul!M24 ->  | I90: =Calcul!N24 ->  | J90: =Calcul!O24 ->  | K90: =Calcul!P24 -> 0 | L90: =Calcul!Q24 -> 
C91: =Calcul!H25 -> Conso combustible appoint | E91: =Calcul!J25 ->  | F91: =Calcul!K25 -> kwh/an | G91: =Calcul!L25 ->  | H91: =Calcul!M25 ->  | I91: =Calcul!N25 ->  | J91: =Calcul!O25 -> 
C93: =Calcul!H27 -> Besoins ECS | E93: =Calcul!J27 ->  | F93: =Calcul!K27 -> kwh/an | G93: =Calcul!L27 ->  | H93: =Calcul!M27 ->  | I93: =Calcul!N27 ->  | J93: =Calcul!O27 ->  | K93: =Calcul!P27 ->  | L93: =Calcul!Q27 -> 
C95: =Calcul!H29 -> Consommation auxiliaires | E95: =Calcul!J29 ->  | F95: =Calcul!K29 -> kwh/an | I95: =Calcul!N29 ->  | J95: =Calcul!O29 ->  | K95: =Calcul!P29 ->  | L95: =Calcul!Q29 -> 
C96: =Calcul!H30 -> Consommation aux de ventilation | E96: =Calcul!J30 -> 0 | F96: =Calcul!K30 -> kwh/an | I96: =Calcul!N30 -> 0 | J96: =Calcul!O30 -> 0 | K96: =Calcul!P30 ->  | L96: =Calcul!Q30 -> 
C97: =Calcul!H31 -> Consommation Eclairage | E97: =Calcul!J31 -> 0 | F97: =Calcul!K31 -> kwh/an | I97: =Calcul!N31 -> 0 | J97: =Calcul!O31 -> 0 | K97: =Calcul!P31 ->  | L97: =Calcul!Q31 -> 
C99: TOTAL | E99: =E90+E91+E93+E95+E96+E97 ->  | F99: kwh/an | I99: =Calcul!N33 ->  | J99: =Calcul!O33 ->  | K99: =Calcul!P33 ->  | L99: =Calcul!Q33 -> 
B102: Répartition des consommations
B119: Détail des apports, déperditions et températures mensuels
B131: Etiquette énergétique

Sheet SOLAIRE (hidden)
A1: Région de : | B1: Besançon | D1: Situation du logement : | F1: Rural | G1: Rendement optique du capteur : | I1: =IF(F5="",0,IF(F5="Capteur plan",0.7,0.8)) -> 0.7 | K1: Capteur plan | P1: Agen
A2: Latitude : | B2: =47.3 -> 47.3 | D2: Nombre de personnes : | E2: =Saisies!E21 -> 0 | G2: K1, K2 (Déperditions thermiques) : | I2: =IF(F5="",0,IF(F5="Capteur plan",3.6+0.2,1.66+0.35)) -> 3.8 | K2: Capteur à tubes | P2: Ajaccio
A3: Angle d'inclinaison capteur : | C3: =Calcul!N59 -> 45 | D3: Surface capteur (m²) : | E3: =Calcul!N56 -> 0 | G3: Besoin annuel en KW/an : | I3: =Calcul!C37 ->  | K3: 1 | P3: Ambérieu
A4: Azimut par rap. au sud (+/-) : | C4: =VLOOKUP(Calcul!N58,'Apports solaires'!L30:M34,2,FALSE) -> 1 | D4: DJU par an : | E4: =INDEX('Liste communes'!R21:R28,'Liste communes'!A18,1) ->  | G4: Besoin ECS en KW/an : | I4: =Calcul!C36 ->  | P4: Angers
A5: Altitude du logement : | C5: =INDEX('Liste communes'!E21:E28,'Liste communes'!A18,1) ->  | D5: Type de capteur : | F5: =INDEX(SOLAIRE!K1:L2,SOLAIRE!K3,1) -> Capteur plan | G5: Besoin ECS en KW/mois : | I5: =(Calcul!C36/12) ->  | P5: Angoulème
P6: Annecy
A7: Mois | B7: Rayonnement global | C7: T°C extérieure | D7: Rendement capteur | E7: Coefficient Site | F7: Coefficient latitude | G7: Q (énergie) | H7: Nb. Capteurs ECS seule | I7: Rend. capteurs en ECS | J7: Sur-production ou déficit en ECS | K7: Nb. Capteurs ECS + Chauffage | L7: Rend. capteurs ECS + chauffage | M7: Sur-production ou déficit en ECS + chauffage | N7: Degrés jours unifiés | O7: ECS + Chauffage | P7: Bastia
P8: Besançon
P9: Biarritz
A10: - | B10: KWh/m²/mois | C10: °C | D10: % | E10: % | F10: % | G10: KWh/m²/mois | H10: =E3/2 -> 0 | I10: % | J10: KWh/mois | K10: =IF(OR(Calcul!C33="Chauffage + ECS",Calcul!C33="Chauffage"),Calcul!N56,0) -> 0 | L10: % | M10: KWh/mois | N10: °C | O10: KWh/mois | P10: Bordeaux
A11: janvier | B11: =INDEX('Liste communes'!BI20:BI29,'Liste communes'!A18,1)*31 ->  | C11: =INDEX('Liste communes'!AG20:AG29,'Liste communes'!A18,1) ->  | D11: =IF(C11=0,0,ROUND($I$1-$I$2*(90-(POWER(C11,0.86)))/800,2)) ->  | E11: =IF(B1<>"",ROUND(IF(OR($B$1="Ajaccio",$B$1="Bastia",$B$1="Gourdon",$B$1="Marseille",$B$1="Nice",$B$1="St Auban",$B$1="Toulon"),IF(AND($F$1="Rural",$C$5<=300),1.1,IF(AND($F$1="Rural",$C$5>300,$C$5<=1100),(($C$5-300)*0.00004)+1.19,IF(AND($F$1="Rural",$C$5>1100),(($C$5-300)*0.00004)+1.28,0.93))),IF(AND($F$1="Rural",$C$5<=300),1.07,IF(AND($F$1="Rural",$C$5>300,$C$5<=1100),(($C$5-300)*0.00004)+1.16,IF(AND($F$1="Rural",$C$5>1100),(($C$5-300)*0.00004)+1.25,0.9)))),2),0) ->  | F11: =IF(C3<>"",IF(C3=30,0.93,IF(C3=35,0.94,IF(C3=40,0.95,IF(C3=45,1,IF(C3=50,1.02,IF(C3=55,1.03,1.04)))))),0) -> 1 | G11: =ROUND(B11*D11*E11*F11*$C$4,2) ->  | H11: =IF(G11*$H$10*$E$3>$I$5,$I$5,G11*$H$10*$E$3) ->  | I11: =IF($I$5<>0,H11/$I$5,0) ->  | J11: =(G11*$H$10*$E$3)-Q11 ->  | K11: =IF(G11*$K$10*$E$3>O11,O11,G11*$K$10*$E$3) ->  | L11: =IF(K11<>0,K11/O11,0) ->  | M11: =(G11*$K$10*$E$3)-O11 ->  | N11: =INDEX('Liste communes'!F21:F28,'Liste communes'!A18,1) ->  | O11: =IF($E$4<>0,(($I$3/$E$4)*N11)+$I$5,0) ->  | P11: Bourges | Q11: =$I$5*1.2 -> 
A12: février | B12: =INDEX('Liste communes'!BJ20:BJ29,'Liste communes'!A18,1)*31 ->  | C12: =INDEX('Liste communes'!AH20:AH29,'Liste communes'!A18,1) ->  | D12: =IF(C12=0,0,ROUND($I$1-$I$2*(90-(POWER(C12,0.88)))/800,2)) ->  | E12: =IF(B1<>"",ROUND(IF(OR($B$1="Ajaccio",$B$1="Bastia",$B$1="Gourdon",$B$1="Marseille",$B$1="Nice",$B$1="St Auban",$B$1="Toulon"),IF(AND($F$1="Rural",$C$5<=300),1.1,IF(AND($F$1="Rural",$C$5>300,$C$5<=1100),(($C$5-300)*0.00004)+1.19,IF(AND($F$1="Rural",$C$5>1100),(($C$5-300)*0.00004)+1.28,0.93))),IF(AND($F$1="Rural",$C$5<=300),1.07,IF(AND($F$1="Rural",$C$5>300,$C$5<=1100),(($C$5-300)*0.00004)+1.16,IF(AND($F$1="Rural",$C$5>1100),(($C$5-300)*0.00004)+1.25,0.9)))),2),0) ->  | F12: =IF(C3<>"",IF(C3=30,0.94,IF(C3=35,0.95,IF(C3=40,0.96,IF(C3=45,1,IF(C3=50,1.02,IF(C3=55,1.02,1.03)))))),0) -> 1 | J12: =(G12*$H$10*$E$3)-Q12 ->  | K12: =IF(G12*$K$10*$E$3>O12,O12,G12*$K$10*$E$3) ->  | L12: =IF(K12<>0,K12/O12,0) ->  | N12: =INDEX('Liste communes'!G21:G28,'Liste communes'!A18,1) ->  | P12: Brest | Q12: =$I$5*1.2 -> 
A13: mars | B13: =INDEX('Liste communes'!BK20:BK29,'Liste communes'!A18,1)*31 ->  | C13: =INDEX('Liste communes'!AI20:AI29,'Liste communes'!A18,1) ->  | D13: =IF(C13=0,0,ROUND($I$1-$I$2*(85-(POWER(C13,0.88)))/800,2)) ->  | E13: =IF(B1<>"",ROUND(IF(OR($B$1="Ajaccio",$B$1="Bastia",$B$1="Gourdon",$B$1="Marseille",$B$1="Nice",$B$1="St Auban",$B$1="Toulon"),IF(AND($F$1="Rural",$C$5<=300),1.1,IF(AND($F$1="Rural",$C$5>300,$C$5<=1100),(($C$5-300)*0.00004)+1.19,IF(AND($F$1="Rural",$C$5>1100),(($C$5-300)*0.00004)+1.28,0.93))),IF(AND($F$1="Rural",$C$5<=300),1.07,IF(AND($F$1="Rural",$C$5>300,$C$5<=1100),(($C$5-300)*0.00004)+1.16,IF(AND($F$1="Rural",$C$5>1100),(($C$5-300)*0.00004)+1.25,0.9)))),2),0) ->  | F13: =IF(C3<>"",IF(C3=30,0.95,IF(C3=35,0.96,IF(C3=40,0.98,IF(C3=45,1,IF(C3=50,1.01,IF(C3=55,1.01,1.02)))))),0) -> 1 | K13: =IF(G13*$K$10*$E$3>O13,O13,G13*$K$10*$E$3) ->  | N13: =INDEX('Liste communes'!H21:H28,'Liste communes'!A18,1) ->  | P13: Caen | Q13: =$I$5*1 -> 
A14: avril | B14: =INDEX('Liste communes'!BL20:BL29,'Liste communes'!A18,1)*31 ->  | C14: =INDEX('Liste communes'!AJ20:AJ29,'Liste communes'!A18,1) ->  | D14: =IF(C14=0,0,ROUND($I$1-$I$2*(85-(POWER(C14,0.88)))/800,2)) ->  | E14: =IF(B1<>"",ROUND(IF(OR($B$1="Ajaccio",$B$1="Bastia",$B$1="Gourdon",$B$1="Marseille",$B$1="Nice",$B$1="St Auban",$B$1="Toulon"),IF(AND($F$1="Rural",$C$5<=300),1.03,IF(AND($F$1="Rural",$C$5>300,$C$5<=1100),(($C$5-300)*0.00004)+1.08,IF(AND($F$1="Rural",$C$5>1100),(($C$5-300)*0.00004)+1.13,0.93))),IF(AND($F$1="Rural",$C$5<=300),1,IF(AND($F$1="Rural",$C$5>300,$C$5<=1100),(($C$5-300)*0.00004)+1.05,IF(AND($F$1="Rural",$C$5>1100),(($C$5-300)*0.00004)+1.1,0.9)))),2),0) ->  | F14: =IF(C3<>"",IF(C3=30,0.96,IF(C3=35,0.97,IF(C3=40,0.99,IF(C3=45,1,IF(C3=50,1.01,IF(C3=55,1.01,1.02)))))),0) -> 1 | K14: =IF(G14*$K$10*$E$3>O14,O14,G14*$K$10*$E$3) ->  | N14: =INDEX('Liste communes'!I21:I28,'Liste communes'!A18,1) ->  | P14: Carcassonne | Q14: =$I$5*1 -> 
A15: mai | B15: =INDEX('Liste communes'!BM20:BM29,'Liste communes'!A18,1)*31 ->  | C15: =INDEX('Liste communes'!AK20:AK29,'Liste communes'!A18,1) ->  | D15: =IF(C15=0,0,ROUND($I$1-$I$2*(75-(POWER(C15,0.88)))/800,2)) ->  | E15: =IF(B1<>"",ROUND(IF(OR($B$1="Ajaccio",$B$1="Bastia",$B$1="Gourdon",$B$1="Marseille",$B$1="Nice",$B$1="St Auban",$B$1="Toulon"),IF(AND($F$1="Rural",$C$5<=300),0.98,IF(AND($F$1="Rural",$C$5>300,$C$5<=1100),(($C$5-300)*0.00004)+1.03,IF(AND($F$1="Rural",$C$5>1100),(($C$5-300)*0.00004)+1.08,0.93))),IF(AND($F$1="Rural",$C$5<=300),0.95,IF(AND($F$1="Rural",$C$5>300,$C$5<=1100),(($C$5-300)*0.00004)+1,IF(AND($F$1="Rural",$C$5>1100),(($C$5-300)*0.00004)+1.05,0.9)))),2),0) ->  | F15: =IF(C3<>"",IF(C3=30,0.99,IF(C3=35,0.99,IF(C3=40,1,IF(C3=45,1,IF(C3=50,1,IF(C3=55,0.99,0.99)))))),0) -> 1 | K15: =IF(G15*$K$10*$E$3>O15,O15,G15*$K$10*$E$3) ->  | N15: =INDEX('Liste communes'!J21:J28,'Liste communes'!A18,1) ->  | P15: Cazaux | Q15: =$I$5*1 -> 
A16: juin | B16: =INDEX('Liste communes'!BN20:BN29,'Liste communes'!A18,1)*31 ->  | C16: =INDEX('Liste communes'!AL20:AL29,'Liste communes'!A18,1) ->  | D16: =IF(C16=0,0,ROUND($I$1-$I$2*(75-(POWER(C16,0.88)))/800,2)) ->  | E16: =IF(B1<>"",ROUND(IF(OR($B$1="Ajaccio",$B$1="Bastia",$B$1="Gourdon",$B$1="Marseille",$B$1="Nice",$B$1="St Auban",$B$1="Toulon"),IF(AND($F$1="Rural",$C$5<=300),0.98,IF(AND($F$1="Rural",$C$5>300,$C$5<=1100),(($C$5-300)*0.00004)+1.03,IF(AND($F$1="Rural",$C$5>1100),(($C$5-300)*0.00004)+1.08,0.93))),IF(AND($F$1="Rural",$C$5<=300),0.95,IF(AND($F$1="Rural",$C$5>300,$C$5<=1100),(($C$5-300)*0.00004)+1,IF(AND($F$1="Rural",$C$5>1100),(($C$5-300)*0.00004)+1.05,0.9)))),2),0) ->  | F16: =IF(C3<>"",IF(C3=30,1.03,IF(C3=35,1.02,IF(C3=40,1.01,IF(C3=45,1,IF(C3=50,0.99,IF(C3=55,0.98,0.94)))))),0) -> 1 | K16: =IF(G16*$K$10*$E$3>$I$5,$I$5,G16*$K$10*$E$3) ->  | N16: =INDEX('Liste communes'!K21:K28,'Liste communes'!A18,1) ->  | P16: Chartres | Q16: =$I$5*0.9 -> 
A17: juillet | B17: =INDEX('Liste communes'!BO20:BO29,'Liste communes'!A18,1)*31 ->  | C17: =INDEX('Liste communes'!AM20:AM29,'Liste communes'!A18,1) ->  | D17: =IF(C17=0,0,ROUND($I$1-$I$2*(70-(POWER(C17,0.88)))/800,2)) ->  | E17: =IF(B1<>"",ROUND(IF(OR($B$1="Ajaccio",$B$1="Bastia",$B$1="Gourdon",$B$1="Marseille",$B$1="Nice",$B$1="St Auban",$B$1="Toulon"),IF(AND($F$1="Rural",$C$5<=300),0.98,IF(AND($F$1="Rural",$C$5>300,$C$5<=1100),(($C$5-300)*0.00004)+1.03,IF(AND($F$1="Rural",$C$5>1100),(($C$5-300)*0.00004)+1.08,0.93))),IF(AND($F$1="Rural",$C$5<=300),0.95,IF(AND($F$1="Rural",$C$5>300,$C$5<=1100),(($C$5-300)*0.00004)+1,IF(AND($F$1="Rural",$C$5>1100),(($C$5-300)*0.00004)+1.05,0.9)))),2),0) ->  | F17: =IF(C3<>"",IF(C3=30,1.04,IF(C3=35,1.03,IF(C3=40,1.02,IF(C3=45,1,IF(C3=50,0.98,IF(C3=55,0.96,0.94)))))),0) -> 1 | K17: =IF(G17*$K$10*$E$3>$I$5,$I$5,G17*$K$10*$E$3) ->  | N17: =INDEX('Liste communes'!L21:L28,'Liste communes'!A18,1) ->  | P17: Clermont-Fd | Q17: =$I$5*0.8 -> 
A18: août | B18: =INDEX('Liste communes'!BP20:BP29,'Liste communes'!A18,1)*31 ->  | C18: =INDEX('Liste communes'!AN20:AN29,'Liste communes'!A18,1) ->  | D18: =IF(C18=0,0,ROUND($I$1-$I$2*(70-(POWER(C18,0.88)))/800,2)) ->  | E18: =IF(B1<>"",ROUND(IF(OR($B$1="Ajaccio",$B$1="Bastia",$B$1="Gourdon",$B$1="Marseille",$B$1="Nice",$B$1="St Auban",$B$1="Toulon"),IF(AND($F$1="Rural",$C$5<=300),0.98,IF(AND($F$1="Rural",$C$5>300,$C$5<=1100),(($C$5-300)*0.00004)+1.03,IF(AND($F$1="Rural",$C$5>1100),(($C$5-300)*0.00004)+1.08,0.93))),IF(AND($F$1="Rural",$C$5<=300),0.95,IF(AND($F$1="Rural",$C$5>300,$C$5<=1100),(($C$5-300)*0.00004)+1,IF(AND($F$1="Rural",$C$5>1100),(($C$5-300)*0.00004)+1.05,0.9)))),2),0) ->  | F18: =IF(C3<>"",IF(C3=30,1.03,IF(C3=35,1.02,IF(C3=40,1.01,IF(C3=45,1,IF(C3=50,0.99,IF(C3=55,0.98,0.96)))))),0) -> 1 | K18: =IF(G18*$K$10*$E$3>$I$5,$I$5,G18*$K$10*$E$3) ->  | N18: =INDEX('Liste communes'!M21:M28,'Liste communes'!A18,1) ->  | P18: Cognac | Q18: =$I$5*0.8 -> 
A19: septembre | B19: =INDEX('Liste communes'!BQ20:BQ29,'Liste communes'!A18,1)*31 ->  | C19: =INDEX('Liste communes'!AO20:AO29,'Liste communes'!A18,1) ->  | D19: =IF(C19=0,0,ROUND($I$1-$I$2*(75-(POWER(C19,0.88)))/800,2)) ->  | E19: =IF(B1<>"",ROUND(IF(OR($B$1="Ajaccio",$B$1="Bastia",$B$1="Gourdon",$B$1="Marseille",$B$1="Nice",$B$1="St Auban",$B$1="Toulon"),IF(AND($F$1="Rural",$C$5<=300),1.03,IF(AND($F$1="Rural",$C$5>300,$C$5<=1100),(($C$5-300)*0.00004)+1.08,IF(AND($F$1="Rural",$C$5>1100),(($C$5-300)*0.00004)+1.13,0.93))),IF(AND($F$1="Rural",$C$5<=300),1,IF(AND($F$1="Rural",$C$5>300,$C$5<=1100),(($C$5-300)*0.00004)+1.05,IF(AND($F$1="Rural",$C$5>1100),(($C$5-300)*0.00004)+1.1,0.9)))),2),0) ->  | F19: =IF(C3<>"",IF(C3=30,0.99,IF(C3=35,0.99,IF(C3=40,1,IF(C3=45,1,IF(C3=50,1,IF(C3=55,0.99,0.99)))))),0) -> 1 | K19: =IF(G19*$K$10*$E$3>$I$5,$I$5,G19*$K$10*$E$3) ->  | N19: =INDEX('Liste communes'!N21:N28,'Liste communes'!A18,1) ->  | P19: Colmar | Q19: =$I$5*0.9 -> 
A20: octobre | B20: =INDEX('Liste communes'!BR20:BR29,'Liste communes'!A18,1)*31 -> 76.26 | C20: =INDEX('Liste communes'!AP20:AP29,'Liste communes'!A18,1) -> 10.8 | D20: =IF(C20=0,0,ROUND($I$1-$I$2*(75-(POWER(C20,0.88)))/800,2)) -> 0.38 | E20: =IF(B1<>"",ROUND(IF(OR($B$1="Ajaccio",$B$1="Bastia",$B$1="Gourdon",$B$1="Marseille",$B$1="Nice",$B$1="St Auban",$B$1="Toulon"),IF(AND($F$1="Rural",$C$5<=300),1.1,IF(AND($F$1="Rural",$C$5>300,$C$5<=1100),(($C$5-300)*0.00004)+1.19,IF(AND($F$1="Rural",$C$5>1100),(($C$5-300)*0.00004)+1.28,0.93))),IF(AND($F$1="Rural",$C$5<=300),1.07,IF(AND($F$1="Rural",$C$5>300,$C$5<=1100),(($C$5-300)*0.00004)+1.16,IF(AND($F$1="Rural",$C$5>1100),(($C$5-300)*0.00004)+1.25,0.9)))),2),0) ->  | F20: =IF(C3<>"",IF(C3=30,0.95,IF(C3=35,0.96,IF(C3=40,0.98,IF(C3=45,1,IF(C3=50,1.01,IF(C3=55,1.01,1.02)))))),0) -> 1 | K20: =IF(G20*$K$10*$E$3>O20,O20,G20*$K$10*$E$3) ->  | N20: =INDEX('Liste communes'!O21:O28,'Liste communes'!A18,1) ->  | P20: Dijon | Q20: =$I$5*1 -> 
A21: novembre | B21: =INDEX('Liste communes'!BS20:BS29,'Liste communes'!A18,1)*31 -> 50.84 | C21: =INDEX('Liste communes'!AQ20:AQ29,'Liste communes'!A18,1) -> 5.9 | D21: =IF(C21=0,0,ROUND($I$1-$I$2*(80-(POWER(C21,0.88)))/800,2)) -> 0.34 | E21: =IF(B1<>"",ROUND(IF(OR($B$1="Ajaccio",$B$1="Bastia",$B$1="Gourdon",$B$1="Marseille",$B$1="Nice",$B$1="St Auban",$B$1="Toulon"),IF(AND($F$1="Rural",$C$5<=300),1.1,IF(AND($F$1="Rural",$C$5>300,$C$5<=1100),(($C$5-300)*0.00004)+1.19,IF(AND($F$1="Rural",$C$5>1100),(($C$5-300)*0.00004)+1.28,0.93))),IF(AND($F$1="Rural",$C$5<=300),1.07,IF(AND($F$1="Rural",$C$5>300,$C$5<=1100),(($C$5-300)*0.00004)+1.16,IF(AND($F$1="Rural",$C$5>1100),(($C$5-300)*0.00004)+1.25,0.9)))),2),0) ->  | F21: =IF(C3<>"",IF(C3=30,0.93,IF(C3=35,0.94,IF(C3=40,0.96,IF(C3=45,1,IF(C3=50,1.01,IF(C3=55,1.02,1.03)))))),0) -> 1 | K21: =IF(G21*$K$10*$E$3>O21,O21,G21*$K$10*$E$3) ->  | N21: =INDEX('Liste communes'!P21:P28,'Liste communes'!A18,1) -> 374 | P21: Embrun | Q21: =$I$5*1.1 -> 
A22: décembre | B22: =INDEX('Liste communes'!BT20:BT29,'Liste communes'!A18,1)*31 -> 38.75 | C22: =INDEX('Liste communes'!AR20:AR29,'Liste communes'!A18,1) -> 0.5 | D22: =IF(C22=0,0,ROUND($I$1-$I$2*(85-(POWER(C22,0.88)))/800,2)) -> 0.3 | E22: =IF(B1<>"",ROUND(IF(OR($B$1="Ajaccio",$B$1="Bastia",$B$1="Gourdon",$B$1="Marseille",$B$1="Nice",$B$1="St Auban",$B$1="Toulon"),IF(AND($F$1="Rural",$C$5<=300),1.1,IF(AND($F$1="Rural",$C$5>300,$C$5<=1100),(($C$5-300)*0.00004)+1.19,IF(AND($F$1="Rural",$C$5>1100),(($C$5-300)*0.00004)+1.28,0.93))),IF(AND($F$1="Rural",$C$5<=300),1.07,IF(AND($F$1="Rural",$C$5>300,$C$5<=1100),(($C$5-300)*0.00004)+1.16,IF(AND($F$1="Rural",$C$5>1100),(($C$5-300)*0.00004)+1.25,0.9)))),2),0) ->  | F22: =IF(C3<>"",IF(C3=30,0.92,IF(C3=35,0.93,IF(C3=40,0.94,IF(C3=45,1,IF(C3=50,1.02,IF(C3=55,1.03,1.04)))))),0) -> 1 | K22: =IF(G22*$K$10*$E$3>O22,O22,G22*$K$10*$E$3) ->  | N22: =INDEX('Liste communes'!Q21:Q28,'Liste communes'!A18,1) -> 542 | P22: Gourdon | Q22: =$I$5*1.1 -> 
P23: Grenoble | Q23: =SUM(Q11:Q22) -> 
B24: KWh/m²/an | C24: T° moyenne/an | D24: Rend. moyen/an | E24: Coeff. moyen/an | F24: Coeff. moyen/an | G24: KWh/m²/an | H24: KWh/an | J24: KWh/an | K24: KWh/an | M24: KWh/an | N24: Total DJU | O24: KWh/an | P24: La Rochelle
B25: =SUM(B11:B22) ->  | C25: =ROUND(AVERAGE(C11:C22),2) ->  | D25: =ROUND(AVERAGE(D11:D22),2) ->  | E25: =ROUND(AVERAGE(E11:E22),2) ->  | F25: =ROUND(AVERAGE(F11:F22),2) -> 1 | G25: =ROUND(SUM(G11:G22),2) ->  | H25: =SUM(H11:H22) ->  | P25: Langres
E26: ECS seule | F26: ECS+Chauffage | I26: =IF(K2="Fuel domestique","Fuel en Litres",IF(K2="Gaz de ville","Gaz en M. Cube","Combustible")) -> Combustible | P26: Le Mans
A27: Taux de couverture théorique en % : | E27: =IF(I4<>0,H25/$I$4,0) ->  | F27: =IF(O25<>0,K25/$O$25,0) ->  | G27: Consommation moyenne par an : | I27: =IF(AND(K1<>"",K2<>""),IF(K2="Fuel domestique",IF(K1="Brûleur à air soufflé",O25/(10.25*0.95),IF(K1="Atmosphérique",O25/(10.25*0.87),O25/(10.25*1.05))),IF(K2="Gaz de ville",IF(K1="Brûleur à air soufflé",O25/(10.53*0.95),IF(K1="Atmosphérique",O25/(10.53*0.87),O25/(10.53*1.05))))),"") -> FALSE | P27: Le Puy-en-Velay
A28: Taux de couverture pratique en % : | E28: =E27*0.9 ->  | F28: =F27*0.6 ->  | G28: Economie ECS par an : | I28: =IF(AND(K1<>"",K2<>""),IF(K2="Fuel domestique",IF(K1="Brûleur à air soufflé",H25/(10.25*0.95),IF(K1="Atmosphérique",H25/(10.25*0.87),H25/(10.25*1.05))),IF(K2="Gaz de ville",IF(K1="Brûleur à air soufflé",H25/(10.53*0.95),IF(K1="Atmosphérique",H25/(10.53*0.87),H25/(10.53*1.05))))),"") -> FALSE | P28: Lille
A29: Taux de rendement théorique du capteur en KWh/m²/an : | E29: =IF(E3<>"",H25/($E$3*$H$10),0) ->  | F29: =IF(E3<>"",K25/($E$3*$K$10),0) ->  | G29: Economie ECS + Chauffage par an : | I29: =IF(AND(K1<>"",K2<>""),IF(K2="Fuel domestique",IF(K1="Brûleur à air soufflé",K25/(10.25*0.95),IF(K1="Atmosphérique",K25/(10.25*0.87),K25/(10.25*1.05))),IF(K2="Gaz de ville",IF(K1="Brûleur à air soufflé",K25/(10.53*0.95),IF(K1="Atmosphérique",K25/(10.53*0.87),K25/(10.53*1.05))))),"") -> FALSE | P29: Limoges
A30: Taux de rendement pratique du capteur en KWh/m²/an : | E30: =E29*0.9 ->  | F30: =F29*0.9 ->  | P30: Lyon
P31: Marseille
P32: Metz
A33: Les cellules à droite des étiquettes jaune doivent être renseignées. | P33: Millau
A34: Les cellules en bleu ciel comportent une liste déroulante dans laquelle un choix est à faire. | P34: Mont de Marsan
A35: Les cellules à droite des étiquettes vert clair indique une valeur pour information, ne rien inscrire car elles contiennent des formules. | P35: Montélimar
A36: Attention, certaines cellules contiennent des formules complexes. Si elles sont supprimées par erreur (si la protection a été ôtée), ne pas essayer de les reproduire, supprimer le classeur, et le récupérer à nouveau depuis le fichier zip. | P36: Montpellier
A37: Ce classeur contient des feuilles qui ont été cachées afin de ne pas l'encombrer inutilement. Elles peuvent être affichées en cliquant sur : Format|Feuille|Affichée… | P37: Mulhouse
A38: Afin d'éviter toutes fausses manœuvres, cette feuille ainsi que la feuille "Piscine" sont protégées. Pour ôter la protection, cliquer sur : Outils|Protection|Ôter la protection de la feuille… Note : aucun mot de passe n'est à saisir. | P38: Nancy
P39: Nantes
P40: Nice
P41: Nimes
P42: Orléans
P43: Paris
P44: Perpignan
P45: Reims
P46: Rennes
P47: Rouen
P48: Saint Auban
P49: Saint Quentin
P50: Sarreguemines
P51: Strasbourg
P52: Toulon
P53: Toulouse
P54: Tours
P55: Valenciennes
P56: Vichy

Sheet Tarif combustible (hidden)
L1: co2 | R1: ecs simpl | S1: ecs compl | U1: appoint chauffage compl | W1: appoint chauffage simpl
B2: ENR | D2: UNITE | E2: = kwh PCS | F2: = kwh PCI | G2: = €/kWh | H2: COEFF | L2: chauffage | M2: ECS | N2: REFR | O2: ECLAIRAGE | P2: AUTRES | R2: =Chauffage!A164 -> 0 | S2: =Chauffage!A91 -> 0 | U2: =Chauffage!B77 -> 0 | W2: =Chauffage!G151 -> 0
B3: Electricité | C3: 1 | D3: kwh | E3: 1 | F3: 1 | G3: 0.1503 | H3: 2.58 | L3: 0.18 | M3: 0.04 | N3: 0.04 | O3: 0.1 | P3: 0.06 | R3: Ballon avec résistance électrique | S3: 1 | U3: Electricité | W3: Chauffage électrique | X3: 1
B4: Fioul domestique | C4: 1 | D4: litre | E4: 10.667 | F4: =1/9.97 -> 0.1003009027 | G4: 0.072 | H4: 1 | L4: 0.3 | M4: 0.3 | N4: 0.3 | R4: Ballon Raccordé au système de chauffage | S4: =D17 -> 0 | U4: Fioul domestique | W4: Chaudière gaz | X4: 3
B5: Gaz naturel | C5: 1 | D5: m3 | E5: 1 | F5: =1/10.66 -> 0.09380863039 | G5: 0.05 | H5: 1 | L5: 0.234 | M5: 0.234 | N5: 0.234 | R5: Ballon thermodynamique | S5: 1 | U5: Gaz naturel | W5: Chaudière fioul | X5: 2
B6: Gaz propane | C6: 1 | D6: kg | E6: 13.8 | F6: =1/12.6 -> 0.07936507937 | G6: 0.135 | H6: 1 | L6: 0.274 | M6: 0.274 | N6: 0.274 | R6: Ballon solaire lié au chauffage | S6: =S4 -> 0 | U6: Gaz propane | W6: appoint bois granulés | X6: 6
B7: Bois bûches | C7: 1 | D7: stères | E7: 1865 | F7: =1/1680 -> 0.0005952380952 | G7: =57.2/1680 -> 0.03404761905 | H7: 0.6 | L7: 0.013 | M7: 0.013 | R7: Ballon solaire avec appoint électrique | S7: 1 | U7: Bois bûches | W7: Appoint bois bûches | X7: 5
B8: Granulé bois | C8: 1 | D8: tonne | E8: 5106 | F8: =1/4600 -> 0.0002173913043 | G8: =311.42/4600 -> 0.0677 | H8: 0.6 | L8: 0.013 | M8: 0.013 | R8: Chauffe bain gaz | S8: 3 | U8: Granulé bois | W8: Capteurs solaires | X8: 1
B9: Plaquette bois | C9: 1 | D9: tonne | E9: 2442 | F9: =1/2200 -> 0.0004545454545 | G9: =59.2/2200 -> 0.02690909091 | H9: 0.6 | L9: 0.013 | M9: 0.013 | U9: Plaquette bois | W9: Sans appoint | X9: 0
B10: Solaire | D10: kwh | W10: =INDEX(W3:X9,W2,2) -> 
B11: sans appoint | C11: 1 | E11: 1 | F11: 1 | G11: 0 | H11: 0
B12: gaz butane | C12: 1 | D12: kg | E12: 13.7 | F12: 12.56 | H12: 1
C13: 1 | D13: m3 | E13: 33.5 | F13: 30.45 | H13: 1
B14: charbon | C14: 1 | D14: kg | E14: 9.245 | F14: 8.889 | H14: 1
B15: gaz propane | C15: 1 | D15: m3
B17: Energie chauffage | E17: =IFERROR(VLOOKUP(Chauffage!B151,'Tarif combustible'!B3:H9,6,FALSE),"sans appoint") -> sans appoint
B18: Energie chauffage appoint | C18: =IF(Chauffage!H20=0,Chauffage!B77,'Tarif combustible'!W10) -> 0
B19: Energie ECS | C19: =IF(Chauffage!H20=1,INDEX(R3:S8,R2,2),INDEX(R3:S8,S2,2)) -> 
B23: abo elec
B24: 3 kVA | C24: 54.45 | D24: 0,1 503 € | E24: =C25*30 -> 2652.6
B25: 6 kVA | C25: 88.42
B26: 9 kVA | C26: 117.2
B27: 12 kVA | C27: 180.11
B28: 15 kVA | C28: 206.57

Sheet ETIQUETTES (hidden)
B1: Etiquette | C1: =IF(C13<=C4,1,IF(C13<=C5,2,IF(C13<=C6,3,IF(C13<=C7,4,IF(C13<=C8,5,IF(C13<=C9,6,7)))))) ->  | G1: Etiquette | H1: =IF(H12<=H4,1,IF(H12<=H5,2,IF(H12<=H6,3,IF(H12<=H7,4,IF(H12<=H8,5,IF(H12<=H9,6,7)))))) -> 
B3: Etiquette | G3: Etiquette
B4: A | C4: 50 | D4: 1 | E4: =IF($C$13<=C4,1,0) ->  | G4: 1 | H4: 6
B5: B | C5: 90 | D5: 2 | E5: =IF($C$13<=C6,IF($C$13>C5,1,0),0) ->  | G5: 2 | H5: 10
B6: C | C6: 150 | D6: 3 | G6: 3 | H6: 20
B7: D | C7: 230 | D7: 4 | G7: 4 | H7: 35
B8: E | C8: 330 | D8: 5 | G8: 5 | H8: 55
B9: F | C9: 450 | D9: 6 | G9: 6 | H9: 80
B10: G | D10: 7 | G10: 7
D11: 8 | E11: =IF($C$13<=C12,IF($C$13>C11,1,0),0) -> 
D12: 9 | E12: 0 | G12: CO2 | H12: =Calcul!Q33 -> 
B13: Cep | C13: =Calcul!P33 -> 
B15: Niveau saisie | C15: 7
V38: Consommations énergétiques (Cep) (kWh EP/m².an) | Z38: =C13 -> 
V39: Emissions de gaz à effet de serre (GES) (kgéqCO2/m².an) | Z39: =H12 -> 
Z44: =Z38 -> 
Z45: =Z44 -> 
Z46: =Z45 -> 
Z47: =Z45 -> 
Z48: =Z39 -> 
Z49: =Z48 -> 
Z50: =Z49 -> 
Z51: =Z50 -> 

Sheet Pont thermique (hidden)
F5: calcul AUTO | J5: Saisie intermédiaire
F6: Longueur auto | G6: psi auto | H6: Déperditions (W/K) | J6: Psi | K6: longueur | L6: Déperditions
B7: angle de deux murs extérieurs sortant | F7: =Saisies!E17*Saisies!E7*'surface auto'!G4 ->  | G7: =INDEX('BDD typo'!$B$5:$AQ$16,'BDD typo'!$A$1,22) ->  | H7: =F7*G7 ->  | J7: =Saisies!E66 -> 0 | K7: =Saisies!F66 -> 0 | L7: =J7*K7 -> 0
B8: angle de deux murs extérieurs rentrant | F8: =Saisies!E17*Saisies!E7*'surface auto'!H4 ->  | G8: =INDEX('BDD typo'!$B$5:$AQ$16,'BDD typo'!$A$1,23) ->  | H8: =F8*G8 ->  | J8: =Saisies!E67 -> 0 | K8: =Saisies!F67 -> 0 | L8: 0
B9: angle mur ext / refend | F9: ='surface auto'!J4*Saisies!E7*Saisies!E17 ->  | G9: =INDEX('BDD typo'!$B$5:$AQ$16,'BDD typo'!$A$1,24) ->  | H9: =F9*G9 ->  | J9: =Saisies!E68 -> 0 | K9: =Saisies!F68 -> 0 | L9: 0
B10: angle mur ext / cloison | J10: =Saisies!E69 -> 0 | K10: =Saisies!F69 -> 0 | L10: 0
J11: =Saisies!G66 -> 0 | K11: =Saisies!H66 -> 0 | L11: 0
B12: Mur ext / plancher ext (L8) | J12: =Saisies!G67 -> 0 | K12: =Saisies!H67 -> 0 | L12: 0
B13: Mur ext / plancher interm PSI ou PSI1 (L9) | F13: ='surface auto'!AR8*Saisies!E7 ->  | G13: =INDEX('BDD typo'!$B$5:$AQ$16,'BDD typo'!$A$1,27) ->  | H13: =F13*G13 ->  | J13: =Saisies!G68 -> 0 | K13: =Saisies!H68 -> 0 | L13: 0
B14: Mur ext / plancher interm PSI2 (L9) | J14: =Saisies!G69 -> 0 | K14: =Saisies!H69 -> 0 | L14: 0
B15: Mur ext / plafond lourds (L10) | K15: Total | L15: =SUM(L7:L14) -> 0
B16: Mur ext / Terasse (L10)
B17: Mur ext / plafond léger (L10) | F17: =IF(Saisies!G23="Sans plancher haut (mitoyen)",0,'surface auto'!AR8) ->  | G17: =INDEX('BDD typo'!$B$5:$AQ$16,'BDD typo'!$A$1,31) ->  | H17: =F17*G17 -> 
B18: Refend / plancher ext/lnc PSI ou PSI1 (L8)
B19: Refend / plancher ext/lnc PS2 ou PSI3 (L8)
B20: Refend / plafond ext/lnc PSI ou PSI1 (L10)
B21: Refend / plancher ext/lnc PS2 ou PSI3 (L10)
B22: Refend / plafond léger
B23: Divers (L8)
B24: Divers (L9)
B25: Divers (L10)
B26: Autre Liaison Divers
B27: Terre plein (L8) | F27: =IF(Saisies!E23="Sans plancher bas (mitoyen)",0,'surface auto'!AR8) ->  | G27: =INDEX('BDD typo'!$B$5:$AQ$16,'BDD typo'!$A$1,41) ->  | H27: =F27*G27 -> 
B28: Pont Thermique ponctuel 3D
C29: TOTAL L8 | D29: TOTAL L9 | E29: TOTAL L10 | H29: =SUM(H7:H28) -> 
B30: longueur | C30: =IF(Chauffage!H20=0,Saisies!F66,F$12+F$18+F$19+F$23+F$27) -> 0 | D30: =IF(Chauffage!H20=0,Saisies!F67,F$13+F$14+F$24) -> 0 | E30: =IF(Chauffage!H20=0,Saisies!F68,0) -> 0
B31: Déperditions | C31: =IF(Chauffage!H20=0,L7,H12) -> 0 | D31: =IF(Chauffage!H20=0,L8,H13) -> 0 | E31: =IF(Chauffage!H20=0,L9,H17) -> 0
C32: Déperditions totales des ponts thermiques (W/K) | E32: =IF(H29>0,H29,SUM(E7:E28)) ->  | F32: resultat calcul pht auto
C34: Ponts thermiques Ubat | E34: =C31+D31+E31 -> 0
C35: Ponts thermiques Ubat ref
B43: Catalogue des ponts thermiques en fonction de la typologie du bâti
E45: Bâti ancien | I45: Bâti récent
E46: 1850-1914 | G46: 1914-1945 | I46: 1945-1988 | K46: >1988
E47: ind | F47: collectif | G47: ind | H47: collectif | I47: ind | J47: collectif | K47: ind | L47: collectif
B48: Facade/plancher | C48: Plancher bas (L8) | D48: Sur terre plein | E48: =(0.22+0.15)/2 -> 0.185 | F48: =E48 -> 0.185 | G48: =E48 -> 0.185 | H48: =G48 -> 0.185 | I48: 0.05 | J48: 0.05 | K48: 0.05 | L48: 0.05
D49: Sur local non chauffé | E49: =(0.22*2+0.3)/3 -> 0.2466666667 | F49: =E49 -> 0.2466666667 | G49: =E49 -> 0.2466666667 | H49: =G49 -> 0.2466666667 | I49: =(0.7+0.6)/2 -> 0.65 | J49: 0.65 | K49: 0.65 | L49: 0.65
D50: Sur vide sanitaire | E50: =(0.2*2+0.3)/3 -> 0.2333333333 | F50: =E50 -> 0.2333333333 | G50: =E50 -> 0.2333333333 | H50: =G50 -> 0.2333333333 | I50: =(0.7+0.6)/2 -> 0.65 | J50: 0.65 | K50: 0.65 | L50: 0.65
C51: Plancher intermédiaire (L9) | D51: Courant | E51: =(0.82+0.55+0.65)/3 -> 0.6733333333 | F51: =(0.82+0.55)/2 -> 0.685 | G51: =(0.82+0.55+0.65)/3 -> 0.6733333333 | H51: =(0.54+0.42)/2 -> 0.48 | I51: =(0.82+0.57)/2 -> 0.695 | J51: 0.695 | K51: =(0.82+0.57)/2 -> 0.695 | L51: 0.695
C52: Plancher haut (L10) | D52: Léger sur local non chauffé | E52: 0.14 | F52: 0.14 | G52: 0.14 | H52: 0.14 | I52: 0.1 | J52: 0.1 | K52: 0.1 | L52: 0.1
D53: Couverture | E53: 0.05 | F53: 0.05 | G53: 0.05 | H53: 0.05 | I53: 0.05 | J53: 0.05 | K53: 0.05 | L53: 0.05
B54: Refend/plancher | C54: Plancher bas (L8) | D54: Sur terre plein | E54: =(0.1+0.03+0.02) -> 0.15 | F54: 0.1 | G54: =E54 -> 0.15 | H54: =F54 -> 0.1 | I54: 0.12 | J54: 0.12 | K54: 0.12 | L54: 0.12
D55: Sur local non chauffé | E55: 0.09 | F55: 0.09 | G55: 0.09 | H55: 0.09 | I55: 0.09 | J55: 0.09 | K55: 0.09 | L55: 0.09
D56: Sur vide sanitaire | E56: =(1.05+0.37+0.33)/3 -> 0.5833333333 | F56: 1.05 | G56: =E56 -> 0.5833333333 | H56: 0.76 | I56: 0.73 | J56: 0.73 | K56: 0.73 | L56: 0.73
D57: refend mitoyen local non chauffé | E57: =(1.2+0.6)/2 -> 0.9 | F57: 0.9 | G57: 0.9 | H57: 0.9 | I57: 0.82 | J57: 0.82 | K57: 0.82 | L57: 0.82
C58: Plancher haut (L10) | D58: Léger sur local non chauffé | E58: 0.55 | F58: 0.55 | G58: 0.55 | H58: 0.55 | I58: 0.72 | J58: 0.72 | K58: 0.72 | L58: 0.72
B59: facade/refend et angles | C59: refend et mitoyen | D59: refend | E59: =(1.03+0.58+0.44+0.85+0.33+0.27+1.15+0.29+0.09)/9 -> 0.5588888889 | F59: 1.03 | G59: =E59 -> 0.5588888889 | H59: =1.03 -> 1.03 | I59: =(0.41+0.35+0.2)/3 -> 0.32 | J59: 0.32 | K59: 0.32 | L59: 0.32
D60: mitoyen | E60: =(1.22+0.88+0.71+0.57+1.38+0.62)/6 -> 0.8966666667 | F60: 1.22 | G60: =E60 -> 0.8966666667 | H60: 1.22 | I60: =(0.7+0.45+0.038+0.36)/4 -> 0.387 | J60: =I60 -> 0.387 | K60: =J60 -> 0.387 | L60: 0.387
C61: angles | D61: sortant | E61: =(0.37+0.21+0)/3 -> 0.1933333333 | F61: 0.37 | G61: =E61 -> 0.1933333333 | H61: 0.37 | I61: 0.03 | J61: =I61 -> 0.03 | K61: 0.03 | L61: 0.03
D62: rentrant | E62: =(0.73+0.33+0.04)/3 -> 0.3666666667 | F62: 0.73 | G62: =E62 -> 0.3666666667 | H62: 0.73 | I62: 0.12 | J62: =I62 -> 0.12 | K62: 0.12 | L62: 0.12
B63: Sources : Guide ABC de POUJEt + RT 2005

Sheet surface auto (hidden)
Q1: murs | U1: vitrage | X1: Ubat saisie intermédiaire | AF1: Ubat saisie rapide | AO1: surface toit incliné | AP1: =IF(AQ3="faux",IF(AQ2=1.5,(Saisies!E11*0.5)*1.4,(Saisies!E11/Saisies!E7)*1.4),0) -> 0 | AQ1: comble perdus?
B2: Mur sur local non chauffé | C2: déper portes | D2: surface porte def | E2: u porte | G2: nombre de linéiques par bâtiment | P2: =VLOOKUP(Saisies!$E$6,'BDD typo'!$B$5:$C$10,2,FALSE) ->  | Q2: Mauvaise isolation | R2: Isolation moyenne | T2: =VLOOKUP(Saisies!$E$6,'BDD typo'!$B$5:$C$10,2,FALSE) ->  | U2: Mauvaise isolation | V2: Isolation moyenne | AO2: surface comble | AP2: =IF(AQ3="vrai",Saisies!E11/Saisies!E7,0) ->  | AQ2: =Saisies!E7 -> 0
B3: =IF(OR(Saisies!F49<>0,Saisies!F50<>0,Saisies!F51<>0,Saisies!F52<>0),SUM(Saisies!I49:I52),'surface auto'!AP5*VLOOKUP(Saisies!E6,'BDD typo'!B5:G10,6,FALSE)) ->  | C3: =IF(OR(Saisies!F39<>0,Saisies!F40<>0),SUM(Saisies!I39:I40),D3*E3) ->  | D3: =0.9*2.1 -> 1.89 | E3: =INDEX('BDD typo'!AR5:AR10,'surface auto'!P11,1) ->  | G3: angle-mext-sortant | H3: angle-mext-rentrant | I3: nb plancher inter | J3: mext-refend | P3: Maison individuelle avant 48 | Q3: ='BDD typo'!G5 -> 2 | R3: ='BDD typo'!H5 -> 1 | T3: Maison individuelle avant 48 | U3: 3.5 | V3: 2.5 | Y3: Murs extérieur | AC3: Murs intérieurs | AG3: =Saisies!$M$165 -> 0 | AH3: Déperditions murs | AI3: =AG3 -> 0 | AJ3: périmetre (m) | AK3: Toiture | AO3: Surface toiture | AP3: =IF(AP1=0,AP2,AP1) ->  | AQ3: =IF(AQ2-INT(AQ2)=0,"vrai","faux") -> vrai
G4: =INDEX(Saisies!M166:'Saisies'!O169,Saisies!M165,2) ->  | H4: =INDEX(Saisies!M166:'Saisies'!O169,Saisies!M165,3) ->  | I4: =Saisies!E7-1 -> -1 | J4: =G4-2 ->  | P4: Maison individuelle entre 49 et 74 | Q4: 1.8 | R4: 0.9 | T4: Maison individuelle entre 49 et 74 | U4: 3.5 | V4: 2.5 | Y4: Surface/longueur | Z4: U | AA4: Déperditions | AC4: Surface/longueur | AD4: Déperditions | AF4: surface de murs nord | AG4: =INDEX($AP$11:$AS$14,$AG$3,1) ->  | AH4: =AG4*IF(Saisies!$E$22="Mauvaise isolation",VLOOKUP(Saisies!$E$6,'surface auto'!$P$3:$Q$8,2,FALSE),VLOOKUP(Saisies!$E$6,'surface auto'!$P$3:$R$8,3,FALSE)) ->  | AI4: Carré - Rectangle | AJ4: =(SQRT(Saisies!$E$11/Saisies!$E$7))*4 ->  | AK4: Surface | AL4: U | AM4: Déperditions | AO4: surface plancher | AP4: =Saisies!E11/Saisies!E7 -> 
P5: maison individuelle entre 75 et 88 | Q5: 1 | R5: 0.8 | T5: maison individuelle entre 75 et 88 | U5: 3 | V5: 2.1 | X5: Mur Nord | Y5: =Saisies!F41+Saisies!F42 -> 0 | Z5: =(Saisies!E41*Saisies!F41+Saisies!E42*Saisies!F42)/(Saisies!F41+Saisies!F42) ->  | AA5: =IFERROR(Y5*Z5,0) -> 0 | AC5: =Saisies!F49+Saisies!F50+Saisies!F51+Saisies!F52 -> 0 | AD5: =Saisies!I49+Saisies!I50+Saisies!I51+Saisies!I52 -> 0 | AF5: surface de murs sud | AG5: =INDEX($AP$11:$AS$14,$AG$3,2) ->  | AH5: =AG5*IF(Saisies!$E$22="Mauvaise isolation",VLOOKUP(Saisies!$E$6,'surface auto'!$P$3:$Q$8,2,FALSE),VLOOKUP(Saisies!$E$6,'surface auto'!$P$3:$R$8,3,FALSE)) ->  | AI5: Peu découpé | AJ5: =$AJ$4*1.2 ->  | AK5: =IF(U46=0,0,AP3) ->  | AL5: =U46 ->  | AM5: =AK5*AL5 ->  | AO5: surface murs intérieurs | AP5: =((INDEX(AJ4:AJ7,AG3,1)/4)*2.5)/2 -> 
B6: Saisies Systèmes | P6: maison individuelle entre 89 et 2005 | Q6: 0.5 | R6: 0.35 | T6: maison individuelle entre 89 et 2005 | U6: 2.5 | V6: 1.9 | X6: Mur Sud | Y6: =Saisies!F43+Saisies!F44 -> 0 | Z6: =(Saisies!E43*Saisies!F43+Saisies!E44*Saisies!F44)/(Saisies!F43+Saisies!F44) ->  | AA6: =IFERROR(Y6*Z6,0) -> 0 | AF6: surace de murs est | AG6: =INDEX($AP$11:$AS$14,$AG$3,3) ->  | AH6: =AG6*IF(Saisies!$E$22="Mauvaise isolation",VLOOKUP(Saisies!$E$6,'surface auto'!$P$3:$Q$8,2,FALSE),VLOOKUP(Saisies!$E$6,'surface auto'!$P$3:$R$8,3,FALSE)) ->  | AI6: très découpé | AJ6: =$AJ$5*1.25 -> 
B7: Chauffage | E7: Chauffage appoint | H7: ECS | X7: Mur Est | Y7: =Saisies!F45+Saisies!F46 -> 0 | Z7: =(Saisies!E45*Saisies!F45+Saisies!E46*Saisies!F46)/(Saisies!F45+Saisies!F46) ->  | AA7: =IFERROR(Y7*Z7,0) -> 0 | AC7: Toiture | AF7: surface de murs ouest | AG7: =INDEX($AP$11:$AS$14,$AG$3,4) ->  | AH7: =AG7*IF(Saisies!$E$22="Mauvaise isolation",VLOOKUP(Saisies!$E$6,'surface auto'!$P$3:$Q$8,2,FALSE),VLOOKUP(Saisies!$E$6,'surface auto'!$P$3:$R$8,3,FALSE)) ->  | AI7: autres.. | AJ7: =AJ5*1.5 ->  | AO7: murs | AU7: Mitoyenneté
B8: Chauffage | C8: =IF(Chauffage!H20=2,INDEX(Chauffage!H36:H37,Chauffage!H35,1),Chauffage!H36) -> Chauffage individuel | E8: Chauffage | F8: =C8 -> Chauffage individuel | H8: Système | I8: =IF(Chauffage!H20=0,INDEX(Chauffage!A92:A99,Chauffage!A91,1),INDEX(Chauffage!A165:A170,Chauffage!A164,1)) ->  | X8: Mur Ouest | Y8: =Saisies!F48+Saisies!F47 -> 0 | Z8: =(Saisies!E48*Saisies!F48+Saisies!E47*Saisies!F47)/(Saisies!F47+Saisies!F48) ->  | AA8: =IFERROR(Y8*Z8,0) -> 0 | AC8: Surface/longueur | AD8: Déperditions | AF8: Total surface de murs | AG8: =SUM(AG4:AG7)-AH15 ->  | AH8: =AH4+AH5+AH6+AH7 ->  | AO8: hauteur mur | AQ8: perimetre retenu | AR8: =INDEX(AI4:AJ7,AI3,2) ->  | AW8: Pourcentage de paroie déperditive en moins
B9: Emission | C9: =IF(Chauffage!H20=0,INDEX(Chauffage!A36:A40,Chauffage!B35,1),INDEX(Chauffage!A129:A133,Chauffage!B128,1)) ->  | E9: Emission | F9: =IF(Chauffage!H20=0,INDEX(Chauffage!A65:A68,Chauffage!B64,1),"Emission auto") ->  | H9: Energie principale ECS | I9: =IF(Chauffage!H20=0,INDEX(Chauffage!G92:G97,Chauffage!A91),INDEX(Chauffage!E165:E170,Chauffage!A164)) ->  | Y9: =SUM(Y5:Y8) -> 0 | AA9: =SUM(AA5:AA8) -> 0 | AC9: =SUM(Saisies!F53:F56) -> 0 | AD9: =Saisies!I53+Saisies!I54+Saisies!I55+Saisies!I56 -> 0 | AO9: =ROUNDDOWN(Saisies!E7,0)*Saisies!E17 -> 0 | AU9: Numéro de ligne | AV9: Indépendant | AW9: 0 | AX9: =1-AW9 -> 1
B10: Rendement | C10: =IF(Chauffage!H20=0,INDEX(Chauffage!A36:B40,Chauffage!B35,2),INDEX(Chauffage!B129:B133,Chauffage!B128,1)) ->  | E10: Rendement | F10: =IF(Chauffage!H20=0,INDEX(Chauffage!A65:B68,Chauffage!B64,2),95) ->  | H10: Rendement global | I10: =IF(Chauffage!H20=0,IF(Chauffage!A91=2,C14*(I11/100),I11),IF(Chauffage!A164=2,C14*(I11/100),I11)) ->  | O10: Type de plancher | P10: Plancher | X10: Vitrages | AI10: U | AJ10: Déperditions vitrages | AP10: snord | AQ10: ssud | AR10: souest | AS10: sest | AU10: =Saisies!$P$166 -> 0 | AV10: 1 petit coté | AW10: 0.2 | AX10: 0.8
B11: Distribution | C11: =IF(Chauffage!H20=0,INDEX(Chauffage!A43:C46,Chauffage!D42,1),INDEX(Chauffage!B136:B138,Chauffage!A135,1)) ->  | E11: Distribution | F11: =IF(Chauffage!H20=0,IF(Chauffage!E77=1,Chauffage!A75,IF(Chauffage!E77=2,Chauffage!A74,Chauffage!A73)),"Distribution auto") -> Tuyaux non calorifugées | H11: rendement ballon | I11: =IF(Chauffage!H20=0,Chauffage!G91,Chauffage!I164) ->  | O11: =Saisies!E23 -> 0 | P11: =VLOOKUP(Saisies!$E$6,'BDD typo'!$B$5:$C$10,2,FALSE) ->  | Q11: Mauvaise isolation | S11: Isolation moyenne | U11: Mauvaise isolation | V11: Isolation moyenne | Y11: Surface/longueur | Z11: U | AA11: Déperditions | AC11: Plancher | AF11: surface vitrée Nord | AG11: =VLOOKUP(Saisies!$E$6,'BDD typo'!$B$5:$V$10,18,FALSE) ->  | AH11: =AG11*AH15 ->  | AI11: =IF(Saisies!$E$22="Mauvaise isolation",VLOOKUP(Saisies!$E$6,'surface auto'!$T$3:$U$8,2,FALSE),VLOOKUP(Saisies!$E$6,'surface auto'!$T$3:$V$8,3,FALSE)) ->  | AJ11: =AH11*AI11 ->  | AO11: =AI4 -> Carré - Rectangle | AP11: =IF(AU10=1,AJ4/4*AO9,(AJ4/4*AO9)*INDEX(AX9:AX14,AU10,1)) ->  | AQ11: =AP11 ->  | AR11: =AQ11 ->  | AS11: =AR11 ->  | AV11: 2 petits cotés | AW11: 0.4 | AX11: 0.6
B12: Rendement | C12: =IF(Chauffage!H20=0,INDEX(Chauffage!B43:B46,Chauffage!D42,1),INDEX(Chauffage!C136:C138,Chauffage!A135,1)) ->  | E12: Rendement | F12: =IF(Chauffage!H20=0,IF(F17="Electricité",100,IF(Chauffage!E77=1,Chauffage!B75,IF(Chauffage!E77=2,Chauffage!B74,Chauffage!B73))),95) ->  | P12: Maison individuelle avant 48 | Q12: Vide Sanitaire | R12: 0.9 | S12: Vide Sanitaire | T12: 0.25 | U12: =IF(AND(P11=1,O11="Vide Sanitaire"),R12,IF(AND(P11=1,O11="Terre Plein"),R13,0)) ->  | V12: =IF(AND(P11=1,O11="Vide Sanitaire"),T12,IF(AND(P11=1,O11="Terre Plein"),T13,0)) ->  | X12: Nord | Y12: =Saisies!F31+Saisies!F32 -> 0 | Z12: =(Saisies!E31*Saisies!F31+Saisies!E32*Saisies!F32)/(Saisies!F31+Saisies!F32) ->  | AA12: =IFERROR(Y12*Z12,0) -> 0 | AC12: Surface/longueur | AD12: Déperditions | AF12: surface vitrée Sud | AG12: =VLOOKUP(Saisies!$E$6,'BDD typo'!$B$5:$V$10,18,FALSE) ->  | AH12: =AG12*AH15 ->  | AI12: =IF(Saisies!$E$22="Mauvaise isolation",VLOOKUP(Saisies!$E$6,'surface auto'!$T$3:$U$8,2,FALSE),VLOOKUP(Saisies!$E$6,'surface auto'!$T$3:$V$8,3,FALSE)) ->  | AJ12: =AH12*AI12 ->  | AO12: =AI5 -> Peu découpé | AP12: =IF(AU10=1,AJ5/4*AO9,(AJ5/4*AO9)*INDEX(AX9:AX14,AU10,1)) ->  | AQ12: =AP12 ->  | AR12: =AP12 ->  | AS12: =AP12 ->  | AV12: 1 petit et 1 grand | AW12: 0.5 | AX12: 0.5
B13: Système | C13: =IF(Chauffage!H20=0,INDEX(Chauffage!H42:H51,Chauffage!H41,1),INDEX(Chauffage!H135:H143,Chauffage!H134,1)) ->  | E13: système | F13: =IF(Chauffage!H20=0,INDEX(Chauffage!H71:H80,Chauffage!H70,1),"Emission auto") ->  | H13: VMC | O13: Vide Sanitaire | Q13: Terre plein | R13: 0.6 | S13: Terre plein | T13: 0.25 | X13: Sud | Y13: =Saisies!F33+Saisies!F34 -> 0 | Z13: =(Saisies!E33*Saisies!F33+Saisies!F34*Saisies!E34)/(Saisies!F33+Saisies!F34) ->  | AA13: =IFERROR(Y13*Z13,0) -> 0 | AC13: =Saisies!F57+Saisies!F58+Saisies!F59+Saisies!F60+Saisies!F61+Saisies!F62+Saisies!F63+Saisies!F64 -> 0 | AD13: =SUM(Saisies!I57:I64) -> 0 | AF13: surface vitrée Est | AG13: =VLOOKUP(Saisies!$E$6,'BDD typo'!$B$5:$V$10,18,FALSE) ->  | AH13: =AG13*AH15 ->  | AI13: =IF(Saisies!$E$22="Mauvaise isolation",VLOOKUP(Saisies!$E$6,'surface auto'!$T$3:$U$8,2,FALSE),VLOOKUP(Saisies!$E$6,'surface auto'!$T$3:$V$8,3,FALSE)) ->  | AJ13: =AH13*AI13 ->  | AO13: =AI6 -> très découpé | AP13: =IF(AU10=1,AJ6/4*AO9,(AJ6/4*AO9)*INDEX(AX9:AX14,AU10,1)) ->  | AQ13: =AP13 ->  | AR13: =AP13 ->  | AS13: =AP13 ->  | AV13: 1 grand coté | AW13: 0.3 | AX13: 0.7
B14: Rendement | C14: =IF(Calcul!L68<>0,Calcul!L68,IF(Chauffage!H20=0,IF(Calcul!L68<>0,Calcul!L68,IF(Chauffage!E42=1,INDEX(Chauffage!I42:I51,Chauffage!H41,1),IF(Chauffage!E42=2,INDEX(Chauffage!H42:J51,Chauffage!H41,3),IF(Chauffage!E42=3,INDEX(Chauffage!H42:K51,Chauffage!H41,4),0)))),INDEX(Chauffage!I135:I143,Chauffage!H134,1))) -> 0 | E14: PRODUCTION | F14: =Chauffage!I83 ->  | H14: Type de renouvellement d'air | I14: =INDEX(Ventilation!C35:C46,Ventilation!B35,1) ->  | O14: Terre plein | P14: Maison individuelle entre 49 et 74 | Q14: Vide Sanitaire | R14: 0.9 | S14: Vide Sanitaire | T14: 0.3 | U14: =IF(AND(P11=2,O11="Vide Sanitaire"),R14,IF(AND(P11=2,O11="Terre Plein"),R15,0)) ->  | V14: =IF(AND(P11=2,O11="Vide Sanitaire"),T14,IF(AND(P11=2,O11="Terre Plein"),T15,0)) ->  | X14: Est | Y14: =Saisies!F35+Saisies!F36 -> 0 | Z14: =(Saisies!E35*Saisies!F35+Saisies!E36*Saisies!F36)/(Saisies!F35+Saisies!F36) ->  | AA14: =IFERROR(Y14*Z14,0) -> 0 | AF14: surface vitrée Ouest | AG14: =VLOOKUP(Saisies!$E$6,'BDD typo'!$B$5:$V$10,18,FALSE) ->  | AH14: =AG14*AH15 ->  | AI14: =IF(Saisies!$E$22="Mauvaise isolation",VLOOKUP(Saisies!$E$6,'surface auto'!$T$3:$U$8,2,FALSE),VLOOKUP(Saisies!$E$6,'surface auto'!$T$3:$V$8,3,FALSE)) ->  | AJ14: =AH14*AI14 ->  | AK14: Plancher | AO14: =AI7 -> autres.. | AP14: =IF(AU10=1,AJ7/4*AO9,(AJ7/4*AO9)*INDEX(AX9:AX14,AU10,1)) ->  | AQ14: =AP14 ->  | AR14: =AP14 ->  | AS14: =AP14 ->  | AV14: 2 grands cotés | AW14: 0.6 | AX14: 0.4
B15: Régulation | C15: =IF(Chauffage!H20=0,IF(Chauffage!E42=1,Chauffage!E75,IF(Chauffage!E42=2,Chauffage!E74,Chauffage!E73)),"Régulation auto") -> Régulation + plancher chauffant, ou Emetteur ne permettant pas un arrêt total de l'émission | E15: Régulation | F15: auto | O15: Sans plancher bas (mitoyen) | Q15: Terre plein | R15: 0.6 | S15: Terre plein | T15: 0.22 | X15: Ouest | Y15: =Saisies!F37+Saisies!F38 -> 0 | Z15: =(Saisies!E37*Saisies!F37+Saisies!E38*Saisies!F38)/(Saisies!F37+Saisies!F38) ->  | AA15: =IFERROR(Y15*Z15,0) -> 0 | AC15: Portes | AG15: Surface totale vitrages | AH15: =1/6*Saisies!E11 -> 0 | AI15: F8 est égale à 1/6 surface vitrée/surface totale | AJ15: =AJ11+AJ12+AJ13+AJ14 ->  | AK15: Surface | AL15: U | AM15: Déperditions
B16: Rendement | C16: =IF(Chauffage!H20=0,INDEX(Chauffage!G26:G29,Chauffage!G25,1),95) ->  | E16: Rendement | F16: =IF(Chauffage!H20=0,IF(Chauffage!E77=1,94,IF(Chauffage!E77=2,92,88)),94) -> 88 | P16: maison individuelle entre 75 et 88 | Q16: Vide Sanitaire | R16: 0.9 | S16: Vide Sanitaire | T16: 0.25 | U16: =IF(AND(P11=3,O11="Vide Sanitaire"),R16,IF(AND(P11=3,O11="Terre Plein"),R17,0)) ->  | V16: =IF(AND(P11=3,O11="Vide Sanitaire"),T16,IF(AND(P11=3,O11="Terre Plein"),T17,0)) ->  | X16: Autre | Y16: =Saisies!F30 -> 0 | Z16: =Saisies!E30 ->  | AA16: =IFERROR(Y16*Z16,0) -> 0 | AC16: Surface/longueur | AD16: Déperditions | AK16: =IF(U26=0,0,AP4) ->  | AL16: =U26 ->  | AM16: =AK16*AL16 -> 
B17: Combustible Chauffage | C17: =IF(Chauffage!H20=0,INDEX('Tarif combustible'!B3:B9,'Tarif combustible'!C17,1),INDEX('Tarif combustible'!B3:H9,'Tarif combustible'!D17,1)) ->  | E17: Energie Appoint chauffage | F17: =IF(Chauffage!H20=0,INDEX('Tarif combustible'!B3:B11,'Tarif combustible'!C18,1),INDEX(Chauffage!F152:F158,Chauffage!G151,1)) ->  | Q17: Terre plein | R17: 0.4 | S17: Terre plein | T17: 0.22 | Y17: =SUM(Y12:Y16) -> 0 | Z17: Total | AA17: =SUM(AA12:AA16) -> 0 | AC17: =Saisies!F39+Saisies!F40 -> 0 | AD17: =Saisies!I39+Saisies!I40 -> 0
B18: Rendement global | C18: =(C14/100)*(C12/100)*(C10/100)*(C16/100) ->  | E18: Rendement global | F18: =(F10/100)*(F12/100)*(F16/100)*(F14/100) ->  | P18: maison individuelle entre 89 et 2005 | Q18: Vide Sanitaire | R18: 0.6 | S18: Vide Sanitaire | T18: 0.2 | U18: =IF(AND(P11=4,O11="Vide Sanitaire"),R18,IF(AND(P11=4,O11="Terre Plein"),R19,0)) ->  | V18: =IF(AND(P11=4,O11="Vide Sanitaire"),T18,IF(AND(P11=4,O11="Terre Plein"),T19,0)) ->  | X18: Déperditions totales | Y18: =AA9+AA17+AD5+AD9+AD13+AD17+'Pont thermique'!E34 -> 0 | Z18: Ubat | AA18: =IFERROR(IF(Chauffage!H20=1,0,Y18/Y19),0) -> 0 | AF18: Portes
Q19: Terre plein | R19: 0.4 | S19: Terre plein | T19: 0.2 | X19: Surface totale | Y19: =Y17+Y9+AC17+AC13+AC9+AC5 -> 0 | AF19: Surface | AG19: U | AH19: Déperditions
X20: hors plancher | Y20: =Y19-AC13 -> 0 | AF20: =0.9*2.1 -> 1.89 | AG20: 2.5 | AH20: =AF20*AG20 -> 4.725
B21: Aucune étanchéité à l'air (Q4 = 3) | C21: 3 | X21: Deper + pth autres | Y21: =AA9+AA17+AD5+AD9+AD13+AD17+'Pont thermique'!L15 -> 0 | Z21: Ubat tot | AA21: =IFERROR(IF(Chauffage!H20=1,0,Y21/Y19),0) -> 0
B22: mauvaise étanchéité (Q4 = 2) | C22: 2 | AF22: Mur intérieur
B23: Bonne étanchéité (Q4 = 1,2 | C23: 1.2 | F23: Présence d'un système solaire réalisant une part des consommations | AF23: Surface | AG23: U | AH23: Petit b | AI23: Déperditions
B24: Etanchéité à l'air traité Q4 = 0,8 | C24: 0.8 | G24: Saisie simp | H24: Saisie int | T24: Valeur retenue | U24: =SUM(U12:U23) ->  | V24: =SUM(V12:V23) ->  | X24: u | Z24: u | AB24: u | AC24: u | AF24: =AP5 ->  | AG24: =IF(Saisies!$E$22="Mauvaise isolation",VLOOKUP(Saisies!$E$6,'surface auto'!$P$3:$Q$8,2,FALSE),VLOOKUP(Saisies!$E$6,'surface auto'!$P$3:$R$8,3,FALSE)) ->  | AH24: =0.8 -> 0.8 | AI24: =AF24*AG24*AH24 -> 
B25: autres.. Valeur perso | C25: =IF(A21<5,INDEX(C21:C24,A21,1),"saisir valeur ici") ->  | F25: Chauff | G25: =IF(Chauffage!G151=6,"Solaire","NON") -> NON | H25: =IF(Chauffage!H70=10,"Solaire","NON") -> NON | X25: =(Saisies!E49*Saisies!F49+Saisies!E50*Saisies!F50+Saisies!E51*Saisies!F51+Saisies!E52*Saisies!F52)/(Saisies!F49+Saisies!F50+Saisies!F51+Saisies!F52) ->  | Z25: =(Saisies!E53*Saisies!F53+Saisies!E54*Saisies!F54+Saisies!E55*Saisies!F55+Saisies!E56*Saisies!F56)/(Saisies!F53+Saisies!F54+Saisies!F55+Saisies!F56) ->  | AB25: =(Saisies!E57*Saisies!F57+Saisies!E58*Saisies!F58+Saisies!E59*Saisies!F59+Saisies!E60*Saisies!F60+Saisies!E61*Saisies!F61+Saisies!E62*Saisies!F62+Saisies!E63*Saisies!F63+Saisies!E64*Saisies!F64)/(Saisies!F57+Saisies!F58+Saisies!F59+Saisies!F60+Saisies!F61+Saisies!F62+Saisies!F63+Saisies!F64) ->  | AC25: =(Saisies!E39*Saisies!F39+Saisies!E40*Saisies!F40)/(Saisies!F39+Saisies!F40) ->  | AK25: Ubat | AL25: =(AI26+'Pont thermique'!E34)/AG26 -> 
F26: ECS | G26: =IF(Chauffage!A164=4,"Solaire","NON") -> NON | H26: =IF(Chauffage!A91=4,"Solaire","NON") -> NON | T26: Valeur du U de la paroie par typologie de bâtiment | U26: =IF(Saisies!E22="Mauvaise isolation",'surface auto'!U24,'surface auto'!V24) ->  | AF26: Surface totale | AG26: =AF20+AK5+AF24+AK16+AH15+AG8 ->  | AH26: deper totales | AI26: =AI24+AH20+AM16+AJ15+AH8+AM5 ->  | AK26: ubat tot | AL26: =(AI26+ 'Pont thermique'!H29)/AG26 -> 
F27: ECS | G27: =IF(Chauffage!A164=5,"Solaire","NON") -> NON | H27: =IF(Chauffage!A91=5,"Solaire","NON") -> NON | AF27: hors plancher | AG27: =AG26-AK16 -> 
F30: Production Solaire à soustraire aux consommations | O30: Type de toiture | P30: Toiture
F31: Chauffage | G31: =IF(AND(Chauffage!H20=1,'surface auto'!G25="Solaire"),SOLAIRE!G25*SOLAIRE!E3,IF(AND(Chauffage!H20=0,'surface auto'!H25="Solaire"),SOLAIRE!G25*SOLAIRE!E3,0)) -> 0 | O31: =Saisies!$G$23 -> 0 | P31: =VLOOKUP(Saisies!E6,'BDD typo'!B5:C10,2,FALSE) ->  | Q31: Mauvaise isolation | S31: Isolation moyenne | U31: Mauvaise isolation | V31: Isolation moyenne
F32: ECS | G32: =IF(AND(Chauffage!H20=1,OR('surface auto'!G26="Solaire",G27="Solaire")),SOLAIRE!H25,IF(AND(Chauffage!H20=0,OR('surface auto'!H26="Solaire",H27="Solaire")),SOLAIRE!H25,0)) -> 0 | P32: Maison individuelle avant 48 | Q32: Combles perdu | R32: =1.8*0.8 -> 1.44 | S32: Combles perdu | T32: =0.25*0.8 -> 0.2 | U32: =IF(AND(P31=1,O31="Combles perdu"),R32,IF(AND(P31=1,O31="Rampant"),R33,0)) ->  | V32: =IF(AND(P31=1,O31="Combles perdu"),T32,IF(AND(P31=1,O31="Rampant"),T33,0)) -> 
O33: Combles perdu | Q33: Rampant | R33: 0.5 | S33: Rampant | T33: =0.25 -> 0.25
O34: Rampant | P34: Maison individuelle entre 49 et 74 | Q34: Combles perdu | R34: =0.6*0.8 -> 0.48 | S34: Combles perdu | T34: 0.18 | U34: =IF(AND(P31=2,O31="Combles perdu"),R34,IF(AND(P31=2,O31="Rampant"),R35,0)) ->  | V34: =IF(AND(P31=2,Q34="Combles perdu"),T34,IF(AND(P31=2,Q34="Rampant"),T35,0)) -> 
O35: Sans plancher haut (mitoyen) | Q35: Rampant | R35: 0.5 | S35: Rampant | T35: 0.2
P36: maison individuelle entre 75 et 88 | Q36: Combles perdu | R36: =0.5*0.5 -> 0.25 | S36: Combles perdu | T36: 0.16 | U36: =IF(AND(P31=3,O31="Combles perdu"),R36,IF(AND(P31=3,O31="Rampant"),R37,0)) ->  | V36: =IF(AND(P31=3,Q36="Combles perdu"),T36,IF(AND(P31=3,Q36="Rampant"),T37,0)) -> 
Q37: Rampant | R37: 0.3 | S37: Rampant | T37: 0.18
P38: maison individuelle entre 89 et 2005 | Q38: Combles perdu | R38: =0.35*0.8 -> 0.28 | S38: Combles perdu | T38: 0.14 | U38: =IF(AND(P31=4,O31="Combles perdu"),R38,IF(AND(P31=4,O31="Rampant"),R39,0)) ->  | V38: =IF(AND(P31=4,Q38="Combles perdu"),T38,IF(AND(P31=4,Q38="Rampant"),T39,0)) -> 
Q39: Rampant | R39: 0.3 | S39: Rampant | T39: 0.16
A41: 0
T44: Valeur retenue | U44: =SUM(U32:U43) ->  | V44: =SUM(V32:V43) -> 
T46: Valeur du U de la paroie par typologie de bâtiment | U46: =IF(Saisies!E22="Mauvaise isolation",'surface auto'!U44,'surface auto'!V44) -> 

Sheet Chauffage (hidden)
A1: Calcul des besoins de chauffage
M2: CM = | N2: sse d'inertie | O2: Cm | P2: 3 | Q2: =INDEX(P3:P7,P2,1) -> 0 | T2: ti | U2: =((U3*U4)+(U5*U6))/24 -> 19.5
M3: =IF(Chauffage!H20=0,'surface auto'!AG26,'surface auto'!Y19) ->  | N3: Très légère | O3: 80 / 3,6 x ABât | P3: =80/3.6*M4 -> 0 | T3: tinor | U3: =Calcul!C12 -> 20
M4: =Saisies!E11 -> 0 | N4: Légère | O4: 110 / 3,6 x ABât | P4: =110/3.6*M4 -> 0 | T4: tnor | U4: =24-Calcul!N66 -> 18
A5: Mois | B5: APPORTS solaires | C5: apports eclairage + hommes | D5: q | E5: tmoy ext | F5: dt | G5: apports pertes | H5: apports tot | I5: n | J5: dju | K5: Qch (kWh) | N5: Moyenne | O5: 165 / 3,6 x ABât | P5: =165/3.6*M4 -> 0 | T5: tinuit | U5: =Calcul!C12-Calcul!N67 -> 18
A6: Janvier | B6: ='Apports solaires'!E68 ->  | C6: =(Calcul!$I$14*Calcul!$J$14*6.5*31)/1000++(Calcul!L15/12) -> 0 | D6: =IF(($O$15*$F6)=0,(B6+C6)/($O$15*($F6+0.0001)),(B6+C6)/($O$15*$F6)) ->  | E6: =INDEX('Liste communes'!AG20:AG29,'Liste communes'!A18,1) ->  | F6: =IF($U$2-E6<0,0,$U$2-E6) ->  | G6: =IF(J6>200,Calcul!$L$10/12,0) ->  | H6: =G6+B6+C6 ->  | I6: =(1-D6^$O$14)/(1-D6^($O$14+1)) ->  | J6: =INDEX('Liste communes'!F20:F29,'Liste communes'!A18,1) ->  | K6: =IF(((F6*J6*$O$15)/1000)-I6*H6>0,((F6*J6*$O$15)/1000)-I6*H6,0) ->  | L6: =F6*J6*$O$15/1000 ->  | N6: Lourde | O6: 260 / 3,6 x ABât | P6: =260/3.6*M4 -> 0 | R6: =IF(J6>200,31,0) ->  | T6: tnuit | U6: =Calcul!N66 -> 6 | V6: 6
A7: Février | B7: ='Apports solaires'!M68 ->  | C7: =(Calcul!$I$14*Calcul!$J$14*6.5*28)/1000+(Calcul!L15/12) -> 0 | D7: =IF(($O$15*$F7)=0,(B7+C7)/($O$15*($F7+0.0001)),(B7+C7)/($O$15*$F7)) ->  | E7: =INDEX('Liste communes'!AH20:AH29,'Liste communes'!A18,1) ->  | G7: =IF(J7>200,Calcul!$L$10/12,0) ->  | H7: =G7+B7+C7 ->  | I7: =(1-D7^$O$14)/(1-D7^($O$14+1)) ->  | J7: =INDEX('Liste communes'!G20:G29,'Liste communes'!A18,1) ->  | K7: =IF(((F7*J7*$O$15)/1000)-I7*H7>0,((F7*J7*$O$15)/1000)-I7*H7,0) ->  | N7: Très lourde | O7: 370 / 3,6 x ABât | P7: =370/3.6*M4 -> 0 | R7: =IF(J7>200,28,0) -> 
A8: Mars | B8: ='Apports solaires'!U68 ->  | C8: =(Calcul!$I$14*Calcul!$J$14*6*31)/1000+(Calcul!L15/12) -> 0 | E8: =INDEX('Liste communes'!AI20:AI29,'Liste communes'!A18,1) ->  | G8: =IF(J8>200,Calcul!$L$10/12,0) ->  | J8: =INDEX('Liste communes'!H20:H29,'Liste communes'!A18,1) ->  | R8: =IF(J8>200,31,0) -> 
A9: Avril | B9: ='Apports solaires'!AC68 ->  | C9: =(Calcul!$I$14*Calcul!$J$14*5*30)/1000+(Calcul!L15/12) -> 0 | E9: =INDEX('Liste communes'!AJ20:AJ29,'Liste communes'!A18,1) ->  | G9: =IF(J9>200,Calcul!$L$10/12,0) ->  | J9: =INDEX('Liste communes'!I20:I29,'Liste communes'!A18,1) ->  | K9: =IF(((F9*J9*$O$15)/1000)-I9*H9>0,((F9*J9*$O$15)/1000)-I9*H9,0) ->  | M9: QG | R9: =IF(J9>200,30,0) -> 
A10: Mai | B10: ='Apports solaires'!BI68 ->  | C10: =(Calcul!$I$14*Calcul!$J$14*4*31)/1000+(Calcul!L15/12) -> 0 | E10: =INDEX('Liste communes'!AK20:AK29,'Liste communes'!A18,1) ->  | G10: =IF(J10>200,Calcul!$L$10/12,0) ->  | J10: =INDEX('Liste communes'!J20:J29,'Liste communes'!A18,1) ->  | L10: =F10*J10*$O$15/1000 ->  | M10: q | N10: apportswh/(H*dt) | R10: =IF(J10>200,31,0) -> 
A11: Juin | B11: ='Apports solaires'!BQ68 ->  | C11: =(Calcul!$I$14*Calcul!$J$14*4*30)/1000+(Calcul!L15/12) -> 0 | E11: =INDEX('Liste communes'!AL20:AL29,'Liste communes'!A18,1) ->  | G11: =IF(J11>200,Calcul!$L$10/12,0) ->  | J11: =INDEX('Liste communes'!K20:K29,'Liste communes'!A18,1) ->  | M11: si q<>1 n = | N11: n = (1 - qa) / (1 - qa+1) | R11: =IF(J11>200,30,0) -> 
A12: Juillet | B12: ='Apports solaires'!BY68 ->  | C12: =(Calcul!$I$14*Calcul!$J$14*3*31)/1000+(Calcul!L15/12) -> 0 | E12: =INDEX('Liste communes'!AM20:AM29,'Liste communes'!A18,1) ->  | G12: =IF(J12>200,Calcul!$L$10/12,0) ->  | J12: =INDEX('Liste communes'!L20:L29,'Liste communes'!A18,1) ->  | M12: si q=1 n = | N12: a/(a+1) | R12: =IF(J12>200,31,0) -> 
A13: Août | B13: ='Apports solaires'!CG68 ->  | C13: =(Calcul!$I$14*Calcul!$J$14*4*31)/1000+(Calcul!L15/12) -> 0 | E13: =INDEX('Liste communes'!AN20:AN29,'Liste communes'!A18,1) ->  | G13: =IF(J13>200,Calcul!$L$10/12,0) ->  | J13: =INDEX('Liste communes'!M20:M29,'Liste communes'!A18,1) ->  | M13: t=cm/h | O13: =Q2/O15 ->  | R13: =IF(J13>200,31,0) -> 
A14: Septembre | B14: ='Apports solaires'!CO68 ->  | C14: =(Calcul!$I$14*Calcul!$J$14*4*30)/1000+(Calcul!L15/12) -> 0 | E14: =INDEX('Liste communes'!AO20:AO29,'Liste communes'!A18,1) ->  | G14: =IF(J14>200,Calcul!$L$10/12,0) ->  | J14: =INDEX('Liste communes'!N20:N29,'Liste communes'!A18,1) ->  | M14: a= | O14: =1+O13/16 ->  | R14: =IF(J14>200,30,0) -> 
A15: Octobre | B15: ='Apports solaires'!AK68 ->  | C15: =(Calcul!$I$14*Calcul!$J$14*5*31)/1000+(Calcul!L15/12) -> 0 | E15: =INDEX('Liste communes'!AP20:AP29,'Liste communes'!A18,1) ->  | G15: =IF(J15>200,Calcul!$L$10/12,0) ->  | J15: =INDEX('Liste communes'!O20:O29,'Liste communes'!A18,1) ->  | M15: H | O15: =Calcul!V13+Calcul!V14 ->  | R15: =IF(J15>200,31,0) -> 
A16: Novembre | B16: ='Apports solaires'!AS68 ->  | C16: =(Calcul!$I$14*Calcul!$J$14*6*30)/1000+(Calcul!L15/12) -> 0 | E16: =INDEX('Liste communes'!AQ20:AQ29,'Liste communes'!A18,1) ->  | G16: =IF(J16>200,Calcul!$L$10/12,0) ->  | J16: =INDEX('Liste communes'!P20:P29,'Liste communes'!A18,1) ->  | R16: =IF(J16>200,30,0) -> 
A17: Décembre | B17: ='Apports solaires'!BA68 ->  | C17: =(Calcul!$I$14*Calcul!$J$14*6.5*31)/1000+(Calcul!L15/12) -> 0 | E17: =INDEX('Liste communes'!AR20:AR29,'Liste communes'!A18,1) ->  | G17: =IF(J17>200,Calcul!$L$10/12,0) ->  | J17: =INDEX('Liste communes'!Q20:Q29,'Liste communes'!A18,1) ->  | R17: =IF(J17>200,31,0) -> 
A18: Besoin annuel en chauffage annuel (kWh/an) | B18: =SUM(B6:B17) ->  | C18: =SUM(C6:C17) -> 0 | K18: =SUM(K6:K17) ->  | R18: =SUM(R5:R17) -> 
A19: Besoin annuel en chauffage (kWh/m²/an) | K19: =K18/Calcul!C8 -> 
A20: conso chauffage | G20: =IF(H20=1,"Saisie simple","Saisie intermédiare") -> Saisie intermédiare | H20: 0 | I20: =IF(H20=1,"simple",IF(H20=0,"intermédiaire","")) -> intermédiaire
A21: conso chauffage (kWh/an) (kWh/m²/an)
A23: Installation de chauffage
I24: Solaire
A25: Chauffage | B25: =INDEX(H36:H37,H35,1) ->  | F25: Régulation | I25: 1
A26: Type d'emetteurs | B26: =INDEX(A36:B39,B35,1) ->  | F26: Sans vanne thermo ou sans régulation | G26: 90 | I26: OUI
A27: Rendement | B27: =INDEX(A36:B39,B35,2) ->  | C27: % | F27: Régulation + plancher chauffant, ou Emetteur ne permettant pas un arrêt total de l'émission | G27: 93 | I27: NON
A28: Tuyauteries de distribution | B28: =IF(H35=1,INDEX(A43:C46,D42,1),IF(H35=2,INDEX(A43:C45,D42,2))) -> FALSE | F28: Régulateur ou vanne thermo + radiateurs, Emetteur permettant un arrêt total de l'émission | G28: 96
A29: Rendement | B29: =IF(B25=H36,INDEX(A43:C46,D42,2),IF(B25=H37,INDEX(A43:C45,D42,3,0))) ->  | C29: % | F29: Radiateur électrique + thermostat | G29: 98
A31: Type de générateur | B31: =INDEX(H42:H51,H41,1) -> 
A32: Rendement | B32: =IF(E42=1,INDEX(H42:I51,H41,2),IF(E42=2,INDEX(H42:J51,H41,3),IF(E42=3,INDEX(H42:K51,H41,4)))) -> FALSE | C32: %
B34: =IF(Saisies!E17<4,1,IF(Saisies!E17<6,2,IF(Saisies!E17<8,3,4))) -> 1 | F34: Chauffage | N34: INDIV | P34: COLL | R34: retenu
A35: Type d'emetteurs | C35: <4m | D35: entre 4 et 6m | E35: entre 6 et 8m | F35: plus de 8m | M35: consos aux génération/distribution
A36: Radiateurs | B36: 90 | C36: 0.2 | D36: 0.8 | E36: 1.2 | F36: 1.6 | H36: Chauffage individuel | M36: Chauffage électrique | N36: 0 | O36: =(((N36/1000)*Saisies!$E$10)*24)*Chauffage!$R$18 ->  | P36: =+N36 -> 0 | Q36: =(P36/1000)*24*Chauffage!$R$18 ->  | R36: =IF($H$35=1,O36,Q36) -> 
A37: Rayonnants | B37: 97 | C37: 0.2 | D37: 0.8 | E37: 1.2 | F37: 1.6 | H37: Chauffage collectif | M37: Chaud. à condensation | N37: =0.7*(Calcul!$C$8/Saisies!$E$10) ->  | O37: =(((N37/1000)*Saisies!$E$10)*24)*Chauffage!$R$18 ->  | P37: =0.6*Saisies!$E$11 -> 0 | Q37: =(P37/1000)*24*Chauffage!$R$18 ->  | R37: =IF($H$35=1,O37,Q37) -> 
A38: Electriques | B38: 80 | C38: 0.2 | D38: 0.8 | E38: 1.2 | F38: 1.6 | M38: Chaud. à haut rendement | N38: =0.8*(Calcul!$C$8/Saisies!$E$10) ->  | O38: =(((N38/1000)*Saisies!$E$10)*24)*Chauffage!$R$18 ->  | P38: =0.7*Saisies!$E$11 -> 0 | Q38: =(P38/1000)*24*Chauffage!$R$18 -> 
A39: plancher | B39: 99 | C39: 0 | D39: 0 | E39: 0 | F39: 0 | M39: Chaud. Classique | N39: =0.9*(Calcul!$C$8/Saisies!$E$10) ->  | O39: =(((N39/1000)*Saisies!$E$10)*24)*Chauffage!$R$18 ->  | P39: =0.8*Saisies!$E$11 -> 0 | Q39: =(P39/1000)*24*Chauffage!$R$18 -> 
A40: Autres | B40: 100 | C40: 0.4 | D40: 1.2 | E40: 2 | F40: 2.8 | M40: Poêle buches | N40: 0 | O40: =(N40/1000)*24*Chauffage!$R$18*Saisies!$E$10 ->  | P40: 0 | Q40: =(P40/1000)*24*Chauffage!$R$18 -> 
I41: récente (depuis 91) | J41: de 80 à 90 | K41: très ancienne ( avant 1980) | M41: Pompe à chaleur air/air ou air/eau | N41: =1*Calcul!$C$8/Saisies!$E$10 ->  | O41: =(N41/1000)*24*Chauffage!$R$18*Saisies!$E$10 ->  | P41: =1*Saisies!$E$11 -> 0 | Q41: =(P41/1000)*24*Chauffage!$R$18 -> 
A42: Tuyauteries de distribution | B42: Chauffage individuel | C42: Chauffage collectif | F42: récente (-10 ans) | H42: Chauffage électrique | I42: 98 | J42: 90 | K42: 80 | M42: Pompe à chaleur eau/eau | N42: =2*Calcul!$C$8/Saisies!$E$10 ->  | O42: =(N42/1000)*24*Chauffage!$R$18*Saisies!$E$10 ->  | P42: =1.5*Saisies!$E$11 -> 0 | Q42: =(P42/1000)*24*Chauffage!$R$18 -> 
A43: Tuyaux non calorifugées | B43: 90 | C43: 95 | F43: ancienne (10 à 20 ans) | H43: Chaud. à condensation | I43: 95 | J43: 90 | K43: 80 | M43: Pompe à chaleur géothermale | N43: =3*Calcul!$C$8/Saisies!$E$10 ->  | O43: =(N43/1000)*24*Chauffage!$R$18*Saisies!$E$10 ->  | P43: =2*Saisies!$E$11 -> 0 | Q43: =(P43/1000)*24*Chauffage!$R$18 -> 
A44: Tuyaux mal calorifugées | B44: 94 | C44: 97 | F44: très ancienne ( + de 20 ans) | H44: Chaud. à haut rendement | I44: 90 | J44: 90 | K44: 85 | M44: Insert bois | N44: 0 | O44: =(N44/1000)*24*Chauffage!$R$18*Saisies!$E$10 ->  | P44: =+N44 -> 0 | Q44: =(P44/1000)*24*Chauffage!$R$18 -> 
A45: Tuyaux bien calorifugées | B45: 96 | C45: 98 | H45: Chaud. Classique | I45: 85 | J45: 75 | K45: 70 | M45: Poêle granulés | N45: 75 | O45: =(N45/1000)*24*Chauffage!$R$18*Saisies!$E$10 ->  | P45: 0 | Q45: 0 | R45: 0
A46: Entièrement en volume ch | B46: 100 | C46: 100 | H46: Poêle buches | I46: 87 | J46: 80 | K46: =Chauffage!160:160+Chauffage!194:194 -> 0
H47: Pompe à chaleur air/air ou air/eau | I47: 300 | J47: 0 | K47: 0
H48: Pompe à chaleur eau/eau | I48: 350 | J48: 0 | K48: 0
H49: Pompe à chaleur géothermale | I49: 350 | J49: 0 | K49: 0
H50: Insert bois | I50: 80 | J50: 72 | K50: 65
H51: Poêle granulés | I51: 85 | J51: 80 | K51: 75
G52: =INDEX(H42:I51,H41,2) -> 
A62: Appoint chauffage
A64: Type d'emetteurs | C64: <4m | D64: entre 4 et 6m | E64: entre 6 et 8m | F64: plus de 8m
A65: Radiateurs | B65: 90 | C65: 0.2 | D65: 0.8 | E65: 1.2 | F65: 1.6
A66: Rayonnants | B66: 97 | C66: 0.2 | D66: 0.8 | E66: 1.2 | F66: 1.6
A67: convecteurs | B67: 98 | C67: 0.2 | D67: 0.8 | E67: 1.2 | F67: 1.6
A68: plancher | B68: 99 | C68: 0 | D68: 0 | E68: 0 | F68: 0
A69: Autres | B69: 100 | C69: 0.4 | D69: 1.2 | E69: 2 | F69: 2.8
I70: récente (depuis 91) | J70: de 80 à 90 | K70: très ancienne ( avant 1980) | N70: INDIV | P70: COLL | R70: retenu
A71: Tuyauteries de distribution | B71: Chauffage individuel | C71: Chauffage collectif | E71: Régulation | F71: 4 | H71: Chauffage électrique | I71: 98 | J71: 90 | K71: 80 | M71: consos aux génération/distribution
A72: Réseau sans perte ou inexistant | B72: 100 | C72: 100 | E72: Sans vanne thermo ou sans régulation | F72: 2.5 | H72: Chaud. à condensation | I72: 95 | J72: 90 | K72: 80 | M72: Chauffage électrique | N72: =N36 -> 0 | P72: 0 | R72: =IF($H$35=1,O72,Q72) -> 
A73: Tuyaux non calorifugées | B73: 90 | C73: 95 | E73: Régulation + plancher chauffant, ou Emetteur ne permettant pas un arrêt total de l'émission | F73: 2 | G73: 90 | H73: Chaud. à haut rendement | I73: 90 | J73: 90 | K73: 85 | M73: Chaud. à condensation | P73: 0 | R73: =IF($H$35=1,O73,Q73) -> 
A74: Tuyaux mal calorifugées | B74: 94 | C74: 97 | E74: Régulateur ou vanne thermo + radiateurs, Emetteur permettant un arrêt total de l'émission | F74: 1.8 | G74: 92 | H74: Chaud. Classique | I74: 85 | J74: 75 | K74: 70 | M74: Chaud. à haut rendement | P74: 0
A75: Tuyaux bien calorifugées | B75: 96 | C75: 98 | E75: Radiateur électrique + thermostat | F75: 0.9 | G75: 98 | H75: Insert bois | I75: 80 | J75: 72 | K75: 65 | M75: Chaud. Classique | P75: 0
H76: Pompe à chaleur air/air ou eau | I76: 300 | J76: 0 | K76: 0 | M76: Poêle buches | N76: 0 | P76: 0
A77: 1 | C77: Electricité | F77: récente (-10 ans) | H77: Pompe à chaleur eau/air ou eau | I77: 350 | J77: 0 | K77: 0 | M77: Pompe à chaleur air/air ou air/eau | P77: 0
C78: Fioul domestique | F78: ancienne (10 à 20 ans) | H78: Pompe à chaleur géothermale | I78: 350 | J78: 0 | K78: 0 | M78: Pompe à chaleur eau/eau | P78: 0
C79: Gaz naturel | F79: très ancienne ( + de 20 ans) | H79: sans appoint | I79: 0 | J79: 0 | K79: 0 | M79: Pompe à chaleur géothermale | P79: 0
C80: Gaz propane | H80: Capteurs solaires | I80: 100 | J80: 100 | K80: 100 | M80: sans appoint | N80: 0 | O80: =(N80/1000)*24*Chauffage!$R$18*Saisies!$E$10 ->  | P80: =+N80 -> 0 | Q80: =(P80/1000)*24*Chauffage!$R$18 -> 
C81: Bois bûches | H81: =INDEX(H71:I80,H70,2) ->  | M81: Capteurs solaires | N81: =(2*Saisies!E11)/Saisies!E10 ->  | O81: =(((N81/1000)*Saisies!$E$10)*24)*Chauffage!$R$18 ->  | P81: =0.3*Calcul!$C$8 -> 0 | Q81: =(P81/1000)*24*Chauffage!$R$18 -> 
C82: Granulé bois
C83: Plaquette bois | H83: Rendement saisie inter appoint | I83: =INDEX(I71:K80,H70,E77) -> 
A88: Energie ECS
B91: récente (depuis 91) | C91: de 80 à 90 | D91: très ancienne ( avant 1980) | F91: récente (-10 ans) | G91: =IF($E$91=1,INDEX(B92:B97,A91,1),IF($E$91=2,INDEX(C92:C97,A91,1),INDEX(D92:D97,A91,1))) -> 
A92: Ballon avec résistance électrique | B92: 100 | C92: 95 | D92: 85 | F92: ancienne (10 à 20 ans) | G92: Electricité
A93: Ballon Raccordé au système de chauffage | B93: 90 | C93: 81 | D93: =B93*0.85 -> 76.5 | F93: très ancienne ( + de 20 ans) | G93: =INDEX('Tarif combustible'!B3:B11,'Tarif combustible'!C17) -> 
A94: Ballon thermodynamique | B94: =100*2.2 -> 220 | C94: 0 | D94: 0 | G94: Electricité
A95: Ballon solaire lié au chauffage | B95: 90 | C95: =B95*0.9 -> 81 | D95: =B95*0.85 -> 76.5 | E95: 1 | G95: =G93 -> 
A96: Ballon solaire avec appoint électrique | B96: 100 | C96: 95 | D96: 85 | E96: 1 | G96: =G92 -> Electricité
A97: Chauffe bain gaz | B97: 85 | C97: 75 | D97: 65 | G97: Gaz propane
H107: =INDEX(A92:B99,A91,2) -> 
A113: Systèmes de chauffage + appoint + ECS Saisie Simplifiée
A116: Installation de chauffage
I117: Solaire
A118: Chauffage | B118: Chauffage individuel | F118: Régulation | G118: 2 | I118: 1
A119: Type d'emetteurs | B119: =INDEX(A129:B132,B128,1) ->  | F119: Sans vanne thermo ou sans régulation | G119: 90 | I119: OUI
A120: Rendement | B120: =INDEX(A129:B133,B128,2) ->  | C120: % | F120: Régulation + plancher chauffant, ou Emetteur ne permettant pas un arrêt total de l'émission | G120: 93 | I120: NON
F121: Régulateur ou vanne thermo + radiateurs, Emetteur permettant un arrêt total de l'émission | G121: 96
F122: Radiateur électrique + thermostat | G122: 98
A124: Type de générateur | B124: =INDEX(H135:H143,H134,1) -> 
A125: Rendement | B125: =IF(E135=1,INDEX(H135:I143,H134,2),IF(E135=2,INDEX(H135:J143,H134,3),IF(E135=3,INDEX(H135:K143,H134,4)))) -> FALSE | C125: %
B127: =IF(Saisies!E110<4,1,IF(Saisies!E110<6,2,IF(Saisies!E110<8,3,4))) -> 1 | F127: Chauffage
A128: Type d'emetteurs
A129: Radiateurs | B129: 90
A130: Rayonnants | B130: 97
A131: Electriques | B131: 80
A132: plancher | B132: 99
A133: Autres | B133: 100
I134: récente (depuis 91) | J134: de 80 à 90 | K134: très ancienne ( avant 1980) | O134: INDIV | Q134: COLL | S134: retenu
B135: Tuyauteries de distribution | C135: Chauffage individuel | F135: récente (-10 ans) | G135: Electricité | H135: Chauffage électrique | I135: 100 | J135: 100 | K135: 100 | N135: consos aux génération/distribution
B136: Tuyaux non calorifugés | C136: 90 | F136: ancienne (10 à 20 ans) | G136: Gaz naturel | H136: Chaud. à condensation | I136: 102 | J136: 90 | K136: 85 | M136: 1 | N136: Chauffage électrique | O136: 0 | P136: =(O136/1000)*24*Chauffage!$R$18*Saisies!$E$10 ->  | S136: =IF($H$35=1,P136,R136) -> 0 | T136: Chauffage électrique
B137: Tuyaux calorifugés | C137: 96 | F137: très ancienne ( + de 20 ans) | G137: Gaz naturel | H137: Chaud. à haut rendement | I137: 95 | J137: 90 | K137: 85 | N137: Chaud. à condensation | O137: =N73 ->  | S137: =IF($M$136=1,P137,R137) ->  | T137: Chaud. à condensation
B138: Tuyaux en volume chauffé | C138: 100 | G138: Gaz propane | H138: Chaud. Classique | I138: 85 | J138: 75 | K138: 70 | N138: Chaud. à haut rendement | S138: =IF($M$136=1,P138,R138) ->  | T138: Chaud. à haut rendement
G139: Bois bûches | H139: Poêle/insert bûches | I139: 80 | J139: 70 | K139: 60 | N139: Chaud. Classique | S139: =IF($M$136=1,P139,R139) ->  | T139: Chaud. Classique
G140: Granulé bois | H140: poêle/ insert granulés | I140: 85 | J140: 80 | K140: 75 | N140: Poêle buches | O140: 0 | P140: =(O140/1000)*24*Chauffage!$R$18*Saisies!$E$10 ->  | S140: =IF($M$136=1,P140,R140) ->  | T140: Poêle/insert bûches
G141: Electricité | H141: Pompe à chaleur air/air ou eau | I141: 300 | J141: 0 | K141: 0 | N141: poêle/ insert granulés | O141: =N45 -> 75 | P141: =O45 ->  | S141: =IF($M$136=1,P142,R141) ->  | T141: poêle/ insert granulés
G142: Electricité | H142: Pompe à chaleur eau/air ou eau | I142: 350 | J142: 0 | K142: 0 | N142: Pompe à chaleur air/air ou air/eau | O142: =N77 ->  | S142: =IF($M$136=1,P143,R142) ->  | T142: Pompe à chaleur air/air ou eau
G143: Electricité | H143: Pompe à chaleur géothermale | I143: 350 | J143: 0 | K143: 0 | N143: Pompe à chaleur eau/eau | S143: =IF($M$136=1,P144,R143) ->  | T143: Pompe à chaleur eau/air ou eau
N144: Pompe à chaleur géothermale | S144: =IF($M$136=1,P145,R144) -> 0 | T144: Pompe à chaleur géothermale
A148: Appoint chauffage
A151: Type d'énergie sélectionnée | B151: =IF(G151=1,"Electricité",IF(G151=2,"Gaz propane",IF(G151=3,"Fioul domestique",IF(G151=4,"Bois bûches",IF(G151=5,"Granulé bois",IF(G151=6,"Capteurs solaires","sans appoint")))))) -> sans appoint | E151: récente (-10 ans) | H151: récente (depuis 91) | I151: de 80 à 90 | J151: très ancienne ( avant 1980) | M151: 1 | N151: Chauffage électrique | O151: 0 | P151: =(O151/1000)*24*Chauffage!$R$18*Saisies!$E$10 ->  | S151: =IF($H$35=1,P151,R151) -> 0
E152: ancienne (10 à 20 ans) | F152: Electricité | G152: Chauffage électrique | I152: 72 | N152: Chaudière gaz | O152: =O138 ->  | P152: =(O152/1000)*24*Chauffage!$R$18*Saisies!$E$10 ->  | S152: =IF($M$136=1,P152,R152) -> 
E153: très ancienne ( + de 20 ans) | F153: Gaz naturel | G153: Chaudière gaz | I153: 65 | N153: Chaudière fioul | O153: =O139 ->  | P153: =(O153/1000)*24*Chauffage!$R$18*Saisies!$E$10 -> 
F154: Fioul domestique | G154: Chaudière fioul | I154: 64 | N154: Insert ou poêle à granulés | O154: =O140 -> 0 | P154: =(O154/1000)*24*Chauffage!$R$18*Saisies!$E$10 -> 
A155: Rendement appoint simplifié | B155: =INDEX(I152:I158,G151,1) -> 74 | F155: Granulé bois | G155: appoint bois granulés | I155: 74 | N155: Appoint bois bûches | O155: 0 | P155: =(O155/1000)*24*Chauffage!$R$18*Saisies!$E$10 -> 
F156: Bois bûches | G156: Appoint bois bûches | I156: 60 | N156: Capteurs solaires | O156: =N81 ->  | P156: =O81 -> 
F157: Solaire | G157: Capteurs solaires | I157: 100 | N157: Sans appoint | O157: 0 | P157: =(O157/1000)*24*Chauffage!$R$18*Saisies!$E$10 -> 
F158: Sans appoint | G158: Sans appoint | I158: 0
A161: Energie ECS
B164: récente (depuis 91) | C164: de 80 à 90 | D164: très ancienne ( avant 1980) | G164: récente (-10 ans) | I164: =IF(F164=1,INDEX(B165:B170,A164,1),IF(F164=2,INDEX(C165:C170,A164,1),INDEX(D165:D170,A164,1))) -> 
A165: Ballon avec résistance électrique | B165: 100 | C165: 95 | D165: 85 | E165: Electricité | G165: ancienne (10 à 20 ans)
A166: Ballon Raccordé au système de chauffage | B166: 90 | C166: 81 | D166: =B166*0.85 -> 76.5 | E166: =INDEX(G135:G143,H134) ->  | G166: très ancienne ( + de 20 ans)
A167: Ballon thermodynamique | B167: =100*2.2 -> 220 | C167: 0 | D167: 0 | E167: Electricité
A168: Ballon solaire lié au chauffage | B168: 90 | C168: =B168*0.9 -> 81 | D168: =B168*0.85 -> 76.5 | E168: =E166 -> 
A169: Ballon solaire avec appoint électrique | B169: 100 | C169: 95 | D169: 85 | E169: =E165 -> Electricité
A170: Chauffe bain gaz | B170: 85 | C170: 75 | D170: 65 | E170: Gaz propane
A176: Tau
A177: Pièce | B177: 0 | C177: Sous-sol | E177: Espace sous toiture | G177: Vide sanitaire | H177: 0.8
A178: avec seulement 1 mur extérieur | B178: 0.4 | C178: sans fenêtres ni portes extérieures | D178: 0.5 | E178: espace sous toiture fortement ventilé (par exemple : couvertures en tuiles ou autres matériaux formant couverture discontinue) sans feutres ou panneaux en sous-face | F178: 1
A179: avec au moins 2 murs extérieurs sans portes extérieures | B179: 0.5 | C179: avec fenêtres ou portes extérieures | D179: 0.8 | E179: autre toiture non isolée | F179: 0.9
A180: avec au moins 2 murs extérieurs et des portes extérieures (par exemple : entrées, garages) | B180: 0.6 | E180: toiture isolée | F180: 0.7
A181: avec au moins 3 murs extérieurs (par exemple : escalier extérieur) | B181: 0.8
A195: Relance
A197: Ai | B197: =Saisies!E11 -> 0
C199: Temps de relance | D199: 2 | E199: 3 | F199: 4
B200: =HLOOKUP(B207,D199:F203,B206+1,TRUE) -> 25 | C200: 1 | D200: 21 | E200: 34 | F200: 48
C201: 2 | D201: 15 | E201: 25 | F201: 35
C202: 3 | D202: 12 | E202: 20 | F202: 29
C203: 4 | D203: 10 | E203: 18 | F203: 26
A205: ralenti (h) | B205: 8
A206: h de relance | B206: 2
A207: t réduit | B207: 3
A208: Rrh | B208: =IF(B205>8,"temps réduit trop long",C208) -> 0 | C208: =IF(B207>4,"T°C de réduit trop important",D208) -> 0 | D208: =B197*B200 -> 0

Sheet Calcul (hidden)
B2: DONNES ETUDE ET HYPOTHESES | H2: APPORTS INTERNES | T2: CALCULS
B4: Ville | C4: Besançon | D4: =INDEX('Liste communes'!A2:A5,'Liste communes'!E1,1) -> 25 Doubs | I4: SUD | J4: SE-SO | K4: EST | L4: OUEST | M4: NO-NE | N4: NORD | O4: Total apports | Q4: H | T4: Débit ventilation (réduit ou hygro) | V4: =VLOOKUP(C11,Ventilation!C35:I54,7,FALSE) ->  | W4: m3/h
B5: Volume bâtiment | C5: =Saisies!E11*Saisies!E17 -> 0 | D5: m3 | H5: Surface vitrages m² | I5: =IF(Chauffage!H20=0,Saisies!F33,'surface auto'!AH11) -> 0 | J5: 0 | K5: =IF(Chauffage!H20=0,Saisies!F35,'surface auto'!AH13) -> 0 | L5: =IF(Chauffage!H20=0,Saisies!F37,'surface auto'!AH14) -> 0 | M5: 0 | N5: =IF(Chauffage!H20=0,Saisies!F31,'surface auto'!AH11) -> 0 | O5: ='Apports solaires'!G29 ->  | P5: kwh/an | Q5: =IF(Chauffage!H20=0,Saisies!F30,0) -> 0 | T5: Débit ventilation (pointe ou normal) | V5: =VLOOKUP(C11,Ventilation!C35:I54,6,FALSE) ->  | W5: m3/h
B6: Ubat | C6: =IF(Chauffage!H20=0,'surface auto'!AA21,'surface auto'!AL26) -> 0 | D6: A remplir suite au calcul simplifié | H6: Ombrage | I6: =IFERROR(INDEX('Apports solaires'!$J$20:$J$24,I3),0) -> 0 | J6: =IFERROR(INDEX('Apports solaires'!$J$20:$J$24,J3),0) -> 0 | K6: =IFERROR(INDEX('Apports solaires'!$J$20:$J$24,K3),0) -> 0 | L6: =IFERROR(INDEX('Apports solaires'!$J$20:$J$24,L3),0) -> 0 | M6: =IFERROR(INDEX('Apports solaires'!$J$20:$J$24,M3),0) -> 0 | N6: =IFERROR(INDEX('Apports solaires'!$J$20:$J$24,N3),0) -> 0 | Q6: =IFERROR(INDEX('Apports solaires'!$J$20:$J$24,Q3),0) -> 0 | U6: heures à la température de consigne | V6: =(24-N66)*365 -> 6570 | W6: =(V6*100)/8760 -> 75
B7: Shab | C7: =IF(E7<>0,E7,Saisies!E11) -> 0 | D7: m² | N7: 1h janvier : | O7: ='Apports solaires'!G60 ->  | P7: kwh | U7: heure à la température réduit | V7: =8760-V6 -> 2190 | W7: =100-W6 -> 25
B8: Shon RT | C8: =IF(E8<>0,E8,IF(Saisies!E13=0,Saisies!E11*1.02,Saisies!E13)) -> 0
B9: Type appartement/maison | C9: =Saisies!E12 -> 0 | D9: Créer une case | H9: Apports autres (désignation) | I9: apports en W | J9: nombre | K9: présence de l'apport en h/an
B10: Nombre de SDB ou SDB+WC ou pièces d'eau supplémentaire | C10: 0 | H10: apports CH dans l'ambiance | L10: =IF(C28="OUI",ECS!K94,ECS!K94-ECS!K89) ->  | M10: kwh/an | T10: Pertes VMC débit pointe | V10: =IF(Ventilation!B35=1,0.34*V5*0.2,0.34*V5) ->  | W10: w
B11: Ventilation | C11: =IF(Chauffage!H20=1,INDEX(Ventilation!C50:C54,Ventilation!C55,1),INDEX(Ventilation!C35:C46,Ventilation!B35,1)) ->  | H11: apports ecs dans l'ambiance | L11: =((J11*I11)/1000)*K11 -> 0 | M11: kwh/an | T11: pertes VMC débit réduit | V11: =IF(Ventilation!B35=1,0.34*V4*0.2,0.34*V4) ->  | W11: w
B12: T int | C12: =N65 -> 20 | D12: °C | L12: =((J12*I12)/1000)*K12 -> 0 | M12: kwh/an | T12: Temps annuel débit réduit | V12: =8760-VLOOKUP(IF(E11<>"",E11,C11),Ventilation!C35:I54,3,FALSE) ->  | W12: heures
B13: T ext | C13: =IF(E13<>0,E13,INDEX('Liste communes'!G2:G5,'Liste communes'!E1,1)) ->  | I13: éclairage en W/m² | J13: surface en m² concernée | K13: utilisation en h/an | T13: déperdition bâti | V13: =C6*C14 -> 0 | W13: W/k | X13: =V13+V14 -> 
B14: surface déperditive totale (m²) | C14: =IF(Chauffage!H20=1,'surface auto'!AG26,'surface auto'!Y19) -> 0 | D14: m² | H14: Eclairage | I14: =N70 -> 4 | J14: =C7 -> 0 | K14: =L64*(24-L66) -> 0 | L14: =((((I14*J14)/1000)*K14)) -> 0 | M14: kwh/an | N14: 1h écl. Janvier | O14: =(I14*J14)/1000 -> 0 | T14: déperdition ventil | V14: =((((W6*V10)+(W7*V11))/100)) ->  | W14: W/k
B15: Energie principale chauffage | C15: ='surface auto'!C17 ->  | D15: ='surface auto'!C17 ->  | H15: hommes | I15: 20 | J15: =Saisies!E21 -> 0 | K15: =K14 -> 0 | L15: =(((I15*J15)/1000)*K15) -> 0 | M15: kwh/an | T15: déperdition bâti | V15: =V13/V30 ->  | W15: w/m3.k
B16: Energie appoint chauffage | C16: ='surface auto'!F17 ->  | D16: ='surface auto'!F17 ->  | E16: =IF(Chauffage!H20=0,IF(Chauffage!H70=9,"sans appoint",""),INDEX(Chauffage!F152:F158,Chauffage!G151,1)) ->  | H16: Elect spécifique | L16: =(((I16*J16)/1000)*K16)*0.9 -> 0 | M16: kwh/an | T16: déperdition ventil | V16: =V14/C5 ->  | W16: w/m3.k
B17: Energie principale ECS | C17: ='surface auto'!I9 ->  | D17: ='surface auto'!I9 ->  | H17: total | L17: =L14+L15+L16 -> 0 | M17: kwh/an
M18: kwh/an
B19: Rendement générateur chauffage principal (%) | C19: =IF(D19<>0,D19,'surface auto'!C18) -> 
B20: type de chauffage principal | C20: =INDEX(Chauffage!H42:H51,Chauffage!H41,1) ->  | G20: ='surface auto'!C13 ->  | H20: RESULTATS
B21: Rendement générateur chauffage appoint (%) | C21: ='surface auto'!F18 -> 
B22: Ecs produite par le générateur de chauffage? | C22: =IF(OR(Chauffage!A91=2,Chauffage!A91=4),"OUI","NON") -> NON | D22: ='surface auto'!I11 ->  | H22: Besoins chauffage (énergie finale) | O22: Energie primaire
B23: Nombre de personnes (pour ECS) | C23: =Saisies!E21 -> 0 | D23: =Saisies!E21 -> 0 | H23: Besoin net chauffage | J23: =IFERROR(Chauffage!K18,0) -> 0 | K23: kwh/an | O23: Kwh EP | P23: Kwh Ep/m².an | Q23: C02
B24: besoins ECS en L par jour par personne | C24: =N61 -> 35 | D24: valeur par défaut | E24: Case forcée | H24: Conso combustible principal | J24: =IF(C16="Solaire",(((J23*W39)/V40))-'surface auto'!G31,(((J23*W39)/V40))) ->  | K24: kwh/an | L24: =((J24)*V32) ->  | M24: =VLOOKUP(C15,'Tarif combustible'!B3:D9,3,FALSE) ->  | N24: =J24*V33 ->  | O24: =((J24)*VLOOKUP(C15,'Tarif combustible'!B3:H9,7,FALSE)) ->  | P24: =IFERROR((O24+O25)/V38,0) -> 0 | Q24: =IF(Chauffage!H20=0,((INDEX('Tarif combustible'!L3:L15,'Tarif combustible'!C17,1)*J24)/C8),((INDEX('Tarif combustible'!L3:L15,'Tarif combustible'!D17,1)*J24)/C8)) -> 
B25: Volume ballon | C25: =N62 -> 0 | H25: =IF(AND(Chauffage!H20=0,Chauffage!H70=10),"Production solaire",IF(AND(Chauffage!G151=6,Chauffage!H20=1),"Production solaire","Conso combustible appoint")) -> Conso combustible appoint | J25: =IF(OR(C16="Solaire",E16="sans appoint"),0,((J23*V39)/V41)-'surface auto'!G31) ->  | K25: kwh/an | L25: =((J25)*V34) ->  | M25: =IF(OR(D16=0,D16="sans appoint"),"kwh",VLOOKUP(C16,'Tarif combustible'!B3:D10,3,FALSE)) ->  | N25: =J25*V35 ->  | O25: =IF(J25=0,0,(J25)*VLOOKUP(C16,'Tarif combustible'!B3:H9,7,FALSE)) ->  | Q25: =IFERROR((INDEX('Tarif combustible'!L3:L15,'Tarif combustible'!C18,1)*J25)/C8,0) -> 0
B26: consigne du ballon | C26: =N63 -> 55 | D26: °C | E26: Valeur par défaut
B27: nombre jours de puisage ECS | C27: =N64 -> 330 | D27: jours | E27: Valeur par défaut | H27: Besoins ECS | J27: =IF((ECS!I106-(C30*ECS!I106)-'surface auto'!G32)<0,0,ECS!I106-(C30*ECS!I106)-'surface auto'!G32) ->  | K27: kwh/an | L27: =((J27)*V36) ->  | M27: =VLOOKUP(C17,'Tarif combustible'!B3:G9,3,FALSE) ->  | N27: =J27*V37 ->  | O27: =J27*VLOOKUP(C17,'Tarif combustible'!B3:H9,7,FALSE) ->  | P27: =O27/V38 ->  | Q27: =(INDEX('Tarif combustible'!M3:M9,'Tarif combustible'!C19,1)*J27)/C8 -> 
B28: ballon en volume chauffé? | C28: =L60 -> NON
B29: Reduction solaire sur le chauffage +ECS | C29: =IF(OR(C33="Chauffage + ECS",C33="Chauffage"),C39,0) -> 0 | H29: Consommation auxiliaires | J29: =IF(Chauffage!H20=1,INDEX(Chauffage!N136:S144,Chauffage!H134,6)+INDEX(Chauffage!N151:S157,Chauffage!G151,6),INDEX(Chauffage!M36:R45,Chauffage!H41,6)+INDEX(Chauffage!M72:R81,Chauffage!H70,6)) ->  | K29: kwh/an | N29: =J29*'Tarif combustible'!G3 ->  | O29: =J29*2.58 ->  | P29: =O29/V38 ->  | Q29: =(J29*'Tarif combustible'!P3)/C8 -> 
B30: Reduction solaire sur l'ECS | C30: =IF(C33="ECS",C39,IF(C33="Chauffage + ECS",C29,0)) -> 0 | E30: 1 | F30: 0 | H30: Consommation aux de ventilation | J30: =IFERROR(VLOOKUP(C11,Ventilation!C35:I54,5,FALSE),0) -> 0 | K30: kwh/an | N30: =J30*'Tarif combustible'!G3 -> 0 | O30: =J30*2.58 -> 0 | P30: =O30/V38 ->  | Q30: =(J30*'Tarif combustible'!P3)/Calcul!C8 ->  | T30: période de chauffe | V30: =Chauffage!R18 ->  | W30: jours
H31: Consommation Eclairage | J31: =L14 -> 0 | K31: kwh/an | N31: =J31*'Tarif combustible'!G3 -> 0 | O31: =J31*2.58 -> 0 | P31: =O31/V38 ->  | Q31: =(J31*'Tarif combustible'!O3)/Calcul!C8 -> 
B32: Solaire thermique | T32: PCI combustible principal chauffage | V32: =VLOOKUP(C15,'Tarif combustible'!B3:F9,5,FALSE) ->  | W32: kwh pci /u
B33: Utilisation | C33: =IF(AND(OR(Chauffage!A91=5,Chauffage!A91=4),Chauffage!H70<>10),"ECS",IF(AND(OR(Chauffage!A91=4,Chauffage!A91=5),Chauffage!H70=10),"Chauffage + ECS",IF(AND(OR(Chauffage!A91=1,Chauffage!A91=2,Chauffage!A91=3),Chauffage!H70=10),"Chauffage"))) -> FALSE | D33: =IF(Saisies!G88="OUI",1,0) -> 0 | E33: CH | H33: total | N33: =N24+N25+N27+N29+N30+N31 ->  | O33: =O24+O25+O27+O29+O30+O31 ->  | P33: =P24+P27+P29+P30+P31 ->  | Q33: =SUM(Q24:Q31) ->  | T33: cout en €/ kwh | V33: =IF(W33<>0,W33,VLOOKUP(C15,'Tarif combustible'!B3:G9,6,FALSE)) -> 
D34: =IFERROR(INDEX(Chauffage!E92:E96,Chauffage!A91,1),0) -> 0 | E34: ECS | T34: PCI combustible appoint chauffage | V34: =IFERROR(VLOOKUP(C16,'Tarif combustible'!B3:F9,5,FALSE),1) -> 1 | W34: kwh pci /u
T35: cout en €/ kwh | V35: =IFERROR(VLOOKUP(C16,'Tarif combustible'!B3:G9,6,FALSE),1) -> 1
B36: ECS | C36: =ECS!I106 ->  | T36: PCI combustible ECS | V36: =VLOOKUP(C17,'Tarif combustible'!B3:F9,5,FALSE) ->  | W36: kwh pci /u
B37: Ch | C37: =Chauffage!K18*W39 ->  | T37: cout en €/ kwh | V37: =VLOOKUP(C17,'Tarif combustible'!B3:G9,6,FALSE) -> 
B38: tot | C38: =SUM(C36:C37) ->  | T38: Shon RT | V38: =IF(Saisies!E13<>"",Saisies!E13,1.2*Saisies!E11) -> 0 | W38: m²
B39: Taux de couverture solaire (%) | C39: =IFERROR(IF(C33="ECS",SOLAIRE!E28,SOLAIRE!F28),0) -> 0 | T39: couverture | V39: =N69/100 -> 0.3 | W39: =1-V39 -> 0.7
T40: Rendement Chauffage principal | V40: =C19 -> 
T41: Rendement Chauffage appoint | V41: =C21 -> 
I53: Paramètres par défault et règlages supplémentaires
L55: Valeur forcée | N55: Valeur par défaut
I56: surface des capteurs solaires (forcé) | N56: =IF(L56<>0,L56,IF(C33="ECS",Saisies!E21,ROUNDUP(Calcul!C7/15,0))) -> 0
I57: Type capteur | L57: 0
I58: Orientation du plan | N58: =IF(L58<>"",L58,"Sud") -> Sud
I59: Inclinaison du plan | N59: =IF(L59<>0,L59,45) -> 45
I60: ballon ECS en volume chauffé? | L60: NON
I61: besoins ECS en L par jour par personne | N61: =IF(L61<>0,L61,35) -> 35
I62: Volume ballon | N62: =IF(L62<>0,L62,ROUNDDOWN(C23*75,-2)) -> 0
I63: consigne du ballon | N63: =IF(L63<>0,L63,55) -> 55
I64: nombre jours de puisage ECS | N64: =IF(L64<>0,L64,330) -> 330
I65: consigne T° en occupation | N65: =IF(L65<>0,L65,20) -> 20
I66: nombre d'heures de réduit de nuit | N66: =IF(L66<>0,L66,6) -> 6
I67: température réduit (nombre de degrés de réduit) | N67: =IF(L67<>0,L67,2) -> 2
I68: Forcer rendement de la chaudière (en %) | N68: En fonction des saisies
I69: Taux de couverture de l'appoint (en %) | N69: =IF(L69<>0,L69,IF(Chauffage!H70=9,0,IF(AND(Chauffage!H20=0,Chauffage!H70=10),0,30))) -> 30
I70: puissance éclairage en w/m² | N70: =IF(L70>0,L70,4) -> 4

Sheet Saisies (hidden)
D2: Bilan énergétique d'un bâtiment | E2: Nom de l'opération :
C4: 1° | D4: Données Techniques
C6: 1. | D6: typologie de bâtiment (menu déroulant) :
C7: 2. | D7: Nombre d'étages du bâtiment
C10: 3. | D10: Nombre de logements (pour le tertiaire =1 )
C11: 4. | D11: Surface habitable/utile du bâtiment | F11: m²
D12: Typologie de ventilation (pour le tertaire saisie manuelle des débits)
D13: ShonRT (remplir si connue, sinon 1,2xshab sera pris par défaut) | F13: m²
C14: 5. | D14: Ville (cliquer sur l'image pour afficher la carte ou directement dans la liste) | G14: Zone climatique | Z14: =(Saisies!E35+Saisies!E35)/(Saisies!F35+Saisies!F36) -> 
G15: =IFERROR(INDEX('Liste communes'!CD20:CD29,'Liste communes'!A18,1),"") -> 
C16: 6. | D16: Mitoyenneté (cliquer sur l'image ou dans la liste) | E16: 0
C17: 7. | D17: Hauteur moyenne sous plafonds | F17: m | S17: =ETIQUETTES!I30 -> 0 | U17: =ETIQUETTES!K30 -> 0 | V17: =ETIQUETTES!L30 -> 0 | W17: =ETIQUETTES!M30 -> 0
C18: 8. | D18: Forme du bâtiment (cliquer sur l'image ou dans la liste)
S19: =ETIQUETTES!I32 -> 0 | U19: =ETIQUETTES!K32 -> 0 | V19: =ETIQUETTES!L32 -> 0 | W19: =ETIQUETTES!M32 -> 0
C21: 6. | D21: Nombre d'occupants (par logements, ou pour le bâtiment en tertaire)
C22: 10. | D22: Type d'isolation
C23: 11. | D23: Type de plancher / Type de plafond
C28: 2° | D28: Bâti (Saisie manuelle)
D29: Parois de la superficie de déperdition thermique | E29: U [W/(m².K)] | F29: Surface [m²] | G29: Orientation | H29: Tau (b) | I29: Masque solaire
C30: 1. | D30: Fenêtres vélux et autres parois translucides | G30: Horizonale | H30: 1
G31: Nord | H31: 1 | I31: =(E31*F31*H31)+(E32*F32*H31) -> 0
G33: Sud | I33: =(E33*F33*H31)+(E34*F34*H31) -> 0
D34: Facteur solaire (vitrage le plus représentatif)?
G35: Est | I35: =(E35*F35*H31)+(E36*F36*H31) -> 0
G37: Ouest | I37: =(E37*F37*H31)+(E38*F38*H31) -> 0
C39: 2. | D39: Portes extérieures | I39: =E39*F39*H39 -> 0
I40: =E40*F40*H40 -> 0
C41: 3. | D41: Murs extérieurs, façades | G41: Nord | H41: 1 | I41: =(E41*F41*H41)+(E42*F42*H41) -> 0
G43: Sud | I43: Inertie :
G45: Est | I45: =(E45*F45*H41)+(E46*F46*H41) -> 0
G47: Ouest | I47: =(E48*F48*H41)+(E47*F47*H41) -> 0
D49: Murs intérieurs, LNC | G49: intérieur | I49: =E49*F49*H49 -> 0
I50: =E50*F50*H50 -> 0
I51: =E51*F51*H51 -> 0
I52: =E52*F52*H52 -> 0
C53: 4. | D53: Toit des combles aménagés | H53: 1 | I53: 0
H54: 1 | I54: 0
D55: Plancher haut lèger sous combles non aménagés ou sur ext | I55: 0
D56: Plancher haut lourd sous combles non aménagés ou sur ext | I56: 0
C57: 5. | D57: Planchers au-dessus de l'ambiance extérieure | H57: 1 | I57: 0
H58: 1 | I58: =E58*F58*H58 -> 0
C59: 6. | D59: Planchers au-dessus d'espaces voisins non à l'abri du gel (vide sanitaire) | I59: =E59*F59*H59 -> 0
I60: =E60*F60*H60 -> 0
C61: 7. | D61: Planchers au-dessus d'espaces voisins à l'abri du gel (caves) | I61: =E61*F61*H61 -> 0
I62: =E62*F62*H62 -> 0
C63: 8. | D63: Planchers sur le sol | H63: 1 | I63: 0
I64: 0
D65: PONTS THERMIQUES | E65: psi [W/(m.K)] | F65: longueur [m] | G65: psi [W/(m.K)] | H65: longueur [m]
C66: 13. | D66: Tous types de ponts thermiques (L8, L9, L10, angles sortants, refends..) attention : ne saisir que L8 - L9 - L10 dans les cases oranges les autres cases permettent de saisir les autres types de ponts thermiques | J66: =E66*F66 -> 0
J67: =E67*F67 -> 0
J68: =E68*F68 -> 0
C76: 3° | D76: Saisie des systèmes
C79: 3. | D79: Type de chauffage | E79: Energie
D84: Chaudière Régulation
D87: ancienneté
C91: 4. | D91: Ventilation et perméabilité à l'air
G92: Si valeur perso : Valeur du Q4 : | H92: 3
D93: Degré d'étanchéité à l'air de l'enveloppe du bâtiment (qualité des joints de fenêtre)
G94: Debit inocc. m3/h : | H94: Débit occup. m3/h :
D95: Système de ventilation
G96: consomation du moteur en Wthc :
M152: 1
P153: 1
M162: 3
P163: 3
M164: 1
L165: 1 | N165: forme | P165: 1 | R165: 0
M166: 1- Carré - Rectangle | N166: 4 | O166: 0 | Q166: 1 - Indépendant | R166: 1
D167: AFFICHE | E167: =AfficheCache($E$7,1,"1") -> 0 | F167: =AfficheCache($E$7,1.5,"1_5") -> 0 | G167: =AfficheCache($E$7,2,"2") -> 0 | H167: =AfficheCache($E$7,2.5,"2_5") -> 0 | I167: =AfficheCache($E$7,3,"3") -> 0 | J167: =AfficheCache2($E$7,3,"3,5") -> 0 | K167: =AfficheCache2($E$7,3,"4") -> 0 | M167: 2- Peu découpé | N167: 5 | O167: 1 | Q167: 2- un petit coté | R167: 2
E168: =AfficheCache($M$165,1,"form1") -> 0 | F168: =AfficheCache($M$165,2,"form2") -> 0 | G168: =AfficheCache($M$165,3,"form3") -> 0 | M168: 3- très découpé | N168: 6 | O168: 2 | Q168: 3- deux petits cotés | R168: 2
M169: autres.. | N169: 10 | O169: 3 | Q169: 4- un petit et un grand | R169: 1
Q170: 5- un grand coté | R170: 2
Q171: 6- deux grands cotés | R171: =AfficheCache($P$166,1,"IND") -> 0 | S171: =AfficheCache($P$166,2,"1PC") -> 0 | T171: =AfficheCache($P$166,3,"2PC") -> 0 | U171: =AfficheCache($P$166,4,"1P1G") -> 0 | V171: =AfficheCache($P$166,5,"1G") -> 0 | W171: =AfficheCache($P$166,6,"2GC") -> 0
D172: 3° Appoint chauffage (second système ou solaire)
C174: 5 | D174: Système Energie | F174: Emission
F180: Ancienneté
D186: 3° ECS
C188: 6 | D188: Système | E188: Ancienneté
C199: 6 | D199: Système | E199: Energie
E203: dyjeyj
C224: 2° | D224: Chauffage principal
C226: 2. | D226: Chaudière Emission | E226: Energie | G226: Ancienneté
D233: Isolation distribution
C239: 3° | D239: Chauffage appoint
C241: 3. | D241: Système
C250: 4° | D250: ECS
C252: 4. | D252: Système | E252: Installation
C262: 5° | D262: Ventilation
C264: 5. | D264: Ventilation
D266: Degré d'étanchéité à l'air de l'enveloppe du bâtiment (qualité des joints de fenêtre)
D268: Système de ventilation
O280: Est
N281: Chauffage seul | O281: Sud - Est
N282: ECS seule | O282: Sud
N283: Chauffage et ECS | O283: Sud - Ouest
O284: Ouest
D288: Utilisation | E288: ECS seule
D289: Inclinaison du plan | E289: =IF(E288="","",IF(E288="ECS seule",45,60)) -> 45
D290: Orientation du plan | E290: Sud
D291: Surface panneaux (m²)
D292: Productivité totale (kWh/an) | E292: =IF(E288="","",E293*E291) -> 
D293: Productivité annuelle (kWh/m².an) | E293: =IF(E289=60,IF(E290="Sud",804.79*E291^(-0.62),IF(E290="Sud - Est",795.37*E291^(-0.64),IF(E290="Sud - Ouest",795.37*E291^(-0.64),IF(E290="Ouest",665.23*E291^(-0.609),IF(E290="Est",665.23*E291^(-0.609),""))))),IF(E290="Sud",743*E291^(-0.389),IF(E290="Sud - Est",813.19*E291^(-0.654),IF(E290="Sud - Ouest",813.19*E291^(-0.654),IF(E290="Ouest",720.54*E291^(-0.629),IF(E290="Est",720.54*E291^(-0.629),"")))))) -> 
D295: Taux de couverture solaire (%) | E295: =IF(E289=45,E292*100/Calcul!J27,IF(Saisies!E288="Chauffage seul",Saisies!E292*100/Calcul!J23,Saisies!E292*100/(Calcul!J23+Calcul!J27))) -> 

Sheet Liste communes (hidden)
A1: Commune | B1: - Temp de base | D1: Cellule : | E1: 1 | F1: T° eau | G1: temp ext
A2: 25 Doubs | B2: 25 | C2: H1c | D2: argile ou limon | E2: H1 | F2: 10.5 | G2: =VLOOKUP(J39,J40:N52,4,TRUE) ->  | H2: 46.3
A3: 39 Jura | B3: 90 | C3: H1c | D3: sable ou gravier | E3: H1 | F3: 8.41 | G3: =VLOOKUP(I39,J40:N52,3,TRUE) ->  | H3: 46.3
A4: 70 Haute Saone | B4: 39 | C4: H1b | D4: sol par roche homogène | E4: H1 | F4: 10.3 | G4: =VLOOKUP(I39,J40:N52,2,TRUE) ->  | H4: 48.58
A5: 90 Territoire de Belfort | B5: 70 | C5: H1b | D5: roche homogène | E5: H1 | F5: 9.6 | G5: =VLOOKUP(I39,J40:N52,5,TRUE) ->  | H5: 48.58
A7: 400m ≤ altitude | B7: 1 | C7: 0
A8: 400m < altitude ≤ 800m | C8: 1
A9: altitude > 800m | C9: 2
A15: DEPARTEMENT | C15: LATITUDE | D15: ZONE | E15: ALTITUDE | F15: DEGRES-JOURS | T15: GLOBAL HORIZONTAL OU FRACTION SOLAIRE (kWh/j.m² ou sans unité) | AG15: TEMPERATURE EXTERIEURE (°C) | AT15: TEMPERATURE EAU FROIDE (°C) | BI15: ENSOLEILLEMENT VERTICAL SUD (kWh/j.m²) | BV15: DISTANCE/MER | BX15: Données départementales
C16: (° ) | E16: (m) | F16: 31 | G16: 28 | H16: 31 | I16: 30 | J16: 31 | K16: 30 | L16: 31 | M16: 31 | N16: 30 | O16: 31 | P16: 30 | Q16: 31 | R16: 365 | BV16: (km)
F18: Jan | G18: Fév | H18: Mar | I18: Avr | J18: Mai | K18: Jun | L18: Jul | M18: Aoû | N18: Sep | O18: Oct | P18: Nov | Q18: Déc | R18: Année | T18: Jan | U18: Fév | V18: Mar | W18: Avr | X18: Mai | Y18: Jun | Z18: Jul | AA18: Aoû | AB18: Sep | AC18: Oct | AD18: Nov | AE18: Déc | AG18: Jan | AH18: Fév | AI18: Mar | AJ18: Avr | AK18: Mai | AL18: Jun | AM18: Jul | AN18: Aoû | AO18: Sep | AP18: Oct | AQ18: Nov | AR18: Déc | AT18: Jan | AU18: Fév | AV18: Mar | AW18: Avr | AX18: Mai | AY18: Jun | AZ18: Jul | BA18: Aoû | BB18: Sep | BC18: Oct | BD18: Nov | BE18: Déc | BI18: Jan | BJ18: Fév | BK18: Mar | BL18: Avr | BM18: Mai | BN18: Jun | BO18: Jul | BP18: Aoû | BQ18: Sep | BR18: Oct | BS18: Nov | BT18: Déc | BU18: Moyen /Année | BX18: Département | BY18: Zone | BZ18: Durée chauffe | CA18: C3 | CB18: C4 | CC18: CCL
A19: 1 | B19: AMBERIEU (01) | C19: 45.98 | D19: H1 | E19: 253 | F19: 499 | G19: 390 | H19: 348 | I19: 258 | J19: 142 | K19: 53 | L19: 0 | M19: 0 | N19: 84 | O19: 213 | P19: 366 | Q19: 484 | R19: 2837 | S19: AMBERIEU (01) | T19: 1.01 | U19: 1.68 | V19: 2.78 | W19: 4.08 | X19: 5.01 | Y19: 5.62 | Z19: 6.05 | AA19: 4.85 | AB19: 3.65 | AC19: 2.3 | AD19: 1.14 | AE19: 0.75 | AG19: 1.5 | AH19: 3 | AI19: 7.2 | AJ19: 10.3 | AK19: 14.1 | AL19: 17.4 | AM19: 19.5 | AN19: 19.3 | AO19: 16.5 | AP19: 11.1 | AQ19: 6.3 | AR19: 2.5 | AT19: 6.1 | AU19: 6.9 | AV19: 9 | AW19: 10.5 | AX19: 12.4 | AY19: 14.1 | AZ19: 15.1 | BA19: 15 | BB19: 13.6 | BC19: 10.9 | BD19: 8.5 | BE19: 6.6 | BF19: 10.725 | BI19: 1.4 | BJ19: 1.91 | BK19: 2.49 | BL19: 2.78 | BM19: 2.74 | BN19: 2.77 | BO19: 3.06 | BP19: 3.01 | BQ19: 3.03 | BR19: 2.56 | BS19: 1.49 | BT19: 1.04 | BU19: 2.356666667 | BV19: 290 | BX19: 1 | BY19: H1 | BZ19: 4900 | CA19: 1.5 | CC19: 1
A20: 21 | B20: DIJON (21) | C20: 47.38 | D20: H1 | E20: 220 | F20: 498 | G20: 400 | H20: 348 | I20: 238 | J20: 144 | K20: 51 | L20: 0 | M20: 0 | N20: 68 | O20: 214 | P20: 375 | Q20: 491 | R20: 2827 | S20: DIJON (21) | T20: 0.92 | U20: 1.72 | V20: 2.82 | W20: 4.23 | X20: 4.98 | Y20: 5.64 | Z20: 5.82 | AA20: 4.74 | AB20: 3.72 | AC20: 2.15 | AD20: 1.06 | AE20: 0.73 | AG20: 1.4 | AH20: 2.8 | AI20: 7.1 | AJ20: 10.5 | AK20: 14.3 | AL20: 17.5 | AM20: 19.5 | AN20: 19.1 | AO20: 16.1 | AP20: 10.8 | AQ20: 5.9 | AR20: 2.3 | AT20: 6 | AU20: 6.7 | AV20: 8.9 | AW20: 10.6 | AX20: 12.5 | AY20: 14.1 | AZ20: 15.1 | BA20: 14.9 | BB20: 13.4 | BC20: 10.7 | BD20: 8.3 | BE20: 6.5 | BF20: 10.64166667 | BI20: 1.33 | BJ20: 2.09 | BK20: 2.64 | BL20: 2.98 | BM20: 2.79 | BN20: 2.84 | BO20: 3.04 | BP20: 3.02 | BQ20: 3.22 | BR20: 2.46 | BS20: 1.44 | BT20: 1.1 | BU20: 2.4125 | BV20: 400 | BX20: 20A | BY20: H3 | BZ20: 3840 | CA20: 1.8 | CB20: 5 | CC20: 1.1 | CD20: H1c
A21: 25 | B21: BESANCON (25) | C21: 47.25 | D21: H1 | E21: 311 | F21: 500 | G21: 405 | H21: 358 | I21: 259 | J21: 157 | K21: 66 | L21: 0 | M21: 0 | N21: 84 | O21: 220 | P21: 374 | Q21: 490 | R21: 2913 | S21: BESANCON (25) | T21: 0.94 | U21: 1.72 | V21: 2.93 | W21: 4.25 | X21: 5.43 | Y21: 5.94 | Z21: 6.04 | AA21: 4.98 | AB21: 3.72 | AC21: 2.35 | AD21: 1.16 | AE21: 0.8 | AG21: 1.3 | AH21: 2.5 | AI21: 6.8 | AJ21: 9.9 | AK21: 13.7 | AL21: 17 | AM21: 18.8 | AN21: 18.6 | AO21: 15.9 | AP21: 10.7 | AQ21: 5.9 | AR21: 2.2 | AT21: 5.8 | AU21: 6.4 | AV21: 8.5 | AW21: 10.1 | AX21: 12 | AY21: 13.6 | AZ21: 14.5 | BA21: 14.4 | BB21: 13.1 | BC21: 10.5 | BD21: 8.1 | BE21: 6.2 | BF21: 10.26666667 | BI21: 1.36 | BJ21: 2.08 | BK21: 2.76 | BL21: 2.99 | BM21: 3.02 | BN21: 2.96 | BO21: 3.13 | BP21: 3.17 | BQ21: 3.21 | BR21: 2.78 | BS21: 1.64 | BT21: 1.25 | BU21: 2.529166667 | BV21: 440 | BX21: 21 | BY21: H1 | BZ21: 4900 | CA21: 1.5 | CC21: 1 | CD21: H1c
A22: 25 | B22: PONTARLIER (25) | C22: 46.9 | D22: H1 | E22: 830 | F22: 570 | G22: 487 | H22: 463 | I22: 356 | J22: 237 | K22: 141 | L22: 0 | M22: 0 | N22: 154 | O22: 276 | P22: 428 | Q22: 542 | R22: 3654 | S22: PONTARLIER (25) | T22: 0.24 | U22: 0.41 | V22: 0.4 | W22: 0.4 | X22: 0.39 | Y22: 0.41 | Z22: 0.51 | AA22: 0.42 | AB22: 0.44 | AC22: 0.37 | AD22: 0.33 | AE22: 0.3 | AG22: -0.4 | AH22: 0.8 | AI22: 3.1 | AJ22: 6.1 | AK22: 10.4 | AL22: 13.5 | AM22: 16.1 | AN22: 15.8 | AO22: 12.9 | AP22: 9.1 | AQ22: 3.7 | AR22: 0.5 | AT22: 5.8 | AU22: 6.4 | AV22: 8.5 | AW22: 10.1 | AX22: 12 | AY22: 13.6 | AZ22: 14.5 | BA22: 14.4 | BB22: 13.1 | BC22: 10.5 | BD22: 8.1 | BE22: 6.2 | BF22: 10.26666667 | BI22: 1.36 | BJ22: 2.08 | BK22: 2.76 | BL22: 2.99 | BM22: 3.02 | BN22: 2.96 | BO22: 3.13 | BP22: 3.17 | BQ22: 3.21 | BR22: 2.78 | BS22: 1.64 | BT22: 1.25 | BU22: 2.529166667 | BV22: 440 | BX22: 22 | BY22: H2 | BZ22: 5400 | CB22: 5 | CC22: 1 | CD22: H1c
A23: 39 | B23: MONTMOROT (39) | C23: 46.7 | D23: H1 | E23: 250 | F23: 507 | G23: 395 | H23: 340 | I23: 261 | J23: 152 | K23: 27 | L23: 0 | M23: 0 | N23: 61 | O23: 200 | P23: 370 | Q23: 446 | R23: 2759 | S23: MONTMOROT (39) | T23: 0.16 | U23: 0.29 | V23: 0.33 | W23: 0.42 | X23: 0.4 | Y23: 0.5 | Z23: 0.57 | AA23: 0.53 | AB23: 0.53 | AC23: 0.31 | AD23: 0.26 | AE23: 0.19 | AG23: 1.6 | AH23: 3.9 | AI23: 7 | AJ23: 9.3 | AK23: 13.1 | AL23: 17.1 | AM23: 19.6 | AN23: 18.4 | AO23: 16 | AP23: 11.5 | AQ23: 5.7 | AR23: 3.6 | AT23: 5 | AU23: 5 | AV23: 6 | AW23: 9 | AX23: 11 | AY23: 13 | AZ23: 14 | BA23: 14 | BB23: 13 | BC23: 11 | BD23: 9 | BE23: 6 | BF23: 9.666666667 | BI23: 1.2 | BJ23: 1.91 | BK23: 2.27 | BL23: 2.66 | BM23: 2.51 | BN23: 2.73 | BO23: 2.94 | BP23: 2.97 | BQ23: 3.11 | BR23: 2.04 | BS23: 1.61 | BT23: 1.24 | BU23: 2.265833333 | BV23: 600 | CD23: H1c
A24: 39 | B24: CHAMPAGNOLE (39) | C24: 46.75 | D24: H1 | E24: 530 | F24: 493 | G24: 430 | H24: 375 | I24: 303 | J24: 160 | K24: 87 | L24: 0 | M24: 0 | N24: 131 | O24: 234 | P24: 379 | Q24: 481 | R24: 3073 | S24: CHAMPAGNOLE (39) | T24: 0.25 | U24: 0.35 | V24: 0.39 | W24: 0.42 | X24: 0.4 | Y24: 0.47 | Z24: 0.57 | AA24: 0.5 | AB24: 0.52 | AC24: 0.44 | AD24: 0.33 | AE24: 0.28 | AG24: 2.1 | AH24: 2.8 | AI24: 6 | AJ24: 7.9 | AK24: 12.9 | AL24: 15.5 | AM24: 18.8 | AN24: 18.7 | AO24: 13.8 | AP24: 10.5 | AQ24: 5.4 | AR24: 2.5 | AT24: 4 | AU24: 4 | AV24: 6 | AW24: 8 | AX24: 11 | AY24: 12 | AZ24: 13 | BA24: 13 | BB24: 10 | BC24: 9 | BD24: 5 | BE24: 5 | BF24: 8.333333333 | BI24: 1.52 | BJ24: 2.16 | BK24: 2.52 | BL24: 2.66 | BM24: 2.52 | BN24: 2.65 | BO24: 2.94 | BP24: 2.87 | BQ24: 3.06 | BR24: 2.61 | BS24: 1.89 | BT24: 1.56 | BU24: 2.413333333 | BV24: 600 | CD24: H1c
A25: 39 | B25: SAINT CLAUDE (39) | C25: 46.4 | D25: H1 | E25: 434 | F25: 500 | G25: 413 | H25: 358 | I25: 282 | J25: 156 | K25: 57 | L25: 0 | M25: 0 | N25: 96 | O25: 217 | P25: 375 | Q25: 464 | R25: 2918 | S25: SAINT CLAUDE (39) | T25: 0.18 | U25: 0.24 | V25: 0.34 | W25: 0.34 | X25: 0.35 | Y25: 0.39 | Z25: 0.49 | AA25: 0.45 | AB25: 0.49 | AC25: 0.39 | AD25: 0.28 | AE25: 0.19 | AG25: 0.5 | AH25: 2.1 | AI25: 4.2 | AJ25: 7.2 | AK25: 11.6 | AL25: 15.2 | AM25: 17.7 | AN25: 17 | AO25: 14.1 | AP25: 9.7 | AQ25: 4.8 | AR25: 1.4 | AT25: 4 | AU25: 4 | AV25: 5 | AW25: 8 | AX25: 10 | AY25: 12 | AZ25: 13 | BA25: 12 | BB25: 9 | BC25: 8 | BD25: 5 | BE25: 4 | BF25: 7.833333333 | BI25: 1.53 | BJ25: 2.25 | BK25: 2.44 | BL25: 2.58 | BM25: 2.23 | BN25: 2.59 | BO25: 2.99 | BP25: 2.83 | BQ25: 3.19 | BR25: 2.61 | BS25: 2.28 | BT25: 1.76 | BU25: 2.44 | BV25: 600 | CD25: H1c
A26: 39 | B26: MORBIER (39) | C26: 46.54 | D26: H1 | E26: 850 | F26: 668 | G26: 551 | H26: 528 | I26: 430 | J26: 316 | K26: 188 | L26: 0 | M26: 0 | N26: 209 | O26: 330 | P26: 366 | Q26: 593 | R26: 4179 | S26: MORBIER (39) | T26: 0.25 | U26: 0.37 | V26: 0.37 | W26: 0.4 | X26: 0.31 | Y26: 0.45 | Z26: 0.59 | AA26: 0.49 | AB26: 0.55 | AC26: 0.44 | AD26: 0.42 | AE26: 0.33 | AG26: -3.5 | AH26: -1.7 | AI26: 1 | AJ26: 3.7 | AK26: 7.8 | AL26: 11.7 | AM26: 14.3 | AN26: 13.1 | AO26: 11 | AP26: 7.3 | AQ26: 1.8 | AR26: -1.1 | AT26: 4 | AU26: 4 | AV26: 5 | AW26: 8 | AX26: 10 | AY26: 12 | AZ26: 13 | BA26: 12 | BB26: 9 | BC26: 8 | BD26: 5 | BE26: 4 | BF26: 7.833333333 | BG26: =AVERAGE(BF23:BF26) -> 8.416666667 | BI26: 1.53 | BJ26: 2.25 | BK26: 2.44 | BL26: 2.58 | BM26: 2.23 | BN26: 2.59 | BO26: 2.99 | BP26: 2.83 | BQ26: 3.19 | BR26: 2.61 | BS26: 2.28 | BT26: 1.76 | BU26: 2.44 | BV26: 600 | BX26: 23 | BY26: H2 | BZ26: 5300 | CC26: 1 | CD26: H1c
A27: 70 | B27: LUXEUIL (70) | C27: 47.78 | D27: H1 | E27: 272 | F27: 519 | G27: 422 | H27: 383 | I27: 286 | J27: 178 | K27: 74 | L27: 0 | M27: 0 | N27: 102 | O27: 251 | P27: 401 | Q27: 514 | R27: 3130 | S27: LUXEUIL (70) | T27: 0.91 | U27: 1.62 | V27: 2.87 | W27: 3.98 | X27: 5.08 | Y27: 5.58 | Z27: 5.48 | AA27: 4.56 | AB27: 3.52 | AC27: 2.12 | AD27: 1 | AE27: 0.68 | AG27: 1 | AH27: 2.3 | AI27: 6.6 | AJ27: 10.3 | AK27: 14.2 | AL27: 17.4 | AM27: 19.3 | AN27: 18.9 | AO27: 15.8 | AP27: 10.5 | AQ27: 5.6 | AR27: 1.9 | AT27: 5.6 | AU27: 6.3 | AV27: 8.5 | AW27: 10.3 | AX27: 12.2 | AY27: 13.8 | AZ27: 14.8 | BA27: 14.6 | BB27: 13.1 | BC27: 10.4 | BD27: 7.9 | BE27: 6.1 | BF27: 10.3 | BI27: 1.35 | BJ27: 1.95 | BK27: 2.73 | BL27: 2.8 | BM27: 2.86 | BN27: 2.84 | BO27: 2.91 | BP27: 2.92 | BQ27: 3.03 | BR27: 2.45 | BS27: 1.36 | BT27: 1.02 | BU27: 2.351666667 | BV27: 420 | BX27: 1 | BY27: H1 | BZ27: 4800 | CA27: 1.5 | CC27: 1.1 | CD27: H1b
A28: 90 | B28: BELFORT (90) | C28: 47.38 | D28: H1 | E28: 422 | F28: 541 | G28: 438 | H28: 395 | I28: 280 | J28: 177 | K28: 80 | L28: 0 | M28: 0 | N28: 105 | O28: 252 | P28: 406 | Q28: 518 | R28: 3192 | S28: BELFORT (90) | T28: 0.26 | U28: 0.41 | V28: 0.38 | W28: 0.43 | X28: 0.51 | Y28: 0.49 | Z28: 0.54 | AA28: 0.52 | AB28: 0.43 | AC28: 0.36 | AD28: 0.16 | AE28: 0.19 | AG28: 0.3 | AH28: 1.9 | AI28: 5.3 | AJ28: 8.7 | AK28: 12.7 | AL28: 15.9 | AM28: 17.9 | AN28: 17.4 | AO28: 14.7 | AP28: 10 | AQ28: 4.7 | AR28: 1.3 | AT28: 5 | AU28: 5 | AV28: 6 | AW28: 9 | AX28: 11 | AY28: 13 | AZ28: 14 | BA28: 14 | BB28: 13 | BC28: 11 | BD28: 9 | BE28: 6 | BF28: 9.666666667 | BI28: 1.54 | BJ28: 2.42 | BK28: 2.48 | BL28: 2.71 | BM28: 2.87 | BN28: 2.73 | BO28: 2.89 | BP28: 2.96 | BQ28: 2.68 | BR28: 2.24 | BS28: 1.23 | BT28: 1.22 | BU28: 2.330833333 | BV28: 390 | BX28: 1 | BY28: H1 | BZ28: 5200 | CA28: 1.5 | CC28: 1 | CD28: H1b
A29: 39 | B29: DOLE (39) | D29: H2 | E29: 645 | F29: 503.6625 | G29: 438.135 | H29: 346.6536427 | I29: 204.2911626 | J29: 117.3958037 | K29: 51.14003637 | L29: 28.0194598 | M29: 31.28748548 | N29: 88.90089357 | O29: 210.5636385 | P29: 347.2382402 | Q29: 486.4875 | R29: =SUM(F29:Q29) -> 2853.775363 | S29: DOLE (39) | T29: 0.8363636364 | U29: 1.563636364 | V29: 2.563636364 | W29: 3.845454545 | X29: 4.527272727 | Y29: 5.127272727 | Z29: 5.290909091 | AA29: 4.309090909 | AB29: 3.381818182 | AC29: 1.954545455 | AD29: 0.9636363636 | AE29: 0.6636363636 | AG29: 1.272727273 | AH29: 2.545454545 | AI29: 6.454545455 | AJ29: 9.545454545 | AK29: 13 | AL29: 15.90909091 | AM29: 17.72727273 | AN29: 17.36363636 | AO29: 14.63636364 | AP29: 9.818181818 | AQ29: 5.363636364 | AR29: 2.090909091 | AT29: =AT20/1.1 -> 5.454545455 | AU29: =AU20/1.1 -> 6.090909091 | AV29: 8.090909091 | AW29: 9.636363636 | AX29: 11.36363636 | AY29: 12.81818182 | AZ29: 13.72727273 | BA29: 13.54545455 | BB29: 12.18181818 | BC29: 9.727272727 | BD29: 7.545454545 | BE29: 5.909090909 | BF29: =AVERAGE(AT29:BE29) -> 9.674242424 | BI29: =BI20/1.1 -> 1.209090909 | BJ29: =BJ20/1.1 -> 1.9 | BK29: 2.4 | BL29: 2.709090909 | BM29: 2.536363636 | BN29: 2.581818182 | BO29: 2.763636364 | BP29: 2.745454545 | BQ29: 2.927272727 | BR29: 2.236363636 | BS29: 1.309090909 | BT29: 1 | BU29: =AVERAGE(BI29:BT29) -> 2.193181818 | BV29: 400 | CD29: H1c
L31: =(INDEX(E20:E29,A18)) -> 
S33: source | T33: http://re.jrc.ec.europa.eu/pvgis/apps4/pvest.php
T34: apports solaires (kWh/j.m²/orientation)
S36: =S20 -> DIJON (21) | T36: janvier | U36: fevrier | V36: mars | W36: avril | X36: mai | Y36: juin | Z36: juillet | AA36: aout | AB36: septembre | AC36: octobre | AD36: novembre | AE36: decembre
S37: Nord : | T37: 0.28 | U37: 0.47 | V37: 0.77 | W37: 0.98 | X37: 1.35 | Y37: 1.7 | Z37: 1.51 | AA37: 1.03 | AB37: 0.76 | AC37: 0.57 | AD37: 0.33 | AE37: 0.24
A38: 1 | B38: AIN | C38: H1 | D38: V | E38: -10 | F38: -999 | G38: 0 | H38: 01 | J38: altitude | K38: =INDEX(A20:A29,A18) ->  | L38: =IF(K38=70,1,IF(K38=39,2,IF(K38=25,3,IF(N39=90,4,"")))) ->  | S38: nord Est/ouest | T38: =(T37+T39)/2 -> 0.425 | U38: =(U37+U39)/2 -> 0.81 | V38: 1.395 | W38: 1.795 | X38: 2.075 | Y38: 2.435 | Z38: 2.315 | AA38: 1.87 | AB38: 1.5 | AC38: 0.99 | AD38: 0.525 | AE38: 0.375
A39: 02 | B39: AISNE | C39: H1 | D39: V | E39: -7 | F39: -999 | G39: 0 | H39: 02 | I39: =(INDEX(E20:E29,A18)) ->  | J39: =SUM(O40:O52) ->  | K39: 70 | L39: 39 | M39: 25 | N39: 90 | S39: Est : | T39: 0.57 | U39: 1.15 | V39: 2.02 | W39: 2.61 | X39: 2.8 | Y39: 3.17 | Z39: 3.12 | AA39: 2.71 | AB39: 2.24 | AC39: 1.41 | AD39: 0.72 | AE39: 0.51
A40: 03 | B40: ALLIER | C40: H1 | D40: V | E40: -8 | F40: -999 | G40: 0 | H40: 03 | I40: 1 | J40: 200 | K40: -12 | L40: -10 | M40: -12 | N40: -15 | O40: =IF(I39<J40,200,0) ->  | S40: Sud est/ouest | T40: =(T39+T41)/2 -> 0.975 | U40: =(U39+U41)/2 -> 1.82 | V40: 2.725 | W40: 2.955 | X40: 2.775 | Y40: 2.965 | Z40: 2.99 | AA40: 2.915 | AB40: 2.865 | AC40: 2.095 | AD40: 1.205 | AE40: 0.91
A41: 04 | B41: ALPES DE HAUTES-PROVENCE | C41: H2 | D41: V | E41: -8 | F41: -999 | G41: 0 | H41: 04 | I41: 2 | J41: 400 | K41: -13 | L41: -11 | M41: -13 | N41: -15 | O41: =IF(AND($I$39>=J40,$I$39<J41),J41,0) ->  | S41: Sud : | T41: 1.38 | U41: 2.49 | V41: 3.43 | W41: 3.3 | X41: 2.75 | Y41: 2.76 | Z41: 2.86 | AA41: 3.12 | AB41: 3.49 | AC41: 2.78 | AD41: 1.69 | AE41: 1.31
A42: 05 | B42: HAUTES-ALPES | C42: H1 | D42: V | E42: -10 | F42: -999 | G42: 0 | H42: 05 | I42: 3 | J42: 600 | K42: -15 | L42: -13 | M42: -15 | N42: -19 | O42: =IF(AND($I$39>=J41,$I$39<J42),J42,0) ->  | S42: Ouest : | T42: 0.57 | U42: 1.14 | V42: 2.02 | W42: 2.61 | X42: 2.8 | Y42: 3.16 | Z42: 3.12 | AA42: 2.71 | AB42: 2.24 | AC42: 1.41 | AD42: 0.72 | AE42: 0.51
I43: 4 | S43: Horizontal | T43: 0.94 | U43: 1.84 | V43: 3.36 | W43: 4.56 | X43: 5.12 | Y43: 5.87 | Z43: 5.77 | AA43: 4.89 | AB43: 3.81 | AC43: 2.31 | AD43: 1.16 | AE43: 0.81
A44: 06 | B44: ALPES-MARITIMES | C44: H3 | D44: V | E44: -5 | F44: -999 | G44: 1 | H44: 06 | I44: 5 | J44: 800 | K44: -17 | L44: -14 | M44: -17 | N44: -21 | O44: =IF(AND($I$39>=J42,$I$39<J44),J44,0) ->  | S44: =S21 -> BESANCON (25) | T44: janvier | U44: fevrier | V44: mars | W44: avril | X44: mai | Y44: juin | Z44: juillet | AA44: aout | AB44: septembre | AC44: octobre | AD44: novembre | AE44: decembre
A45: 07 | B45: ARDÈCHE | C45: H2 | D45: V ou W | E45: -6 | F45: -999 | G45: 0 | H45: 07 | I45: 6 | J45: 1000 | K45: -19 | L45: -17 | M45: -19 | N45: -23 | S45: Nord : | T45: 0.28 | U45: 0.44 | V45: 0.74 | W45: 0.96 | X45: 1.32 | Y45: 1.63 | Z45: 1.46 | AA45: 0.97 | AB45: 0.74 | AC45: 0.55 | AD45: 0.33 | AE45: 0.24
A46: 08 | B46: ARDENNES | C46: H1 | D46: V | E46: -10 | F46: -999 | G46: 0 | H46: 08 | I46: 7 | J46: 1200 | K46: -21 | L46: -19 | M46: -21 | N46: -24 | S46: nord Est/ouest | T46: =(T45+T47)/2 -> 0.44 | U46: =(U45+U47)/2 -> 0.755 | V46: 1.31 | W46: 1.74 | X46: 2.04 | Y46: 2.38 | Z46: 2.3 | AA46: 1.835 | AB46: 1.49 | AC46: 1.005 | AD46: 0.535 | AE46: 0.37
A47: 09 | B47: ARIÈGE | C47: H2 | D47: V | E47: -5 | F47: -999 | G47: 0 | H47: 09 | I47: 8 | J47: 1400 | K47: -23 | L47: -21 | M47: -23 | N47: -25 | S47: Est : | T47: 0.6 | U47: 1.07 | V47: 1.88 | W47: 2.52 | X47: 2.76 | Y47: 3.13 | Z47: 3.14 | AA47: 2.7 | AB47: 2.24 | AC47: 1.46 | AD47: 0.74 | AE47: 0.5
A48: 10 | B48: AUBE | C48: H1 | D48: V | E48: -10 | F48: -999 | G48: 0 | H48: 10 | I48: 9 | J48: 1600 | K48: -24 | L48: -23 | M48: -24 | S48: Sud est/ouest | T48: =(T47+T49)/2 -> 1.1 | U48: =(U47+U49)/2 -> 1.76 | V48: 2.56 | W48: 2.885 | X48: 2.735 | Y48: 2.925 | Z48: 3 | AA48: 2.92 | AB48: 2.87 | AC48: 2.205 | AD48: 1.335 | AE48: 0.965
A49: 11 | B49: AUDE | C49: H3 | D49: V ou W | E49: -5 | F49: -999 | G49: 1 | H49: 11 | I49: 10 | J49: 1800 | L49: -24 | S49: Sud : | T49: 1.6 | U49: 2.45 | V49: 3.24 | W49: 3.25 | X49: 2.71 | Y49: 2.72 | Z49: 2.86 | AA49: 3.14 | AB49: 3.5 | AC49: 2.95 | AD49: 1.93 | AE49: 1.43
A50: 12 | B50: AVEYRON | C50: H2 | D50: V | E50: -8 | F50: -999 | G50: 0 | H50: 12 | I50: 11 | J50: 2000 | L50: -25 | S50: Ouest : | T50: 0.62 | U50: 1.13 | V50: 1.92 | W50: 2.57 | X50: 2.78 | Y50: 3.17 | Z50: 3.18 | AA50: 2.76 | AB50: 2.26 | AC50: 1.48 | AD50: 0.78 | AE50: 0.52
I51: 12 | S51: Horizontal | T51: 1 | U51: 1.81 | V51: 3.26 | W51: 4.54 | X51: 5.15 | Y51: 5.9 | Z51: 5.9 | AA51: 4.95 | AB51: 3.81 | AC51: 2.37 | AD51: 1.23 | AE51: 0.84
A52: 13 | B52: BOUCHES-DU-RHÔNE | C52: H3 | D52: W | E52: -5 | F52: -999 | G52: 1 | H52: 13 | I52: 13 | J52: 2200 | L52: -29 | O52: =IF(AND($I$39>=J50,$I$39<J52),J52,0) ->  | S52: =S22 -> PONTARLIER (25) | T52: janvier | U52: fevrier | V52: mars | W52: avril | X52: mai | Y52: juin | Z52: juillet | AA52: aout | AB52: septembre | AC52: octobre | AD52: novembre | AE52: decembre
A53: 14 | B53: CALVADOS | C53: H1 | D53: V | E53: -7 | F53: -999 | G53: 1 | H53: 14 | S53: Nord : | T53: 0.31 | U53: 0.46 | V53: 0.77 | W53: 1 | X53: 1.32 | Y53: 1.59 | Z53: 1.42 | AA53: 0.98 | AB53: 0.76 | AC53: 0.57 | AD53: 0.34 | AE53: 0.25
A54: 15 | B54: CANTAL | C54: H1 | D54: V | E54: -8 | F54: -999 | G54: 0 | H54: 15 | J54: =-G2+Calcul!N65 ->  | S54: nord Est/ouest | T54: =(T53+T55)/2 -> 0.495 | U54: =(U53+U55)/2 -> 0.775 | V54: 1.35 | W54: 1.72 | X54: 1.94 | Y54: 2.23 | Z54: 2.17 | AA54: 1.755 | AB54: 1.445 | AC54: 1.01 | AD54: 0.57 | AE54: 0.4
A55: 16 | B55: CHARENTE | C55: H2 | D55: V | E55: -5 | F55: -999 | G55: 0 | H55: 16 | S55: Est : | T55: 0.68 | U55: 1.09 | V55: 1.93 | W55: 2.44 | X55: 2.56 | Y55: 2.87 | Z55: 2.92 | AA55: 2.53 | AB55: 2.13 | AC55: 1.45 | AD55: 0.8 | AE55: 0.55
A56: 17 | B56: CHARENTE-MARITIME | C56: H2 | D56: V | E56: -5 | F56: -999 | G56: 1 | H56: 17 | S56: Sud est/ouest | T56: =(T55+T57)/2 -> 1.235 | U56: =(U55+U57)/2 -> 1.74 | V56: 2.59 | W56: 2.75 | X56: 2.555 | Y56: 2.73 | Z56: 2.815 | AA56: 2.755 | AB56: 2.75 | AC56: 2.235 | AD56: 1.42 | AE56: 1.06
A57: 18 | B57: CHER | C57: H2 | D57: V | E57: -7 | F57: -999 | G57: 0 | H57: 18 | S57: Sud : | T57: 1.79 | U57: 2.39 | V57: 3.25 | W57: 3.06 | X57: 2.55 | Y57: 2.59 | Z57: 2.71 | AA57: 2.98 | AB57: 3.37 | AC57: 3.02 | AD57: 2.04 | AE57: 1.57
A58: 19 | B58: CORRÈZE | C58: H1 | D58: V | E58: -8 | F58: -999 | G58: 0 | H58: 19 | S58: Ouest : | T58: 0.71 | U58: 1.12 | V58: 1.98 | W58: 2.46 | X58: 2.57 | Y58: 2.88 | Z58: 2.93 | AA58: 2.55 | AB58: 2.15 | AC58: 1.48 | AD58: 0.83 | AE58: 0.58
S59: Horizontal | T59: 1.1 | U59: 1.81 | V59: 3.27 | W59: 4.32 | X59: 4.76 | Y59: 5.47 | Z59: 5.51 | AA59: 4.71 | AB59: 3.72 | AC59: 2.45 | AD59: 1.3 | AE59: 0.9
A60: 2A | B60: CORSE-DU-SUD | C60: H3 | D60: V | E60: -2 | F60: -999 | G60: 1 | H60: 2A | S60: =S23 -> MONTMOROT (39) | T60: janvier | U60: fevrier | V60: mars | W60: avril | X60: mai | Y60: juin | Z60: juillet | AA60: aout | AB60: septembre | AC60: octobre | AD60: novembre | AE60: decembre
A61: 21 | B61: CÔTE-D'OR | C61: H1 | D61: V | E61: -10 | F61: -999 | G61: 0 | H61: 21 | S61: Nord : | T61: 0.29 | U61: 0.46 | V61: 0.74 | W61: 0.95 | X61: 1.31 | Y61: 1.63 | Z61: 1.43 | AA61: 0.97 | AB61: 0.73 | AC61: 0.57 | AD61: 0.34 | AE61: 0.25
A62: 22 | B62: CÔTES D'ARMOR | C62: H2 | D62: V | E62: -4 | F62: -999 | G62: 1 | H62: 22 | S62: nord Est/ouest | T62: =(T61+T63)/2 -> 0.455 | U62: =(U61+U63)/2 -> 0.79 | V62: 1.385 | W62: 1.795 | X62: 2.065 | Y62: 2.425 | Z62: 2.34 | AA62: 1.895 | AB62: 1.515 | AC62: 1.005 | AD62: 0.555 | AE62: 0.4
A63: 23 | B63: CREUSE | C63: H1 | D63: V | E63: -8 | F63: -999 | G63: 0 | H63: 23 | S63: Est : | T63: 0.62 | U63: 1.12 | V63: 2.03 | W63: 2.64 | X63: 2.82 | Y63: 3.22 | Z63: 3.25 | AA63: 2.82 | AB63: 2.3 | AC63: 1.44 | AD63: 0.77 | AE63: 0.55
A64: 24 | B64: DORDOGNE | C64: H2 | D64: V | E64: -5 | F64: -999 | G64: 0 | H64: 24 | S64: Sud est/ouest | T64: =(T63+T65)/2 -> 1.07 | U64: =(U63+U65)/2 -> 1.78 | V64: 2.73 | W64: 2.985 | X64: 2.785 | Y64: 2.985 | Z64: 3.08 | AA64: 2.995 | AB64: 2.945 | AC64: 2.16 | AD64: 1.31 | AE64: 1.015
A65: 25 | B65: DOUBS | C65: H1 | D65: V | E65: -12 | F65: -999 | G65: 0 | H65: 25 | S65: Sud : | T65: 1.52 | U65: 2.44 | V65: 3.43 | W65: 3.33 | X65: 2.75 | Y65: 2.75 | Z65: 2.91 | AA65: 3.17 | AB65: 3.59 | AC65: 2.88 | AD65: 1.85 | AE65: 1.48
A66: 26 | B66: DRÔME | C66: H2 | D66: V ou W | E66: -6 | F66: -999 | G66: 0 | H66: 26 | S66: Ouest : | T66: 0.6 | U66: 1.12 | V66: 2.03 | W66: 2.64 | X66: 2.83 | Y66: 3.22 | Z66: 3.26 | AA66: 2.82 | AB66: 2.32 | AC66: 1.46 | AD66: 0.75 | AE66: 0.53
S67: Horizontal | T67: 1.01 | U67: 1.83 | V67: 3.37 | W67: 4.64 | X67: 5.21 | Y67: 6.02 | Z67: 6.08 | AA67: 5.06 | AB67: 3.92 | AC67: 2.38 | AD67: 1.24 | AE67: 0.88
A68: 27 | B68: EURE | C68: H1 | D68: V | E68: -7 | F68: -999 | G68: 0 | H68: 27 | S68: =S24 -> CHAMPAGNOLE (39) | T68: janvier | U68: fevrier | V68: mars | W68: avril | X68: mai | Y68: juin | Z68: juillet | AA68: aout | AB68: septembre | AC68: octobre | AD68: novembre | AE68: decembre
A69: 28 | B69: EURE-et-LOIR | C69: H1 | D69: V | E69: -7 | F69: -999 | G69: 0 | H69: 28 | S69: Nord : | T69: 0.3 | U69: 0.45 | V69: 0.73 | W69: 0.97 | X69: 1.3 | Y69: 1.64 | Z69: 1.45 | AA69: 0.99 | AB69: 0.73 | AC69: 0.56 | AD69: 0.33 | AE69: 0.25
A70: 29 | B70: FINISTÈRE | C70: H2 | D70: V | E70: -4 | F70: -999 | G70: 1 | H70: 29 | S70: nord Est/ouest | T70: =(T69+T71)/2 -> 0.51 | U70: =(U69+U71)/2 -> 0.805 | V70: 1.355 | W70: 1.735 | X70: 1.995 | Y70: 2.37 | Z70: 2.305 | AA70: 1.875 | AB70: 1.485 | AC70: 1.035 | AD70: 0.58 | AE70: 0.42
A71: 30 | B71: GARD | C71: H3 | D71: V | E71: -5 | F71: -999 | G71: 1 | H71: 30 | S71: Est : | T71: 0.72 | U71: 1.16 | V71: 1.98 | W71: 2.5 | X71: 2.69 | Y71: 3.1 | Z71: 3.16 | AA71: 2.76 | AB71: 2.24 | AC71: 1.51 | AD71: 0.83 | AE71: 0.59
A72: 31 | B72: HAUTE-GARONNE | C72: H2 | D72: V | E72: -5 | F72: -999 | G72: 0 | H72: 31 | S72: Sud est/ouest | T72: =(T71+T73)/2 -> 1.325 | U72: =(U71+U73)/2 -> 1.89 | V72: 2.68 | W72: 2.82 | X72: 2.67 | Y72: 2.89 | Z72: 2.985 | AA72: 2.925 | AB72: 2.875 | AC72: 2.3 | AD72: 1.475 | AE72: 1.15
A73: 32 | B73: GERS | C73: H2 | D73: V | E73: -5 | F73: -999 | G73: 0 | H73: 32 | S73: Sud : | T73: 1.93 | U73: 2.62 | V73: 3.38 | W73: 3.14 | X73: 2.65 | Y73: 2.68 | Z73: 2.81 | AA73: 3.09 | AB73: 3.51 | AC73: 3.09 | AD73: 2.12 | AE73: 1.71
A74: 33 | B74: GIRONDE | C74: H2 | D74: V | E74: -5 | F74: -999 | G74: 1 | H74: 33 | S74: Ouest : | T74: 0.74 | U74: 1.17 | V74: 1.98 | W74: 2.51 | X74: 2.7 | Y74: 3.12 | Z74: 3.18 | AA74: 2.77 | AB74: 2.26 | AC74: 1.53 | AD74: 0.84 | AE74: 0.61
A75: 34 | B75: HÉRAULT | C75: H3 | D75: V | E75: -5 | F75: -999 | G75: 1 | H75: 34 | S75: Horizontal | T75: 1.13 | U75: 1.89 | V75: 3.33 | W75: 4.43 | X75: 5 | Y75: 5.81 | Z75: 5.84 | AA75: 4.93 | AB75: 3.84 | AC75: 2.47 | AD75: 1.31 | AE75: 0.93
A76: 35 | B76: ILLE-et-VILAINE | C76: H2 | D76: V | E76: -4 | F76: -999 | G76: 1 | H76: 35 | S76: =S25 -> SAINT CLAUDE (39) | T76: janvier | U76: fevrier | V76: mars | W76: avril | X76: mai | Y76: juin | Z76: juillet | AA76: aout | AB76: septembre | AC76: octobre | AD76: novembre | AE76: decembre
A77: 36 | B77: INDRE | C77: H2 | D77: V | E77: -7 | F77: -999 | G77: 0 | H77: 36 | S77: Nord : | T77: 0.3 | U77: 0.45 | V77: 0.74 | W77: 0.93 | X77: 1.15 | Y77: 1.36 | Z77: 1.2 | AA77: 0.89 | AB77: 0.74 | AC77: 0.56 | AD77: 0.34 | AE77: 0.25
A78: 37 | B78: INDRE-et-LOIRE | C78: H2 | D78: V | E78: -7 | F78: -999 | G78: 0 | H78: 37 | S78: nord Est/ouest | T78: =(T77+T79)/2 -> 0.46 | U78: =(U77+U79)/2 -> 0.73 | V78: 1.215 | W78: 1.485 | X78: 1.61 | Y78: 1.885 | Z78: 1.83 | AA78: 1.575 | AB78: 1.31 | AC78: 0.94 | AD78: 0.525 | AE78: 0.385
A79: 38 | B79: ISÈRE | C79: H1 | D79: V | E79: -10 | F79: -999 | G79: 0 | H79: 38 | S79: Est : | T79: 0.62 | U79: 1.01 | V79: 1.69 | W79: 2.04 | X79: 2.07 | Y79: 2.41 | Z79: 2.46 | AA79: 2.26 | AB79: 1.88 | AC79: 1.32 | AD79: 0.71 | AE79: 0.52
A80: 39 | B80: JURA | C80: H1 | D80: V | E80: -10 | F80: -999 | G80: 0 | H80: 39 | S80: Sud est/ouest | T80: =(T79+T81)/2 -> 1.23 | U80: =(U79+U81)/2 -> 1.74 | V80: 2.375 | W80: 2.425 | X80: 2.265 | Y80: 2.48 | Z80: 2.575 | AA80: 2.615 | AB80: 2.595 | AC80: 2.135 | AD80: 1.345 | AE80: 1.03 | AH80: Month | AI80: Ed | AJ80: Em | AK80: Hd | AL80: Hm
A81: 40 | B81: LANDES | C81: H2 | D81: V | E81: -5 | F81: -999 | G81: 1 | H81: 40 | S81: Sud : | T81: 1.84 | U81: 2.47 | V81: 3.06 | W81: 2.81 | X81: 2.46 | Y81: 2.55 | Z81: 2.69 | AA81: 2.97 | AB81: 3.31 | AC81: 2.95 | AD81: 1.98 | AE81: 1.54 | AH81: n | AI81: 0.75 | AJ81: 23.2 | AK81: 0.97 | AL81: 30.2
A82: 41 | B82: LOIR-et-CHER | C82: H2 | D82: V | E82: -7 | F82: -999 | G82: 0 | H82: 41 | S82: Ouest : | T82: 0.69 | U82: 1.12 | V82: 1.84 | W82: 2.21 | X82: 2.41 | Y82: 2.8 | Z82: 2.84 | AA82: 2.48 | AB82: 2.08 | AC82: 1.46 | AD82: 0.79 | AE82: 0.52 | AH82: Feb | AI82: 1.52 | AJ82: 42.4 | AK82: 1.90 | AL82: 53.2
A83: 42 | B83: LOIRE | C83: H1 | D83: V | E83: -10 | F83: -999 | G83: 0 | H83: 42 | S83: Horizontal | T83: 1.14 | U83: 1.86 | V83: 3.16 | W83: 4.04 | X83: 4.55 | Y83: 5.36 | Z83: 5.44 | AA83: 4.69 | AB83: 3.71 | AC83: 2.44 | AD83: 1.32 | AE83: 0.92 | AH83: Mar | AI83: 2.70 | AJ83: 83.8 | AK83: 3.40 | AL83: 105
A84: 43 | B84: HAUTE-LOIRE | C84: H1 | D84: V | E84: -8 | F84: -999 | G84: 0 | H84: 43 | S84: =S26 -> MORBIER (39) | T84: janvier | U84: fevrier | V84: mars | W84: avril | X84: mai | Y84: juin | Z84: juillet | AA84: aout | AB84: septembre | AC84: octobre | AD84: novembre | AE84: decembre | AH84: Apr | AI84: 3.61 | AJ84: 108 | AK84: 4.64 | AL84: 139
A85: 44 | B85: LOIRE-ATLANTIQUE | C85: H2 | D85: V | E85: -5 | F85: -999 | G85: 1 | H85: 44 | S85: Nord : | T85: 0.3 | U85: 0.44 | V85: 0.74 | W85: 0.96 | X85: 1.23 | Y85: 1.5 | Z85: 1.33 | AA85: 0.95 | AB85: 0.75 | AC85: 0.56 | AD85: 0.34 | AE85: 0.25 | AH85: May | AI85: 4.01 | AJ85: 124 | AK85: 5.28 | AL85: 164
A86: 45 | B86: LOIRET | C86: H1 | D86: V | E86: -7 | F86: -999 | G86: 0 | H86: 45 | S86: nord Est/ouest | T86: =(T85+T87)/2 -> 0.495 | U86: =(U85+U87)/2 -> 0.745 | V86: 1.22 | W86: 1.56 | X86: 1.79 | Y86: 2.115 | Z86: 2.045 | AA86: 1.69 | AB86: 1.395 | AC86: 0.965 | AD86: 0.56 | AE86: 0.41 | AH86: Jun | AI86: 4.52 | AJ86: 136 | AK86: 6.06 | AL86: 182
A87: 46 | B87: LOT | C87: H2 | D87: V | E87: -6 | F87: -999 | G87: 0 | H87: 46 | S87: Est : | T87: 0.69 | U87: 1.05 | V87: 1.7 | W87: 2.16 | X87: 2.35 | Y87: 2.73 | Z87: 2.76 | AA87: 2.43 | AB87: 2.04 | AC87: 1.37 | AD87: 0.78 | AE87: 0.57 | AH87: Jul | AI87: 4.46 | AJ87: 138 | AK87: 6.00 | AL87: 186
A88: 47 | B88: LOT-et-GARONNE | C88: H2 | D88: V | E88: -5 | F88: -999 | G88: 0 | H88: 47 | S88: Sud est/ouest | T88: =(T87+T89)/2 -> 1.32 | U88: =(U87+U89)/2 -> 1.77 | V88: 2.39 | W88: 2.49 | X88: 2.405 | Y88: 2.625 | Z88: 2.7 | AA88: 2.68 | AB88: 2.685 | AC88: 2.18 | AD88: 1.425 | AE88: 1.12 | AH88: Aug | AI88: 3.78 | AJ88: 117 | AK88: 5.05 | AL88: 156
A89: 48 | B89: LOZÈRE | C89: H2 | D89: V | E89: -8 | F89: -999 | G89: 0 | H89: 48 | S89: Sud : | T89: 1.95 | U89: 2.49 | V89: 3.08 | W89: 2.82 | X89: 2.46 | Y89: 2.52 | Z89: 2.64 | AA89: 2.93 | AB89: 3.33 | AC89: 2.99 | AD89: 2.07 | AE89: 1.67 | AH89: Sep | AI89: 2.98 | AJ89: 89.5 | AK89: 3.91 | AL89: 117
A90: 49 | B90: MAINE-et-LOIRE | C90: H2 | D90: V | E90: -7 | F90: -999 | G90: 0 | H90: 49 | S90: Ouest : | T90: 0.76 | U90: 1.14 | V90: 1.85 | W90: 2.24 | X90: 2.43 | Y90: 2.77 | Z90: 2.84 | AA90: 2.52 | AB90: 2.14 | AC90: 1.48 | AD90: 0.84 | AE90: 0.6 | AH90: Oct | AI90: 1.86 | AJ90: 57.6 | AK90: 2.42 | AL90: 74.9
A91: 50 | B91: MANCHE | C91: H2 | D91: V | E91: -4 | F91: -999 | G91: 1 | H91: 50 | S91: Horizontal | T91: 1.15 | U91: 1.85 | V91: 3.16 | W91: 4.05 | X91: 4.6 | Y91: 5.35 | Z91: 5.4 | AA91: 4.67 | AB91: 3.72 | AC91: 2.45 | AD91: 1.32 | AE91: 0.93 | AH91: Nov | AI91: 0.93 | AJ91: 27.9 | AK91: 1.21 | AL91: 36.4
A92: 51 | B92: MARNE | C92: H1 | D92: V | E92: -10 | F92: -999 | G92: 0 | H92: 51 | S92: =S27 -> LUXEUIL (70) | T92: janvier | U92: fevrier | V92: mars | W92: avril | X92: mai | Y92: juin | Z92: juillet | AA92: aout | AB92: septembre | AC92: octobre | AD92: novembre | AE92: decembre | AH92: Dec | AI92: 0.62 | AJ92: 19.1 | AK92: 0.82 | AL92: 25.5
A93: 52 | B93: HAUTE-MARNE | C93: H1 | D93: V | E93: -12 | F93: -999 | G93: 0 | H93: 52 | S93: Nord : | T93: 0.26 | U93: 0.44 | V93: 0.74 | W93: 0.97 | X93: 1.34 | Y93: 1.68 | Z93: 1.51 | AA93: 1.02 | AB93: 0.76 | AC93: 0.55 | AD93: 0.31 | AE93: 0.22
A94: 53 | B94: MAYENNE | C94: H2 | D94: V | E94: -7 | F94: -999 | G94: 0 | H94: 53 | S94: nord Est/ouest | T94: =(T93+T95)/2 -> 0.425 | U94: =(U93+U95)/2 -> 0.76 | V94: 1.33 | W94: 1.735 | X94: 2.045 | Y94: 2.42 | Z94: 2.315 | AA94: 1.865 | AB94: 1.465 | AC94: 0.95 | AD94: 0.505 | AE94: 0.355 | AH94: =AK81 -> 0.97 | AI94: =AK82 -> 1.90 | AJ94: =AK83 -> 3.40 | AK94: =AK84 -> 4.64 | AL94: =AK85 -> 5.28 | AM94: =AK86 -> 6.06 | AN94: =AK87 -> 6.00 | AO94: =AK88 -> 5.05 | AP94: =AK89 -> 3.91 | AQ94: =AK90 -> 2.42 | AR94: =AK91 -> 1.21 | AS94: =AK92 -> 0.82
A95: 54 | B95: MEURTHE-et-MOSELLE | C95: H1 | D95: V | E95: -15 | F95: -999 | G95: 0 | H95: 54 | S95: Est : | T95: 0.59 | U95: 1.08 | V95: 1.92 | W95: 2.5 | X95: 2.75 | Y95: 3.16 | Z95: 3.12 | AA95: 2.71 | AB95: 2.17 | AC95: 1.35 | AD95: 0.7 | AE95: 0.49
A96: 55 | B96: MEUSE | C96: H1 | D96: V | E96: -12 | F96: -999 | G96: 0 | H96: 55 | S96: Sud est/ouest | T96: =(T95+T97)/2 -> 1.03 | U96: =(U95+U97)/2 -> 1.71 | V96: 2.595 | W96: 2.825 | X96: 2.725 | Y96: 2.965 | Z96: 2.985 | AA96: 2.905 | AB96: 2.76 | AC96: 2.01 | AD96: 1.185 | AE96: 0.915
A97: 56 | B97: MORBIHAN | C97: H2 | D97: V | E97: -4 | F97: -999 | G97: 1 | H97: 56 | S97: Sud : | T97: 1.47 | U97: 2.34 | V97: 3.27 | W97: 3.15 | X97: 2.7 | Y97: 2.77 | Z97: 2.85 | AA97: 3.1 | AB97: 3.35 | AC97: 2.67 | AD97: 1.67 | AE97: 1.34
A98: 57 | B98: MOSELLE | C98: H1 | D98: V | E98: -15 | F98: -999 | G98: 0 | H98: 57 | S98: Ouest : | T98: 0.59 | U98: 1.08 | V98: 1.92 | W98: 2.5 | X98: 2.75 | Y98: 3.15 | Z98: 3.12 | AA98: 2.71 | AB98: 2.18 | AC98: 1.35 | AD98: 0.7 | AE98: 0.49
A99: 58 | B99: NIÈVRE | C99: H1 | D99: V | E99: -10 | F99: -999 | G99: 0 | H99: 58 | S99: Horizontal | T99: 0.91 | U99: 1.71 | V99: 3.2 | W99: 4.35 | X99: 5 | Y99: 5.84 | Z99: 5.69 | AA99: 4.81 | AB99: 3.65 | AC99: 2.2 | AD99: 1.1 | AE99: 0.76
A100: 59 | B100: NORD | C100: H1 | D100: V | E100: -9 | F100: -999 | G100: 0 | H100: 59 | S100: =S28 -> BELFORT (90) | T100: janvier | U100: fevrier | V100: mars | W100: avril | X100: mai | Y100: juin | Z100: juillet | AA100: aout | AB100: septembre | AC100: octobre | AD100: novembre | AE100: decembre
A101: 60 | B101: OISE | C101: H1 | D101: V | E101: -7 | F101: -999 | G101: 0 | H101: 60 | S101: Nord : | T101: 0.28 | U101: 0.45 | V101: 0.73 | W101: 0.96 | X101: 1.34 | Y101: 1.67 | Z101: 1.49 | AA101: 1 | AB101: 0.75 | AC101: 0.56 | AD101: 0.32 | AE101: 0.23
A102: 61 | B102: ORNE | C102: H1 | D102: V | E102: -7 | F102: -999 | G102: 0 | H102: 61 | S102: nord Est/ouest | T102: =(T101+T103)/2 -> 0.43 | U102: =(U101+U103)/2 -> 0.765 | V102: 1.315 | W102: 1.77 | X102: 2.075 | Y102: 2.43 | Z102: 2.33 | AA102: 1.89 | AB102: 1.485 | AC102: 0.975 | AD102: 0.515 | AE102: 0.355
A103: 62 | B103: PAS-de-CALAIS | C103: H1 | D103: V | E103: -9 | F103: -999 | G103: 0 | H103: 62 | S103: Est : | T103: 0.58 | U103: 1.08 | V103: 1.9 | W103: 2.58 | X103: 2.81 | Y103: 3.19 | Z103: 3.17 | AA103: 2.78 | AB103: 2.22 | AC103: 1.39 | AD103: 0.71 | AE103: 0.48
A104: 63 | B104: PUY-DE-DÔME | C104: H1 | D104: V | E104: -8 | F104: -999 | G104: 0 | H104: 63 | S104: Sud est/ouest | T104: =(T103+T105)/2 -> 1.015 | U104: =(U103+U105)/2 -> 1.73 | V104: 2.575 | W104: 2.925 | X104: 2.785 | Y104: 2.98 | Z104: 3.02 | AA104: 2.985 | AB104: 2.835 | AC104: 2.075 | AD104: 1.24 | AE104: 0.91
A105: 64 | B105: PYRÉNÉES-ATLANTIQUES | C105: H2 | D105: V | E105: -5 | F105: -999 | G105: 1 | H105: 64 | S105: Sud : | T105: 1.45 | U105: 2.38 | V105: 3.25 | W105: 3.27 | X105: 2.76 | Y105: 2.77 | Z105: 2.87 | AA105: 3.19 | AB105: 3.45 | AC105: 2.76 | AD105: 1.77 | AE105: 1.34
A106: 65 | B106: HAUTES-PYRÉNÉES | C106: H2 | D106: V | E106: -5 | F106: -999 | G106: 0 | H106: 65 | S106: Ouest : | T106: 0.61 | U106: 1.11 | V106: 1.92 | W106: 2.6 | X106: 2.83 | Y106: 3.19 | Z106: 3.17 | AA106: 2.81 | AB106: 2.24 | AC106: 1.4 | AD106: 0.74 | AE106: 0.51
A107: 66 | B107: PYRÉNÉES-ORIENTALES | C107: H3 | D107: V ou W | E107: -5 | F107: -999 | G107: 1 | H107: 66 | S107: Horizontal | T107: 0.95 | U107: 1.76 | V107: 3.19 | W107: 4.5 | X107: 5.13 | Y107: 5.89 | Z107: 5.82 | AA107: 4.96 | AB107: 3.75 | AC107: 2.27 | AD107: 1.17 | AE107: 0.79
A108: 67 | B108: BAS-RHIN | C108: H1 | D108: V | E108: -15 | F108: -999 | G108: 0 | H108: 67 | S108: =S29 -> DOLE (39) | T108: janvier | U108: fevrier | V108: mars | W108: avril | X108: mai | Y108: juin | Z108: juillet | AA108: aout | AB108: septembre | AC108: octobre | AD108: novembre | AE108: decembre
A109: 68 | B109: HAUT-RHIN | C109: H1 | D109: V | E109: -15 | F109: -999 | G109: 0 | H109: 68 | S109: Nord : | T109: 0.29 | U109: 0.46 | V109: 0.76 | W109: 0.96 | X109: 1.35 | Y109: 1.68 | Z109: 1.49 | AA109: 0.99 | AB109: 0.74 | AC109: 0.57 | AD109: 0.33 | AE109: 0.24
A110: 69 | B110: RHÔNE | C110: H1 | D110: V | E110: -10 | F110: -999 | G110: 0 | H110: 69 | S110: nord Est/ouest | T110: =(T109+T111)/2 -> 0.445 | U110: =(U109+U111)/2 -> 0.83 | V110: 1.405 | W110: 1.81 | X110: 2.125 | Y110: 2.475 | Z110: 2.365 | AA110: 1.9 | AB110: 1.53 | AC110: 1.03 | AD110: 0.545 | AE110: 0.38
A111: 70 | B111: HAUTE-SAÔNE | C111: H1 | D111: V | E111: -12 | F111: -999 | G111: 0 | H111: 70 | S111: Est : | T111: 0.6 | U111: 1.2 | V111: 2.05 | W111: 2.66 | X111: 2.9 | Y111: 3.27 | Z111: 3.24 | AA111: 2.81 | AB111: 2.32 | AC111: 1.49 | AD111: 0.76 | AE111: 0.52
A112: 71 | B112: SAÔNE-ET-LOIRE | C112: H1 | D112: V | E112: -10 | F112: -999 | G112: 0 | H112: 71 | S112: Sud est/ouest | T112: =(T111+T113)/2 -> 1.035 | U112: =(U111+U113)/2 -> 1.92 | V112: 2.765 | W112: 3.005 | X112: 2.855 | Y112: 3.035 | Z112: 3.08 | AA112: 3.01 | AB112: 2.965 | AC112: 2.24 | AD112: 1.295 | AE112: 0.935
A113: 72 | B113: SARTHE | C113: H2 | D113: V | E113: -7 | F113: -999 | G113: 0 | H113: 72 | S113: Sud : | T113: 1.47 | U113: 2.64 | V113: 3.48 | W113: 3.35 | X113: 2.81 | Y113: 2.8 | Z113: 2.92 | AA113: 3.21 | AB113: 3.61 | AC113: 2.99 | AD113: 1.83 | AE113: 1.35
A114: 73 | B114: SAVOIE | C114: H1 | D114: V | E114: -10 | F114: -999 | G114: 0 | H114: 73 | S114: Ouest : | T114: 0.6 | U114: 1.18 | V114: 2.05 | W114: 2.66 | X114: 2.9 | Y114: 3.26 | Z114: 3.24 | AA114: 2.81 | AB114: 2.32 | AC114: 1.49 | AD114: 0.76 | AE114: 0.52
A115: 74 | B115: HAUTE-SAVOIE | C115: H1 | D115: V | E115: -10 | F115: -999 | G115: 0 | H115: 74 | S115: Horizontal | T115: 0.97 | U115: 1.9 | V115: 3.4 | W115: 4.64 | X115: 5.28 | Y115: 6.06 | Z115: 6 | AA115: 5.05 | AB115: 3.91 | AC115: 2.42 | AD115: 1.21 | AE115: 0.82
A116: 75 | B116: PARIS | C116: H1 | D116: V | E116: -5 | F116: -999 | G116: 0 | H116: 75 | S116: =INDEX(B20:B29,A18,1) ->  | T116: janvier | U116: fevrier | V116: mars | W116: avril | X116: mai | Y116: juin | Z116: juillet | AA116: aout | AB116: septembre | AC116: octobre | AD116: novembre | AE116: decembre
A117: 76 | B117: SEINE-MARITIME | C117: H1 | D117: V | E117: -7 | F117: -999 | G117: 1 | H117: 76 | R117: =MATCH(S116,S36:S114,0) ->  | S117: Nord : | T117: =OFFSET($S$36,$R117,T$124) -> 
A118: 77 | B118: SEINE-et-MARNE | C118: H1 | D118: V | E118: -7 | F118: -999 | G118: 0 | H118: 77 | R118: =R117+1 ->  | S118: nord Est/ouest
A119: 78 | B119: YVELINES | C119: H1 | D119: V | E119: -7 | F119: -999 | G119: 0 | H119: 78 | S119: Est :
A120: 79 | B120: DEUX-SÈVRES | C120: H2 | D120: V | E120: -7 | F120: -999 | G120: 0 | H120: 79 | S120: Sud est/ouest
A121: 80 | B121: SOMME | C121: H1 | D121: V | E121: -9 | F121: -999 | G121: 0 | H121: 80 | S121: Sud :
A122: 81 | B122: TARN | C122: H2 | D122: V | E122: -5 | F122: -999 | G122: 0 | H122: 81 | S122: Ouest :
A123: 82 | B123: TARN-et-GARONNE | C123: H2 | D123: V | E123: -5 | F123: -999 | G123: 0 | H123: 82 | S123: Horizontal | T123: =OFFSET($S$36,$R123,T$124) ->  | U123: =OFFSET($S$36,$R123,U$124) ->  | V123: =OFFSET($S$36,$R123,V$124) -> 
A124: 83 | B124: VAR | C124: H3 | D124: V ou W | E124: -5 | F124: -999 | G124: 1 | H124: 83 | T124: 1 | U124: 2 | V124: 3 | W124: 4 | X124: 5 | Y124: 6 | Z124: 7 | AA124: 8 | AB124: 9 | AC124: 10 | AD124: 11 | AE124: 12
A125: 84 | B125: VAUCLUSE | C125: H2 | D125: W | E125: -6 | F125: -999 | G125: 0 | H125: 84
A126: 85 | B126: VENDÉE | C126: H2 | D126: V | E126: -5 | F126: -999 | G126: 1 | H126: 85
A127: 86 | B127: VIENNE | C127: H2 | D127: V | E127: -7 | F127: -999 | G127: 0 | H127: 86
A128: 87 | B128: HAUTE-VIENNE | C128: H1 | D128: V | E128: -8 | F128: -999 | G128: 0 | H128: 87
A129: 88 | B129: VOSGES | C129: H1 | D129: V | E129: -15 | F129: -999 | G129: 0 | H129: 88
A130: 89 | B130: YONNE | C130: H1 | D130: V | E130: -10 | F130: -999 | G130: 0 | H130: 89
A131: 90 | B131: TERRITOIRE-de-BELFORT | C131: H1 | D131: V | E131: -15 | F131: -999 | G131: 0 | H131: 90
A132: 91 | B132: ESSONNE | C132: H1 | D132: V | E132: -7 | F132: -999 | G132: 0 | H132: 91
A133: 92 | B133: HAUTS-de-SEINE | C133: H1 | D133: V | E133: -7 | F133: -999 | G133: 0 | H133: 92
A134: 93 | B134: SEINE-SAINT-DENIS | C134: H1 | D134: V | E134: -7 | F134: -999 | G134: 0 | H134: 93
A135: 94 | B135: VAL-de-MARNE | C135: H1 | D135: V | E135: -7 | F135: -999 | G135: 0 | H135: 94
A136: 95 | B136: VAL-d'OISE | C136: H1 | D136: V | E136: -7 | F136: -999 | G136: 0 | H136: 95

Sheet aide (hidden)
B2: Notice d'utilisation de l'outil d'estimation des consommations énergétiques initiales des logements francs-comtois
B4: Cet outil est un tableur interactif conçu par le bureau d'études thermiques B2EC et l'association Ajena. Il permet d'estimer rapidement la consommation initiale d’énergie finale/primaire des 5 usages de la réglementation thermique d’un logement ou d’une maison individuelle. Sans audit énergétique préalable, il est possible d'obtenir un premier niveau d'information sur la performance thermique de n'importe quel logement, dressant ainsi leur "photographie énergétique" initiale. Les préconisations de travaux d'amélioration qui pourront être envisagés par la suite découleront de la prise en compte de cet état initial et pourront être ainsi optimisées.
B5: Il existe de nombreux calculateurs en ligne sur Internet proposant plus ou moins la même chose, toutefois cet outil est bien plus adapté à la situation climatique de la Franche-Comté car contrairement aux autres simulateurs, son mode de calcul est basé sur une méthode mensuelle, rapportée au DJU[1] de la zone à étudier. De plus, il offre la possibilité de paramétrer finement certaines hypothèses de calcul, comme le nombre de personnes vivant dans le logement et les températures de consigne et réduits pour le chauffage et l'eau chaude sanitaire. Les résultats obtenus peuvent ainsi se rapprocher des consommations réelles d’un logement.
B6: Deux types de saisies sont possibles, saisie simplifiée et saisie "pro", pour deux utilisations différentes. Chacune permet toutefois d'obtenir une première estimation des consommations énergétiques, une présentation de la répartition des déperditions et des consommations, une estimation du niveau d'isolation du logement grâce à sa valeur Ubât[2], l'étiquette énergie correspondante et la valeur d'émission de gaz à effet de serre, ainsi qu'un tableau de synthèse présentant les différents postes de consommations et leurs coûts.
B7: La première apporte une première estimation sommaire que le particulier peut faire lui-même, la seconde, destinée aux professionnels permet de se dégager du calcul théorique réglementaire et d'avoir une estimation plus fine et plus en lien avec la réalité des factures. Dans cette deuxième utilisation, il convient de connaître au préalable les surfaces de toutes les parois déperditivives et leurs coefficients U. Un bureau d'études thermiques ayant réalisé un audit énergétique sur la base de la méthode de calcul TH-C-E ex pourra ainsi affiner son analyse et se rapprocher de l'utilisation réelle du logement.
B9: [1] DJU : Degrés-Jour Unifiés sont calculés à partir de relevés de températures extérieures établies par Météo France sous forme de base de données annuelle ou trentenaire généralement sur une base de 18°C (d'où l'appellation DJU-base 18).
B10: Les DJU sont additionnés sur une période de chauffage de 232 jours (du 1er Octobre au 20 Mai), pour chaque jour, le nombre de DJU est calculé en faisant la différence entre une température de référence 18°C et la moyenne des températures minimales et maximales du jour en question, les DJU sont additionnés jour par jour, par mois et par année, ce qui permet un calcul très fin pour déterminer les besoins de chauffage d'un bâtiment d'une zone climatique donnée.
B11: [2] Ubât : Les déperditions théoriques d’un bâtiment par transmission à travers les parois, les baies et les ponts thermiques sont caractérisées par le coefficient moyen de déperdition appelé Ubât, exprimé en W/m².K et déterminé par la méthode de calcul TH-C-E. Plus un Ubât est faible et plus le bâtiment est performant.
B14: Saisie simplifiée
B16: Cette saisie peut être renseignée directement par l'usager. 10 questions concernant l'enveloppe bâtie et 9 questions concernant les systèmes présents dans le logement (chauffage, production d'eau chaude sanitaire et ventilation) suffisent pour obtenir des résultats chiffrés et des graphiques pédagogiques
B17: Les questions posées balayent les principaux éléments ayant un réel impact sur le calcul des consommations énergétiques d'un bâtiment.
B19: Données techniques bâtiment
B21: 1. Typologie (menu déroulant)
B22: C'est l'année de construction qui a été choisie pour caractériser les logements. Les valeurs correspondantes ont été définies à partir de l'étude d'un échantillon représentatif de chaque typologie.
B23: 2. Nombre d'étage
B24: Il suffit de cliquer sur le pictogramme adéquat. Pour un logement comprenant un simple RDC , le chiffre 1 apparaitra dans la case de droite, pour un RDC+ niveau sous combles aménagés: 1,5 alors que pour deux niveaux complets + combles perdus non aménagés : 2. Le dernier cas de figure est un logement sur 2 niveaux + un niveau sous combles aménagés pour lequel on indiquera une valeur de 2,5. Pour les logements de plus de 2,5 niveaux, indiquer simplement le nombre de niveaux dans la case, ne pas se soucier du dessin.
B25: 3. Nombre de logements
B26: Indiquer le nombre le logements contenus dans le bâtiment étudié
B27: 4. Surface et type de logement
B28: La surface la plus importante à renseigner est la surface habitable qui est facilement calculable. Des aides en ligne sur internet existent pour ce calcul. La SRT sera calculée automatiquement si elle n'est pas connue.
B29: 5. Ville (menu déroulant)
B30: Un menu déroulant permet de choisir la ville la plus proche de son lieu de résidence ou bien celle dont les conditions climatiques sont les plus similaires. Les 4 départements de la Franche-Comté sont couverts..
B31: 6. Mitoyenneté (menu déroulant)
B32: Un menu déroulant permet de choisir parmi les différents cas de figures selon si le logement est mitoyen ou non.
B33: 7. Hauteur moyenne sous plafond
B34: Les hauteurs sous plafond à l'intérieur d'un logement peuvent être différentes d'une pièce à l'autre, il conviendra d'établir une moyenne. Renseigner cette hauteur en mètres.
B35: 8. Forme de l'emprise du bâtiment (menu déroulant)
B36: Les pictogrammes et le menu déroulant permettent de choisir la forme la plus proche du bâtiment à tester.
B37: 9. Nombre d'occupants du logement
B38: Il convient de renseigner le nombre d'occupants réguliers dans le logement sur une année.
B39: 10. Type d'isolation (menu déroulant)
B40: 2 choix sont possibles :
B41: ‒ Mauvaise isolation : cas d'un logement non isolé ou très partiellement avec des niveaux de performance très bas (quelques cm d'isolant ancien par exemple)
B42: ‒ Isolation moyenne : cas d'un logement déjà entièrement isolé mais avec un niveau de performance bas (épaisseurs faibles, pose ne prenant pas en compte l'étanchéité à l'air et les ponts thermiques..) ou cas d'un logement partiellement isolé avec un niveau de performance moyen à bon. (cas d'un logement ou seuls les combles ont été refaits avec 30cm d'isolant, ou d'un logement ou seuls les murs ont été isolés par l'extérieur..)
B43: 11. Type de plancher et plafond (menu déroulant)
B44: Pour les planchers bas : 3 propositions possibles mais un seul choix (en cas de plusieurs sortes de planchers bas, prendre le cas le plus représentatif)
B45: ‒ sur terre-plein
B46: ‒ sur vide sanitaire (à choisir aussi pour les planchers donnant sur l'extérieur ou cave ou garage ou autres locaux non chauffés)
B47: ‒ sans plancher bas (à choisir pour les appartements mitoyens se trouvant au-dessus d'un autre appartement)
B48: Pour les plafonds : 3 propositions possibles mais un seul choix (en cas de plusieurs sortes de planchers hauts, prendre le cas le plus représentatif)
B49: ‒ combles perdus (plancher des combles non aménagés)
B50: ‒ sous rampants (parois intérieures du toit en cas de combles aménagés)
B51: ‒ sans plancher haut (cas des appartements mitoyens se trouvant en dessous d'un autre appartement)
B53: Données techniques systèmes
B54: 1. Chauffage principal
B55: Type de chaudière et d'énergie
B56: Type d'émission
B57: Type d'énergie utilisée
B58: Ancienneté du système
B59: Isolation de la distribution : par calorifugeage on entend une protection thermique efficace des conduits de distribution entre la production de chauffage et les emetteurs lorsque la chaudière est placée hors volume chauffé. (quelques cm de laine de verre entourés de bandes plâtrées ne constituent pas un réel calorifugeage des conduits)
B61: 2. Chauffage d'appoint
B62: Choix du type de système
B63: Ancienneté du système
B64: 3. Eau Chaude Sanitaire (ECS)
B65: Choix du système
B66: Ancienneté du système
B67: 4. Ventilation
B68: Degré d'étanchéité à l'air : En l'absence de test d'étanchéité à l'air ou d'appréciation des défauts existants, il convient de choisir la case "mauvaise étanchéité à l'air".
B69: Choix du système de ventilation
B70: En cas de doute sur le système existant ou si celui-ci est hors service choisir l'option "ventilation par ouverture des fenêtres".
B72: Réglages supplémentaires
B73: Ce bouton permet de renseigner certains paramètres manuellement si nécessaire.
B74: Cela peut-être intéressant pour déterminer si le ballon d'eau chaude sanitaire est en volume chauffé ou non, donner des valeurs connues comme la consigne de température du ballon ou de la chaudière ainsi que le taux de couverture du chauffage d'appoint. (si vous utilisez un poêle à bois occasionnellement ; saisissez entre 5 et 10%).
B75: Si ces informations ne sont pas renseignées, ce sont les valeurs par défaut de la colonne de droite qui seront prises en compte pour le calcul.
B77: Résultats
B78: En cliquant sur le bouton "résultat", une fenêtre "pop-up" s'ouvre affichant les résultats du calcul des consommations selon les 5 usages de la RT2005, en énergie primaire et finale, en euros et en émissions de C0² en fonction de la source d'énergie utilisée.
B79: Le bouton-image "consommations" affiche la répartition des consommations énergétiques. Le bouton-image "déperditions" affiche un graphique de répartition par poste des déperditions du bâti Le bouton-image "Apport/Consommations" affiche un diagramme présentant la répartition mensuelle des besoins de chauffage, des apports solaires totaux du bâtiment (prenant en compte les masques et l'orientation des menuiseries, et la température mensuelle moyenne)
B80: Le bouton "étiquette" présente le diagramme de la consommation en énergie primaire et émission de gaz à effet de serre.
B81: Le bouton "résultats" renvoie au premier tableau
B82: Il faut toujours revenir à la page d'accueil pour procéder à une saisie "pro".
B83: Une fois en mode saisie pro, le résultat des calculs (affiché par le bouton "résultats") prendra en compte uniquement les saisies de ce mode. Pour afficher le résultat d’un calcul simplifié, il faudra repasser par l’accueil et revenir en mode simplifié avant d’afficher les résultats.
B85: Saisie Pro
B87: Cette saisie, plus fine, permet d'estimer plus justement les besoins et consommations d'un bâtiment, et de valider le gain énergétique du remplacement d'un système, ou de l'ajout d'isolants. La version actuelle de l'outil ne permet pas la saisie directe de variantes, mais on peut modifier les saisies et comparer les résultats afin de vérifier le gain réel en kWh et en euros, d'une hypothèse de travaux, une fois les consommations initiales du logement plus ou moins calées sur les consommations réelles. Cette saisie est plus complexe puisqu'il faudra passer par des étapes complémentaires, permettant de renseigner précisément les surfaces déperditives du bâtiment, ses ponts thermiques, les compositions des parois.. Une aide contextuelle est disponible dans les pages, en cliquant sur les boutons-images "?", ou en survolant les cellules disposant d'un petit signet rouge en haut à droite de la case, indiquant la disponibilité d'un commentaire.
B89: Données techniques bâtiment
B90: La première page de la saisie est identique à la saisie simplifiée mais ne comporte que 9 questions. Celles concernant l'isolation et le type de plancher ne sont pas nécessaires. Les éléments d'informations complémentaires seront à renseigner dans l'onglet "Saisie des parois". Vous avez la possibilité de faire une simulation pour un immeuble de logements collectifs. Il suffit de choisir l'entrée correspondante dans le premier menu et d'indiquer le nombre de logements de l'immeuble étudié.Le nombre d'étage, la SHON et la SHAB à renseigner sont ceux de l'immeuble tout entier. La hauteur moyenne sous plafond sera bien celle d'un logement, et le type de logement sera pour le moment une moyenne des types de logements du bâtiment, ou celui largement représenté (cette saisie sera améliorée par une prochaine mise à jour de l'outil).
B92: Saisie des parois
B93: Il faut connaître les valeurs U des parois opaques, Uw des fenêtres et Ud des portes ainsi que les surfaces en m² des parois concernées. Un outil d'aide au calcul du U d'une paroi est disponible à droite de la page. Chaque bouton envoie sur une version différente de l'outil. Cet outil garde en mémoire le dernier calcul effectué, afin de pouvoir s'y référer par la suite, au besoin. 5 "mémoires" sont ainsi disponibles. Dans cet utilitaire il faut commencer par renseigner la résistance surfacique coté extérieur en fonction du type de paroi étudié (données à choisir dans une liste déroulante), puis couche par couche, en partant de l'extérieur, renseigner d'abord le type de matériau de la couche, pour ensuite affiner sa nature exacte depuis la liste déroulante. Cette version du classeur ne permet pas encore la saisie de matériaux personnalisés dans la bibliothèque existante. On termine par la résistance surfacique intérieure, que l'on sélectionne également depuis la liste. Les épaisseurs de chaque couche sont à renseigner en cm. A droite se calcule au fur et à mesure le R de chaque couche, le R total de la paroi, ainsi que son U. Une fois le U calculé, on reporte cette valeur dans la page de saisies.
B94: La colonne orientation permet de caractériser chaque paroi
B95: La variable Tau (b) permet de caractériser un mur qui ne donnerait pas directement sur l'extérieur, mais sur un espace tampon non chauffé. Une aide contextuelle permet de donner des cas généraux, il est également possible de le calculer à l'aide de l'outil situé à droite de la fenêtre, à partir des températures mesurées dans les locaux. On peut imaginer par exemple qu'un vide sanitaire dans lequel la température ne descend jamais sous les 0 degrés, tandis que la température du logement est par défaut prise égale à la température de consigne saisie dans les réglages supplémentaires. Cette valeur peut être modifiée. Il en est de même pour la température extérieure de base, issue de la zone géographique de la ville du projet.
B96: Les masque solaires Les masque solaires permettent de prendre en compte un ombrage provoqué par une autre partie du bâtiment, un autre bâtiment, la végétation proche, ou la ligne d'horizon. Une aide contextuelle est disponible pour estimer cette valeur.
B97: Les ponts thermiques sont à saisir en bas de page. Seul les linéiques de type L8- L9 - L10 entrent en compte dans le calcul du Ubât. Néanmoins, les autres ponts thermiques sont pris en compte dans le calcul des consommations, et sont donc à renseigner également. Un tableau est disponible en cliquant sur le bouton d'aide, issu du travail du bureau d'études Pouget Consultants.
B98: L8 : Liaison mur/plancher bas
B99: L9 : Liaison mur/ plancher intermédiaire
B100: L10 : Liaison mur/plancher haut lourd
B101: L'inertie permet de limiter le besoin de chauffage mais induit des consommations supplémentaires à la relance. Elle est à renseigner dans le menu de droite. Une aide est disponible pour sa sélection.
B103: Données techniques systèmes
B104: idem saisie simplifiée
B106: Réglages supplémentaires
B107: idem saisie simplifiée
B109: Résultats
B110: idem saisie simplifiée

Sheet Ubat (hidden)
A2: A1 | B2: Surface des parois opaques verticales (hors A5, A6, A7) | G2: m² | H2: =IF('surface auto'!AA18<>0,'surface auto'!Y9,'surface auto'!AG8) ->  | I2: =IF(Chauffage!H20=0,'surface auto'!AA9,'surface auto'!AH8) -> 0 | J2: =IF(Chauffage!H20=0,'surface auto'!AD5,'surface auto'!AI24) -> 0
A3: A2 | B3: Surface des planchers hauts et toitures (hors A3) | F3: =IF(Chauffage!H20=0,'surface auto'!AC9,'surface auto'!AK5) -> 0 | G3: m² | H3: =F2-H2 ->  | I3: =IF(Chauffage!H20=0,'surface auto'!AD9,'surface auto'!AM5) -> 0
A4: A3 | B4: Surface des planchers hauts donnant sur l'extérieur en béton ou en maçonnerie pour tout bâtiment, et surface des planchers haut à base de tôles métalliques nervurés des bâtiments non résidentiel | F4: 0 | G4: m² | I4: 0 | J4: Dperditions totales des murs
A5: A4 | B5: Surface des planchers bas | G5: m² | I5: =IF(Chauffage!H20=0,'surface auto'!AD13,'surface auto'!AM16) -> 0 | J5: =J2+I2 -> 0
A6: A5 | B6: Surface des portes, exception faite des portes entièrement vitrées | F6: =IF(Chauffage!H20=0,'surface auto'!AC17,'surface auto'!AF20) -> 0 | G6: m² | I6: =IF(Chauffage!H20=0,'surface auto'!AD17,'surface auto'!AH20) -> 0
A7: A6 | B7: Surface des fenêtres, des portes entièrement vitrées, des portes-fenêtres et des parois transparentes ou translucides des bâtiments non résidentielles | F7: 0 | G7: m² | I7: 0
A8: A7 | B8: Surface des fenêtres, des portes entièrement vitrées, des portes-fenêtres et des parois transparentes ou translucides des bâtiments résidentielles | F8: =IF(Chauffage!H20=0,'surface auto'!Y17,'surface auto'!AH15) -> 0 | G8: m² | I8: =IF(Chauffage!H20=0,'surface auto'!AA17,'surface auto'!AJ15) -> 0
A9: L8 | B9: Linéaire de la liaison périphérique des planchers bas avec mur | F9: ='Pont thermique'!C30 -> 0 | G9: m | I9: ='Pont thermique'!E34 -> 0
A10: L9 | B10: Linéaire de la liaison périphérique des planchers intermédiaires ou sous comble aménageable avec un mur | F10: ='Pont thermique'!D30 -> 0 | G10: m
A11: L10 | B11: Linéaire de la laison périphérique avec un mur des planchers hauts en béton, en maçonnerie ou à base de tôles métalliques nervurées | F11: ='Pont thermique'!E30 -> 0 | G11: m
A14: Calcul de Ubât ref
A15: A1 | B15: Surface des parois opaques verticales (hors A5, A6, A7) | F15: =H2+IF(H3>0.5*H2,H2+0.5*H2,H3) ->  | G15: m² | H15: =F15*B28 -> 
A16: A2 | B16: Surface des planchers hauts et toitures (hors A3) | F16: =F3 -> 0 | G16: m² | H16: =F16*B29 -> 0
A17: A3 | B17: Surface des planchers hauts donnant sur l'extérieur en béton ou en maçonnerie pour tout bâtiment, et surface des planchers haut à base de tôles métalliques nervurés des bâtiments non résidentiel | F17: =F4 -> 0 | G17: m² | H17: 0
A18: A4 | B18: Surface des planchers bas | F18: =F5 -> 0 | G18: m² | H18: 0
A19: A5 | B19: Surface des portes, exception faite des portes entièrement vitrées | F19: =F6 -> 0 | G19: m² | H19: 0
A20: A6 | B20: Surface des fenêtres, des portes entièrement vitrées, des portes-fenêtres et des parois transparentes ou translucides des bâtiments non résidentielles | G20: m² | H20: 0
A21: A7 | B21: Surface des fenêtres, des portes entièrement vitrées, des portes-fenêtres et des parois transparentes ou translucides des bâtiments résidentielles | F21: =TRUNC((1/6)*Saisies!E11,2) -> 0 | G21: m² | H21: 0
A22: L8 | B22: Linéaire de la liaison périphérique des planchers bas avec mur | F22: =F9 -> 0 | G22: m | H22: 0
A23: L9 | B23: Linéaire de la liaison périphérique des planchers intermédiaires ou sous comble aménageable avec un mur | F23: =F10 -> 0 | G23: m | H23: 0
A24: L10 | B24: Linéaire de la laison périphérique avec un mur des planchers hauts en béton, en maçonnerie ou à base de tôles métalliques nervurées | F24: =F11 -> 0 | G24: m | H24: 0
F25: =SUM(F15:F21) ->  | H25: =SUM(H15:H24) -> 
A26: Coefficient | B26: Zones H1, H2, H3 > 800m | D26: H3 < 800 m | H26: 1/6 de la surface habitable pour le bâtiment de référence
B27: Individuelle | C27: Autre | D27: Individuelle | E27: Autre | H27: Attention max 50 % de la surfaces totales des partois verticlaes en contact avec l'extérieur ou avec un local non chauffé, min 20 % pour l'hébergement ou usage sanitaire avec hébergment
A28: a1 | B28: 0.36 | D28: 0.4
A29: a2 | B29: 0.2 | D29: 0.25
A30: a3 | B30: 0.27 | D30: 0.27
A31: a4 | B31: 0.27 | D31: 0.36
A32: a5 | B32: 1.5 | D32: 1.5
A33: a6 | B33: 2.1 | D33: 2.3
A34: a7 | B34: 1.8 | D34: 2.1
A35: a8 | B35: 0.5 | D35: 0.5
A36: a9 | B36: 0.9 | C36: 0.9 | D36: 0.9 | E36: 0.9
A37: a10 | B37: 0.9 | C37: 0.9 | D37: 0.9 | E37: 0.9
A39: Ubat | B39: =IF(Chauffage!H20=0,'surface auto'!AA18,'surface auto'!AL25) -> 0
A41: Ubât réf | B41: =H25/F25 -> 
A43: Ubât base | B43: =B41 -> 
A45: Ubat Max | B45: =B41*1.25 -> 

Sheet LISTE (hidden)
A142: 0
A143: 8
A144: 2
A145: 2
A146: 2
A147: 2
A148: 0
A149: 0
A150: 0.15
A151: 48.6
A152: 0
A153: 0
A154: 0
A155: 0
A156: 0
A157: 0
A158: 1
A159: 0
A160: 0
A161: 1
A162: 0

Sheet Apports solaires (hidden)
A1: Valeurs d'irradiation solaire journalière moyennes | N1: moyenne | P1: Solaire thermique
B2: janvier | C2: fevrier | D2: mars | E2: avril | F2: mai | G2: juin | H2: juillet | I2: aout | J2: septembre | K2: octobre | L2: novembre | M2: decembre
A3: Zone H1 Nord : | B3: ='Liste communes'!T117 ->  | C3: ='Liste communes'!U117 ->  | D3: ='Liste communes'!V117 ->  | E3: ='Liste communes'!W117 ->  | F3: ='Liste communes'!X117 ->  | G3: ='Liste communes'!Y117 ->  | H3: ='Liste communes'!Z117 ->  | I3: ='Liste communes'!AA117 ->  | J3: ='Liste communes'!AB117 ->  | K3: ='Liste communes'!AC117 ->  | L3: ='Liste communes'!AD117 ->  | M3: ='Liste communes'!AE117 ->  | N3: kwh/j/m² | P3: Utilisation | Q3: Inclinaison plan
A4: Nord Est/ouest | B4: ='Liste communes'!T118 ->  | C4: ='Liste communes'!U118 ->  | D4: ='Liste communes'!V118 ->  | E4: ='Liste communes'!W118 ->  | F4: ='Liste communes'!X118 ->  | G4: ='Liste communes'!Y118 ->  | H4: ='Liste communes'!Z118 ->  | I4: ='Liste communes'!AA118 ->  | J4: ='Liste communes'!AB118 ->  | K4: ='Liste communes'!AC118 ->  | L4: ='Liste communes'!AD118 ->  | M4: ='Liste communes'!AE118 ->  | P4: ECS | Q4: 45
A5: Zone H1 Est : | B5: ='Liste communes'!T119 ->  | C5: ='Liste communes'!U119 ->  | D5: ='Liste communes'!V119 ->  | E5: ='Liste communes'!W119 ->  | F5: ='Liste communes'!X119 ->  | G5: ='Liste communes'!Y119 ->  | H5: ='Liste communes'!Z119 ->  | I5: ='Liste communes'!AA119 ->  | J5: ='Liste communes'!AB119 ->  | K5: ='Liste communes'!AC119 ->  | L5: ='Liste communes'!AD119 ->  | M5: ='Liste communes'!AE119 ->  | P5: Chauffage | Q5: 60 | U5: Month | V5: Wh | W5: Whopt | X5: Iopt | Y5: D/G | Z5: TD | AA5: T24h | AB5: NDD
A6: Sud est/ouest | B6: ='Liste communes'!T120 ->  | C6: ='Liste communes'!U120 ->  | D6: ='Liste communes'!V120 ->  | E6: ='Liste communes'!W120 ->  | F6: ='Liste communes'!X120 ->  | G6: ='Liste communes'!Y120 ->  | H6: ='Liste communes'!Z120 ->  | I6: ='Liste communes'!AA120 ->  | J6: ='Liste communes'!AB120 ->  | K6: ='Liste communes'!AC120 ->  | L6: ='Liste communes'!AD120 ->  | M6: ='Liste communes'!AE120 ->  | P6: Chauffage + ECS | Q6: 60 | U6: Jan | V6: 891 | W6: 1310 | X6: 60 | Y6: 0.70 | Z6: 2.8 | AA6: 2.2 | AB6: 463
A7: Zone H1 Sud : | B7: ='Liste communes'!T121 ->  | C7: ='Liste communes'!U121 ->  | D7: ='Liste communes'!V121 ->  | E7: ='Liste communes'!W121 ->  | F7: ='Liste communes'!X121 ->  | G7: ='Liste communes'!Y121 ->  | H7: ='Liste communes'!Z121 ->  | I7: ='Liste communes'!AA121 ->  | J7: ='Liste communes'!AB121 ->  | K7: ='Liste communes'!AC121 ->  | L7: ='Liste communes'!AD121 ->  | M7: ='Liste communes'!AE121 ->  | U7: Feb | V7: 1610 | W7: 2200 | X7: 54 | Y7: 0.64 | Z7: 4.7 | AA7: 3.8 | AB7: 382
A8: Zone H1 Ouest : | B8: ='Liste communes'!T122 ->  | C8: ='Liste communes'!U122 ->  | D8: ='Liste communes'!V122 ->  | E8: ='Liste communes'!W122 ->  | F8: ='Liste communes'!X122 ->  | G8: ='Liste communes'!Y122 ->  | H8: ='Liste communes'!Z122 ->  | I8: ='Liste communes'!AA122 ->  | J8: ='Liste communes'!AB122 ->  | K8: ='Liste communes'!AC122 ->  | L8: ='Liste communes'!AD122 ->  | M8: ='Liste communes'!AE122 ->  | U8: Mar | V8: 2770 | W8: 3420 | X8: 44 | Y8: 0.57 | Z8: 8.4 | AA8: 7.1 | AB8: 298
A9: horizontal | B9: ='Liste communes'!T123 ->  | C9: ='Liste communes'!U123 ->  | D9: ='Liste communes'!V123 ->  | E9: ='Liste communes'!W123 ->  | F9: ='Liste communes'!X123 ->  | G9: ='Liste communes'!Y123 ->  | H9: ='Liste communes'!Z123 ->  | I9: ='Liste communes'!AA123 ->  | J9: ='Liste communes'!AB123 ->  | K9: ='Liste communes'!AC123 ->  | L9: ='Liste communes'!AD123 ->  | M9: ='Liste communes'!AE123 ->  | U9: Apr | V9: 3990 | W9: 4390 | X9: 30 | Y9: 0.54 | Z9: 11.4 | AA9: 10.0 | AB9: 176
U10: May | V10: 4850 | W10: 4860 | X10: 17 | Y10: 0.55 | Z10: 16.0 | AA10: 14.7 | AB10: 65
A11: Apports solaires (QS) | N11: Simple vitrage ou sur-vitrage | O11: 0.6 | U11: Jun | V11: 5530 | W11: 5360 | X11: 13 | Y11: 0.52 | Z11: 19.7 | AA11: 18.2 | AB11: 19
N12: double vitrage de + de 10 ans (ex : 4/6/4 ou 4/8/4 air) | O12: 0.5 | U12: Jul | V12: 5820 | W12: 5780 | X12: 17 | Y12: 0.47 | Z12: 21.2 | AA12: 20.0 | AB12: 3
A13: Facteur solaire S : | B13: =IF(Chauffage!H20=0,INDEX(N11:O17,N10,2),0.4) -> 0.4 | F13: - | N13: double vitrage 5 à 10 ans (ex: 4/10/4 ou 4/12/4 air) | O13: 0.4 | U13: Aug | V13: 4960 | W13: 5330 | X13: 27 | Y13: 0.48 | Z13: 21.1 | AA13: 19.8 | AB13: 24
A14: Surfaces des ouvertures | N14: double vitrage de moins de 5 ans (ex : 4/16/4 argon) | O14: 0.3 | U14: Sep | V14: 3650 | W14: 4470 | X14: 42 | Y14: 0.48 | Z14: 17.1 | AA14: 15.7 | AB14: 122
A15: Surface totale Nord : | B15: =Calcul!N5 -> 0 | C15: m² | N15: double vitrage à contrôle solaire renforcé | O15: 0.25 | U15: Oct | V15: 2090 | W15: 2820 | X15: 52 | Y15: 0.58 | Z15: 13.5 | AA15: 12.2 | AB15: 255
A16: Surface totale NE NO: | B16: =Calcul!M5 -> 0 | N16: triple vitrage | O16: 0.25 | U16: Nov | V16: 1140 | W16: 1700 | X16: 60 | Y16: 0.65 | Z16: 6.9 | AA16: 5.9 | AB16: 426
A17: Surface totale Est : | B17: =Calcul!K5 -> 0 | C17: m² | N17: triple vitrage à facteur solaire amélioré | O17: 0.3 | U17: Dec | V17: 60 | W17: 1150 | X17: 63 | Y17: 0.71 | Z17: 3.5 | AA17: 2.9 | AB17: 472
A18: Surface totale SE SO: | B18: =Calcul!J5 -> 0 | U18: Year | V18: 3180 | W18: 3570 | X18: 33 | Y18: 0.53 | Z18: 12.2 | AA18: 11.0 | AB18: 2705 | AC18: (DJU | AD18: annuel)
A19: Surface totale Sud : | B19: =Calcul!I5 -> 0 | C19: m² | U19: Wh: | V19: Irradiation | W19: on | X19: horizontal | Y19: plane | Z19: (Wh/m2)
A20: Surface totale Ouest : | B20: =Calcul!L5 -> 0 | C20: m² | J20: nul | K20: 1 | U20: Whopt: | V20: Irradiation | W20: on | X20: optimally | Y20: inclined | Z20: plane | AA20: (Wh/m2)
A21: horizontal | B21: =Calcul!Q5 -> 0 | J21: très faible | K21: 0.85 | U21: Iopt: | V21: Optimal | W21: inclination | X21: (deg.)
A22: Correction pour l'ombrage (FS) | J22: moyen | K22: 0.5 | U22: D/G: | V22: Ratio | W22: of | X22: diffuse | Y22: to | Z22: global | AA22: irradiation | AB22: (-)
A23: Correction Nord : | B23: =VLOOKUP(Calcul!N6,'Apports solaires'!$J$20:$K$24,2,FALSE) ->  | C23: - | J23: élevé | K23: 0.25 | U23: TD: | V23: Average | W23: daytime | X23: temperature | Y23: (°C)
A24: correction NE NO | B24: =VLOOKUP(Calcul!M6,'Apports solaires'!$J$20:$K$24,2,FALSE) ->  | J24: total | K24: 0.05 | U24: T24h: | V24: 24 | W24: hour | X24: average | Y24: of | Z24: temperature | AA24: (°C)
A25: Correction Est : | B25: =VLOOKUP(Calcul!K6,'Apports solaires'!$J$20:$K$24,2,FALSE) ->  | C25: - | U25: NDD: | V25: Number | W25: of | X25: heating | Y25: degree-days | Z25: (-)
A26: Correction SE SO | B26: =VLOOKUP(Calcul!J6,'Apports solaires'!$J$20:$K$24,2,FALSE) ->  | J26: OUI
A27: Correction Sud : | B27: =VLOOKUP(Calcul!I6,'Apports solaires'!$J$20:$K$24,2,FALSE) ->  | C27: - | J27: NON
A28: Correction Ouest : | B28: =VLOOKUP(Calcul!L6,'Apports solaires'!$J$20:$K$24,2,FALSE) ->  | C28: -
A29: Correction hriz: | B29: =VLOOKUP(Calcul!Q6,'Apports solaires'!$J$20:$K$24,2,FALSE) ->  | G29: =Chauffage!B18 ->  | J29: Solaire thermique
J30: ECS | L30: Est | M30: 0.85
J31: Chauffage + ECS | L31: Sud - Est | M31: 0.92
J32: sans système solaire | L32: Sud | M32: 1
L33: Sud - Ouest | M33: 0.92
L34: Ouest | M34: 0.85
L35: Nord - Ouest
L36: Nord
L37: Nord - Est
L38: intérieur
A41: Apports solaires janvier (QSj) | I41: Apports solaires Fevrier (QSj) | Q41: Apports solaires Mars (QSj) | Y41: Apports solaires Avril (QSj) | AG41: Apports solaires Octobre (QSj) | AO41: Apports solaires Novembre(QSj) | AW41: Apports solaires Decembre (QSj) | BE41: mai | BM41: juin | BU41: juillet | CC41: aout | CK41: septembre
A43: Facteur solaire S : | F43: -
A44: Surfaces des ouvertures | D44: Aire réceptrices équivalentes
A45: Surface totale Nord : | B45: =B15 -> 0 | C45: m² | D45: Aire Nord : | E45: =B45*B62*$B$13 -> 0 | F45: m²
A46: Surface totale NE NO: | B46: 0 | D46: Aire NE NO | E46: 0 | F46: m²
A47: Surface totale Est : | B47: 0 | C47: m² | D47: Aire Est : | E47: 0 | F47: m²
A48: Surface totale SE SO: | B48: 0 | D48: Aire SE SO | E48: 0 | F48: m²
A49: Surface totale Sud : | B49: 0 | C49: m² | D49: Aire Sud : | E49: 0 | F49: m²
A50: Surface totale Ouest : | B50: 0 | C50: m² | D50: Aire Ouest : | E50: 0 | F50: m²
A51: horizontal | B51: =B21 -> 0 | D51: Aire hrz | E51: 0
A52: Irradiation solaire (IS) | D52: Apports solaires horaires (QS) | I52: Irradiation solaire (IS) | L52: Apports solaires horaires (QS) | Q52: Irradiation solaire (IS) | T52: Apports solaires horaires (QS) | Y52: Irradiation solaire (IS) | AB52: Apports solaires horaires (QS) | AG52: Irradiation solaire (IS) | AJ52: Apports solaires horaires (QS) | AO52: Irradiation solaire (IS) | AR52: Apports solaires horaires (QS) | AW52: Irradiation solaire (IS) | AZ52: Apports solaires horaires (QS) | BE52: Irradiation solaire (IS) | BH52: Apports solaires horaires (QS) | BM52: Irradiation solaire (IS) | BP52: Apports solaires horaires (QS) | BU52: Irradiation solaire (IS) | BX52: Apports solaires horaires (QS) | CC52: Irradiation solaire (IS) | CF52: Apports solaires horaires (QS) | CK52: Irradiation solaire (IS) | CN52: Apports solaires horaires (QS)
A53: Nord : | B53: =B3 ->  | C53: kwh | D53: QS Nord : | E53: =B53*E45 ->  | F53: kwh/j | G53: =E53/1000 ->  | I53: Nord : | J53: =C3 ->  | K53: W | L53: QS Nord : | M53: =J53*$E$45 ->  | N53: W | O53: =M53/1000 ->  | P53: kwh | Q53: Nord : | R53: =D3 ->  | S53: W | T53: QS Nord : | U53: =R53*$E$45 ->  | V53: W | W53: =U53/1000 ->  | X53: kwh | Y53: Nord : | Z53: =E3 ->  | AA53: W | AB53: QS Nord : | AC53: =Z53*$E$45 ->  | AD53: W | AE53: =AC53/1000 ->  | AF53: kwh | AG53: Nord : | AH53: =K3 ->  | AI53: W | AJ53: QS Nord : | AK53: =AH53*$E$45 ->  | AL53: W | AM53: =AK53/1000 ->  | AN53: kwh | AO53: Nord : | AP53: =L3 ->  | AQ53: W | AR53: QS Nord : | AS53: =AP53*$E$45 ->  | AT53: W | AU53: =AS53/1000 ->  | AV53: kwh | AW53: Nord : | AX53: =M3 ->  | AY53: W | AZ53: QS Nord : | BA53: =AX53*$E$45 ->  | BB53: W | BC53: =BA53/1000 ->  | BD53: kwh | BE53: Nord : | BF53: =F3 ->  | BG53: W | BH53: QS Nord : | BI53: =BF53*$E$45 ->  | BJ53: W | BK53: =BI53/1000 ->  | BL53: kwh | BM53: Nord : | BN53: =$G3 ->  | BO53: W | BP53: QS Nord : | BQ53: =BN53*$E$45 ->  | BR53: W | BS53: =BQ53/1000 ->  | BU53: Nord : | BV53: =$H3 ->  | BW53: W | BX53: QS Nord : | BY53: =BV53*$E$45 ->  | BZ53: W | CA53: =BY53/1000 ->  | CC53: Nord : | CD53: =$I3 ->  | CE53: W | CF53: QS Nord : | CG53: =CD53*$E$45 ->  | CH53: W | CI53: =CG53/1000 ->  | CK53: Nord : | CL53: =$J3 ->  | CM53: W | CN53: QS Nord : | CO53: =CL53*$E$45 ->  | CP53: W | CQ53: =CO53/1000 -> 
A54: Ne no | C54: kwh | D54: Qs NE NO | F54: kwh/j | G54: =E54/1000 ->  | I54: Ne no | K54: w | M54: =J54*$E$46 ->  | N54: W | O54: =M54/1000 ->  | P54: kwh | Q54: Ne no | S54: w | U54: =R54*$E$46 ->  | V54: W | W54: =U54/1000 ->  | X54: kwh | Y54: Ne no | AA54: w | AC54: =Z54*$E$46 ->  | AD54: W | AE54: =AC54/1000 ->  | AF54: kwh | AG54: Ne no | AI54: w | AK54: =AH54*$E$46 ->  | AL54: W | AM54: =AK54/1000 ->  | AN54: kwh | AO54: Ne no | AQ54: w | AS54: =AP54*$E$46 ->  | AT54: W | AU54: =AS54/1000 ->  | AV54: kwh | AW54: Ne no | AY54: w | BA54: =AX54*$E$46 ->  | BB54: W | BC54: =BA54/1000 ->  | BD54: kwh | BE54: Ne no | BG54: w | BI54: =BF54*$E$46 ->  | BJ54: W | BK54: =BI54/1000 ->  | BL54: kwh | BM54: Ne no | BO54: w | BQ54: =BN54*$E$46 ->  | BR54: W | BS54: =BQ54/1000 ->  | BU54: Ne no | BW54: w | BY54: =BV54*$E$46 ->  | BZ54: W | CA54: =BY54/1000 ->  | CC54: Ne no | CE54: w | CG54: =CD54*$E$46 ->  | CH54: W | CI54: =CG54/1000 ->  | CK54: Ne no | CM54: w | CO54: =CL54*$E$46 ->  | CP54: W | CQ54: =CO54/1000 -> 
A55: Est : | C55: kwh | D55: QS Est : | F55: kwh/j | I55: Est : | K55: W | L55: QS Est : | M55: =J55*$E$47 ->  | N55: W | P55: kwh | Q55: Est : | S55: W | T55: QS Est : | U55: =R55*$E$47 ->  | V55: W | X55: kwh | Y55: Est : | AA55: W | AB55: QS Est : | AC55: =Z55*$E$47 ->  | AD55: W | AF55: kwh | AG55: Est : | AI55: W | AJ55: QS Est : | AK55: =AH55*$E$47 ->  | AL55: W | AN55: kwh | AO55: Est : | AQ55: W | AR55: QS Est : | AS55: =AP55*$E$47 ->  | AT55: W | AV55: kwh | AW55: Est : | AY55: W | AZ55: QS Est : | BA55: =AX55*$E$47 ->  | BB55: W | BD55: kwh | BE55: Est : | BG55: W | BH55: QS Est : | BI55: =BF55*$E$47 ->  | BJ55: W | BL55: kwh | BM55: Est : | BO55: W | BP55: QS Est : | BQ55: =BN55*$E$47 ->  | BR55: W | BU55: Est : | BW55: W | BX55: QS Est : | BY55: =BV55*$E$47 ->  | BZ55: W | CC55: Est : | CE55: W | CF55: QS Est : | CG55: =CD55*$E$47 ->  | CH55: W | CK55: Est : | CM55: W | CN55: QS Est : | CO55: =CL55*$E$47 ->  | CP55: W
A56: SE SO | C56: kwh | D56: Qs SE SO | F56: kwh/j | I56: SE SO | K56: w | M56: =J56*$E$48 ->  | N56: W | P56: kwh | Q56: SE SO | S56: w | U56: =R56*$E$48 ->  | V56: W | X56: kwh | Y56: SE SO | AA56: w | AC56: =Z56*$E$48 ->  | AD56: W | AF56: kwh | AG56: SE SO | AI56: w | AK56: =AH56*$E$48 ->  | AL56: W | AN56: kwh | AO56: SE SO | AQ56: w | AS56: =AP56*$E$48 ->  | AT56: W | AV56: kwh | AW56: SE SO | AY56: w | BA56: =AX56*$E$48 ->  | BB56: W | BD56: kwh | BE56: SE SO | BG56: w | BI56: =BF56*$E$48 ->  | BJ56: W | BL56: kwh | BM56: SE SO | BO56: w | BQ56: =BN56*$E$48 ->  | BR56: W | BU56: SE SO | BW56: w | BY56: =BV56*$E$48 ->  | BZ56: W | CC56: SE SO | CE56: w | CG56: =CD56*$E$48 ->  | CH56: W | CK56: SE SO | CM56: w | CO56: =CL56*$E$48 ->  | CP56: W
A57: Sud : | C57: kwh | D57: QS Sud : | E57: =B57*E49 ->  | F57: kwh/j | I57: Sud : | K57: W | L57: QS Sud : | M57: =J57*$E$49 ->  | N57: W | P57: kwh | Q57: Sud : | S57: W | T57: QS Sud : | U57: =R57*$E$49 ->  | V57: W | X57: kwh | Y57: Sud : | AA57: W | AB57: QS Sud : | AC57: =Z57*$E$49 ->  | AD57: W | AF57: kwh | AG57: Sud : | AI57: W | AJ57: QS Sud : | AK57: =AH57*$E$49 ->  | AL57: W | AN57: kwh | AO57: Sud : | AQ57: W | AR57: QS Sud : | AS57: =AP57*$E$49 ->  | AT57: W | AV57: kwh | AW57: Sud : | AY57: W | AZ57: QS Sud : | BA57: =AX57*$E$49 ->  | BB57: W | BD57: kwh | BE57: Sud : | BG57: W | BH57: QS Sud : | BI57: =BF57*$E$49 ->  | BJ57: W | BL57: kwh | BM57: Sud : | BO57: W | BP57: QS Sud : | BQ57: =BN57*$E$49 ->  | BR57: W | BU57: Sud : | BW57: W | BX57: QS Sud : | BY57: =BV57*$E$49 ->  | BZ57: W | CC57: Sud : | CE57: W | CF57: QS Sud : | CG57: =CD57*$E$49 ->  | CH57: W | CK57: Sud : | CM57: W | CN57: QS Sud : | CO57: =CL57*$E$49 ->  | CP57: W
A58: Ouest : | C58: kwh | D58: QS Ouest : | F58: kwh/j | I58: Ouest : | K58: W | L58: QS Ouest : | M58: =J58*$E$50 ->  | N58: W | P58: kwh | Q58: Ouest : | S58: W | T58: QS Ouest : | U58: =R58*$E$50 ->  | V58: W | X58: kwh | Y58: Ouest : | AA58: W | AB58: QS Ouest : | AC58: =Z58*$E$50 ->  | AD58: W | AF58: kwh | AG58: Ouest : | AI58: W | AJ58: QS Ouest : | AK58: =AH58*$E$50 ->  | AL58: W | AN58: kwh | AO58: Ouest : | AQ58: W | AR58: QS Ouest : | AS58: =AP58*$E$50 ->  | AT58: W | AV58: kwh | AW58: Ouest : | AY58: W | AZ58: QS Ouest : | BA58: =AX58*$E$50 ->  | BB58: W | BD58: kwh | BE58: Ouest : | BG58: W | BH58: QS Ouest : | BI58: =BF58*$E$50 ->  | BJ58: W | BL58: kwh | BM58: Ouest : | BO58: W | BP58: QS Ouest : | BQ58: =BN58*$E$50 ->  | BR58: W | BU58: Ouest : | BW58: W | BX58: QS Ouest : | BY58: =BV58*$E$50 ->  | BZ58: W | CC58: Ouest : | CE58: W | CF58: QS Ouest : | CG58: =CD58*$E$50 ->  | CH58: W | CK58: Ouest : | CM58: W | CN58: QS Ouest : | CO58: =CL58*$E$50 ->  | CP58: W
A59: horizontal | B59: =B9 ->  | D59: QS hrz | F59: kwh/j | I59: =A59 -> horizontal | L59: QS hrz | M59: =J59*$E$51 ->  | N59: W | P59: kwh | Q59: =I59 -> horizontal | T59: QS hrz | U59: =R59*$E$51 ->  | X59: kwh | Y59: =Q59 -> horizontal | AB59: QS hrz | AC59: =Z59*$E$51 ->  | AF59: kwh | AG59: =Y59 -> horizontal | AJ59: QS hrz | AK59: =AH59*$E$51 ->  | AN59: kwh | AO59: =AG59 -> horizontal | AR59: QS hrz | AS59: =AP59*$E$51 ->  | AV59: kwh | AW59: =AO59 -> horizontal | AZ59: QS hrz | BA59: =AX59*$E$51 ->  | BD59: kwh | BE59: =AW59 -> horizontal | BH59: QS hrz | BI59: =BF59*$E$51 ->  | BL59: kwh | BM59: =BE59 -> horizontal | BP59: QS hrz | BQ59: =BN59*$E$51 ->  | BU59: =BM59 -> horizontal | BX59: QS hrz | BY59: =BV59*$E$51 ->  | CC59: =BU59 -> horizontal | CF59: QS hrz | CG59: =CD59*$E$51 ->  | CK59: =CC59 -> horizontal | CN59: QS hrz | CO59: =CL59*$E$51 -> 
D60: Total : | E60: =SUM(E53:E59) ->  | F60: kwh/j | G60: =E60/1000 ->  | L60: Total : | M60: =SUM(M53:M59) ->  | N60: W | O60: =M60/1000 ->  | T60: Total : | U60: =SUM(U53:U59) ->  | V60: W | W60: =U60/1000 ->  | AB60: Total : | AC60: =SUM(AC53:AC59) ->  | AD60: W | AE60: =AC60/1000 ->  | AJ60: Total : | AK60: =SUM(AK53:AK59) ->  | AL60: W | AM60: =AK60/1000 ->  | AR60: Total : | AS60: =SUM(AS53:AS59) ->  | AT60: W | AU60: =AS60/1000 ->  | AZ60: Total : | BA60: =SUM(BA53:BA59) ->  | BB60: W | BC60: =BA60/1000 ->  | BH60: Total : | BI60: =SUM(BI53:BI59) ->  | BJ60: W | BK60: =BI60/1000 ->  | BP60: Total : | BQ60: =SUM(BQ53:BQ59) ->  | BR60: W | BS60: =BQ60/1000 ->  | BX60: Total : | BY60: =SUM(BY53:BY59) ->  | BZ60: W | CA60: =BY60/1000 ->  | CF60: Total : | CG60: =SUM(CG53:CG59) ->  | CH60: W | CI60: =CG60/1000 ->  | CN60: Total : | CO60: =SUM(CO53:CO59) ->  | CP60: W | CQ60: =CO60/1000 -> 
A61: Correction pour l'ombrage (FS)
A62: Correction Nord : | B62: =IFERROR(B23,0) -> 0 | C62: -
A63: correction NE NO | B63: =IFERROR(B24,0) -> 0
A64: Correction Est : | B64: 0 | C64: -
A65: Correction SE SO | B65: 0
A66: Correction Sud : | B66: 0 | C66: -
A67: Correction Ouest : | B67: 0 | C67: -
A68: Correction hriz: | B68: 0 | E68: =E60*31 ->  | M68: =M60*28 ->  | U68: =U60*31 ->  | AC68: =AC60*30 ->  | AK68: =AK60*31 ->  | AS68: =AS60*30 ->  | BA68: =BA60*31 ->  | BI68: =BI60*31 ->  | BQ68: =BQ60*30 ->  | BY68: =BY60*31 ->  | CG68: =CG60*31 ->  | CO68: =CO60*30 -> 

Sheet BDD typo (hidden)
A1: =VLOOKUP(Saisies!E6,'BDD typo'!B5:C16,2,FALSE) ->  | D1: mdp | E1: 0 | G1: 1
B2: Entrées typo | C2: 2 | D2: 3 | E2: 4 | F2: 5 | G2: 6 | H2: 7 | I2: 8 | J2: 9 | K2: 10 | L2: 11 | M2: 12 | N2: 13 | O2: 14 | P2: 15 | Q2: 16 | R2: 17 | S2: 18 | T2: 19 | U2: 20 | V2: 21 | W2: 22 | X2: 23 | Y2: 24 | Z2: 25 | AA2: 26 | AB2: 27 | AC2: 28 | AD2: 29 | AE2: 30 | AF2: 31 | AG2: 32 | AH2: 33 | AI2: 34 | AJ2: 35 | AK2: 36 | AL2: 37 | AM2: 38 | AN2: 39 | AO2: 40 | AP2: 41 | AQ2: 42
E3: énergie chauffage | F3: Epaisseur des murs | G3: U murs niveau 1 | H3: U murs niveau 2 | I3: U toit niveau 1 | K3: U toit niveau 2 | M3: U plancher niveau 1 | O3: U plancher niveau 2 | Q3: UW vitrages | S3: surface nord | T3: surface sud | U3: surface est | V3: surface ouest | W3: angle de deux murs extérieurs sortant | X3: angle de deux murs extérieurs rentrant | Y3: angle mur ext / refend | Z3: angle mur ext / cloison | AA3: Mur ext / plancher ext (L8) | AB3: Mur ext / plancher interm PSI ou PSI1 (L9) | AC3: Mur ext / plancher interm PSI2 (L9) | AD3: Mur ext / plafond lourds (L10) | AE3: Mur ext / Terasse (L10) | AF3: Mur ext / plafond (L10) | AG3: Refend / plancher ext/lnc PSI ou PSI1 (L8) | AH3: Refend / plancher ext/lnc PS2 ou PSI3 (L8) | AI3: Refend / plafond ext/lnc PSI ou PSI1 (L10) | AJ3: Refend / plancher ext/lnc PS2 ou PSI3 (L10) | AK3: Refend / plafond léger | AL3: Divers (L8) | AM3: Divers (L9) | AN3: Divers (L10) | AO3: Autre Liaison Divers | AP3: Terre plein (L8) | AQ3: Pont Thermique ponctuel 3D | AR3: u portes | AS3: select
I4: Combles perdus | J4: Rampant | K4: Combles perdus | L4: Rampant | M4: Terre plein | N4: Vide sanitaire | O4: Terre plein | P4: Vide sanitaire
B5: Maison individuelle avant 48 | C5: 1 | D5: Individuelle | E5: fioul | F5: 0.6 | G5: 2 | H5: 1 | I5: 3 | J5: 0.56 | K5: 0.25 | L5: 0.25 | M5: 0.6 | N5: 0.9 | O5: 0.22 | P5: 0.3 | Q5: 3.5 | R5: 2.5 | S5: 0.25 | T5: 0.25 | U5: 0.25 | V5: 0.25 | W5: 0.2 | X5: 0.5 | Y5: 0.35 | AA5: 0.8 | AB5: 0.6 | AF5: 0.2 | AP5: 0.7 | AR5: 3 | AS5: 1
B6: Maison individuelle entre 49 et 74 | C6: 2 | D6: Individuelle | E6: fioul | F6: 0.2 | G6: 2 | H6: 1 | I6: 1.8 | J6: 0.5 | K6: 0.23 | L6: 0.23 | M6: 0.6 | N6: 0.9 | O6: 0.22 | P6: 0.3 | Q6: 3.5 | R6: 2.5 | S6: 0.25 | T6: 0.25 | U6: 0.25 | V6: 0.25 | W6: 0.2 | X6: 0.5 | Y6: 0.35 | AA6: 0.8 | AB6: 0.6 | AF6: 0.2 | AP6: 0.7 | AR6: 3 | AS6: 2
B7: maison individuelle entre 75 et 88 | C7: 3 | D7: Individuelle | E7: fioul | F7: 0.3 | G7: 1 | H7: 0.8 | I7: 1.2 | J7: 0.42 | K7: 0.2 | L7: 0.2 | M7: 0.45 | N7: 0.6 | O7: 0.22 | P7: 0.25 | Q7: 2.5 | R7: 2 | S7: 0.2 | T7: 0.3 | U7: 0.25 | V7: 0.25 | W7: 0.3 | X7: 0.45 | Y7: 0.25 | AA7: 0.7 | AB7: 0.5 | AF7: 0.5 | AP7: 0.6 | AR7: 3 | AS7: 3
B8: maison individuelle entre 89 et 2005 | C8: 4 | D8: Individuelle | E8: gaz | F8: 0.3 | G8: 0.6 | H8: 0.5 | I8: 0.9 | J8: 0.35 | K8: 0.18 | L8: 0.18 | M8: 0.3 | N8: 0.45 | O8: 0.2 | P8: 0.2 | Q8: 2 | R8: 1.8 | S8: 0.2 | T8: 0.3 | U8: 0.25 | V8: 0.25 | W8: 0.3 | X8: 0.35 | Y8: 0.15 | AA8: 0.6 | AB8: 0.4 | AF8: 0.6 | AP8: 0.5 | AR8: 2.5 | AS8: 4
B9: collectif avant 48 | C9: 1 | D9: collectif | E9: fioul | F9: 0.6 | G9: 2 | H9: 1 | I9: 3 | J9: 0.56 | K9: 0.25 | L9: 0.25 | M9: 0.6 | N9: 0.9 | O9: 0.22 | P9: 0.3 | Q9: 3.5 | R9: 2.5 | S9: 0.25 | T9: 0.25 | U9: 0.25 | V9: 0.25 | W9: 0.2 | X9: 0.5 | Y9: 0.35 | AA9: 0.8 | AB9: 0.6 | AF9: 0.2 | AP9: 0.7 | AR9: 3 | AS9: 5
B10: collectif entre 49 et 74 | C10: 2 | D10: collectif | E10: fioul | F10: 0.2 | G10: 2 | H10: 1 | I10: 1.8 | J10: 0.5 | K10: 0.23 | L10: 0.23 | M10: 0.6 | N10: 0.9 | O10: 0.22 | P10: 0.3 | Q10: 3.5 | R10: 2.5 | S10: 0.25 | T10: 0.25 | U10: 0.25 | V10: 0.25 | W10: 0.2 | X10: 0.5 | Y10: 0.35 | AA10: 0.8 | AB10: 0.6 | AF10: 0.2 | AP10: 0.7 | AR10: 3 | AS10: 6
B11: collectif entre 75 et 88 | C11: 3 | D11: collectif | E11: fioul | F11: 0.3 | G11: 1 | H11: 0.8 | I11: 1.2 | J11: 0.42 | K11: 0.2 | L11: 0.2 | M11: 0.45 | N11: 0.6 | O11: 0.22 | P11: 0.25 | Q11: 2.5 | R11: 2 | S11: 0.2 | T11: 0.3 | U11: 0.25 | V11: 0.25 | W11: 0.3 | X11: 0.45 | Y11: 0.25 | AA11: 0.7 | AB11: 0.5 | AF11: 0.5 | AP11: 0.6 | AR11: 3 | AS11: 7
B12: collectif entre 89 et 2005 | C12: 4 | D12: collectif | E12: gaz | F12: 0.3 | G12: 0.6 | H12: 0.5 | I12: 0.9 | J12: 0.35 | K12: 0.18 | L12: 0.18 | M12: 0.3 | N12: 0.45 | O12: 0.2 | P12: 0.2 | Q12: 2 | R12: 1.8 | S12: 0.2 | T12: 0.3 | U12: 0.25 | V12: 0.25 | W12: 0.3 | X12: 0.35 | Y12: 0.15 | AA12: 0.6 | AB12: 0.4 | AF12: 0.6 | AP12: 0.5 | AR12: 2.5 | AS12: 8
B13: tertiaire bureaux | C13: 9 | AS13: 9
B65: département | G65: type sol
B66: 25 | G66: argile ou limon
B67: 39 | G67: sable ou gravier
B68: 70 | G68: sol par roche homogène
B69: 90 | G69: roche homogène

Sheet matériaux (hidden)
A1: Matériau | B1: Lambda | D1: Commentaire | G1: Isolant | J1: 0.04 | K1: =SUM(J1:J11) -> 0.4107738095
B2: W/m/°C | G2: Semi-isolant | J2: 0.2095238095
A3: _____Isolant | G3: Porteur | J3: 0
A4: Botte de paille | B4: 0.048 | D4: Sur champ | G4: Parement | J4: 0.03125
A5: copeaux en vrac | B5: 0.05 | D5: Bois imputrescible. ou passage à l'eau de chaux ou imprégnation au bore | G5: Lame d'air | J5: 0
A6: Roseaux en panneaux | B6: 0.056 | G6: bibliothèque perso | J6: 0
A7: Cellulose 35kg/m3 en vrac | B7: 0.039 | D7: Pose manuelle. comble perdu | J7: 0
A8: Cellulose 35kg/m3 soufflée | B8: 0.039 | D8: Pose machine par artisan. comble perdu ou sur-toiture | J8: 0
A9: Cellulose 55kg/m3 insufflée | B9: 0.039 | D9: Pose machine par artisan. mur ou sous-toiture | J9: 0
A10: Cellulose en panneau | B10: 0.04 | D10: Excellent en phonique (bruits aériens) | J10: 0
A11: Liège en granulés | B11: 0.04166666667 | D11: Imputrescible | J11: 0.13
A12: Liège expansé en panneau | B12: 0.038 | D12: Imputrescible. bonne accroche pour enduit
A13: Vermiculite en vrac | B13: 0.068 | D13: Non combustible
A14: Perlite en vrac | B14: 0.047 | D14: Non combustible
A15: Fibre de bois 0.038 | B15: 0.038 | D15: holzflex standard
A16: Fibre de bois 0.042 | B16: 0.042 | D16: holzflex protect
A17: Fibre de bois 0.047 | B17: 0.047
A18: Fibre de bois 0.05 | B18: 0.05
A19: Laine de chanvre en panneau | B19: 0.041 | D19: Classement feu M4. mur et rampants
A20: Laine de chanvre en rouleau | B20: 0.04 | D20: Classement feu M4. rampants et sol
A21: chènevotte+bore | B21: 0.055 | D21: méthode d'imprégnation?
A22: laine minérale demi rigide 0.035 | B22: 0.035 | D22: Ursa prk31
A23: laine minérale rigide 0.032 | B23: 0.032
A24: laine minérale souple 0.04 | B24: 0.04
A25: laine minérale dégradée (0.05) | B25: 0.05
A26: TMS (isolation sous chapes) | B26: 0.021
A27: Polyuréthane | B27: 0.024 | D27: Supporte mal la chaleur. quasi-étanche
A28: Polystyrène graphité | B28: 0.034 | D28: Polystyrène « gris » (expansé + graphite)
A29: polystyrène extrudé | B29: 0.027
A30: polystyrène expansé | B30: 0.035
A31: STYRODUR 10cm | B31: 0.041
A32: Verre cellulaire | B32: 0.042 | D32: Non combustible. étanche
A33: lin | B33: 0.04
A34: Sylvactis 140 | B34: 0.036
A35: SYLVACTIS 120 | B35: 0.036
A36: _____Semi-isolant
A37: Terre-paille | B37: 0.09 | D37: Remplissage
A38: chaux-chanvre | B38: 0.09 | D38: Remplissage
A39: chaux-vermiculite | B39: 0.1 | D39: béton isolant faiblement dosé
A40: Chaux-chanvre-ponce | B40: 0.11 | D40: Canosmose à bancher
A41: béton cellulaire | B41: 0.12 | D41: Bloc de construction
A42: beton cellulaire ytong | B42: 0.09
A43: terre-chanvre | B43: 0.12 | D43: béton isolant
A44: terre-copeau | B44: 0.17 | D44: Remplissage
A45: terre-pouzzolane | B45: 0.2 | D45: béton isolant
A46: _____Porteur
A47: Pierre dure | B47: 2.91 | D47: Granit. calcaire dur
A48: Pierre poreuse | B48: 1.6 | D48: Calcaire tendre. grès
A49: pierre tendre (calcauire) | B49: 1.2
A50: Parpaing béton creux (agglo) | B50: 1.05 | D50: Macro-proreux
A51: Brique pleine | B51: 0.115
A52: brique creuse a joint mince | B52: 0.267
A53: brique a alveoles | B53: 0.149
A54: Brique alvéolée 36.5cm | B54: 0.127 | D54: Biomur roulé
A55: béton de ciment | B55: 1.75 | D55: Quasi-étanche
A56: béton armé | B56: 2.5
A57: béton cellulaire | B57: 0.115 | D57: Pose joints minces
A58: béton de chaux caverneux | B58: 0.7 | D58: Tiré du mortier grossier de chaux hydraulique
A59: Béton de chaux chanvre | B59: 0.13
A60: beton celluliare 0.10 | B60: 0.1
A61: bois massif léger | B61: 0.13 | D61: 20% d'humidité
A62: OSB 9mm | B62: 0.12
A63: OSB 13mm | B63: 0.13
A64: agepan | B64: 0.09
A65: Pavaplan 3F | B65: 0.1
A66: Pisé | B66: 0.85
A67: terre végétale | B67: 0.8
A68: _____Parement
A69: enduit terre | B69: 0.91 | D69: Mu extrapolé du pisé
A70: enduit chaux | B70: 0.7 | D70: Tiré du mortier fin de chaux
A71: Crépi ciment | B71: 1.5
A72: Enduit ciment | B72: 0.8
A73: Enduit plâtre | B73: 0.57
A74: Brique plâtrière | B74: 0.26
A75: BA13 | B75: 0.32
A76: Fermacell | B76: 0.36
A77: planche non-jointive | B77: 0.12 | D77: Extrapolé. en particulier pour mu
A78: OSB classe 3 | B78: 0.13
A79: _____Lame d'air
A80: Air vertical | B80: 0.15625
A81: Air horizontal descendant | B81: 0.1388888889
A82: Air horizontal ascendant | B82: 0.1785714286
A83: _____Résistance superficielle
A84: Côté intérieur. plafond | B84: 0.1 | D84: Utilise Ti. émissivité 0.85
A85: Côté intérieur. plancher | B85: 0.17 | D85: Utilise Ti. émissivité 0.85
A86: Côté intérieur. mur | B86: 0.13 | D86: Utilise Ti. émissivité 0.85
A87: Côté extérieur, plafond | B87: 0.04 | D87: Utilise Te. émissivité 0.85. vent 15km/h
A88: Coté extérieur, plancher | B88: 0.04 | D88: Utilise Te. émissivité 0.85
A89: coté extérieur mur bardé | B89: 0.13 | D89: Calcul identique au côté intérieur. mais avec moyenne(Te) à la place de Ti
A90: coté extérieur mur non bardé | B90: 0.04

Sheet Ventilation (hidden)
B6: Type de logement | C6: Configuration | D6: Débit hygro | E6: pièce supp hygro | F6: calcul hygro | G6: Calcul Débit mini auto | H6: Calcul Débit maxi auto | I6: pièce supp auto | J6: calcul auto mini | K6: calcul auto maxi | L6: calcul naturel
D8: m3/h | E8: m3/h | G8: m3/h | H8: m3/h | I8: m3/h | J8: m3/h | K8: m3/h
B9: F1 | C9: F1 - 1 SDB avec WC | D9: 25.3 | E9: 10.8 | F9: =D9+Calcul!$C$10*I9 -> 25.3 | G9: =20+15 -> 35 | H9: =75+15 -> 90 | I9: 15 | J9: =G9+Calcul!$C$10*I9 -> 35 | K9: =H9+Calcul!$C$10*I9 -> 90 | L9: =Calcul!$C$5*0.4 -> 0
B10: F1 | C10: F1 - 1 SDB + 1 WC indépendant | D10: 27.1 | E10: 6.6 | F10: =D10+Calcul!$C$10*I10 -> 27.1 | G10: =20+15+15 -> 50 | H10: =75+15+15 -> 105 | I10: 15 | J10: =G10+Calcul!$C$10*I10 -> 50 | K10: =H10+Calcul!$C$10*I10 -> 105 | L10: =Calcul!$C$5*0.4 -> 0
B11: F2 | C11: F2 - 1 SDB avec WC | D11: 40.4 | E11: 20.2 | F11: =D11+Calcul!$C$10*I11 -> 40.4 | G11: =30+15 -> 45 | H11: =90+15 -> 105 | I11: 15 | J11: =G11+Calcul!$C$10*I11 -> 45 | K11: =H11+Calcul!$C$10*I11 -> 105 | L11: =Calcul!$C$5*0.4 -> 0
B12: F2 | C12: F2 - 1 SDB + 1 WC indépendant | D12: 39.6 | E12: 11.6 | F12: =D12+Calcul!$C$10*I12 -> 39.6 | G12: =30+15+15 -> 60 | H12: =90+15+15 -> 120 | I12: 15 | J12: =G12+Calcul!$C$10*I12 -> 60 | K12: =H12+Calcul!$C$10*I12 -> 120 | L12: =Calcul!$C$5*0.4 -> 0
B13: F3 | C13: F3 - 1 SDB avec WC | D13: 57.8 | E13: 11.8 | F13: =D13+Calcul!$C$10*I13 -> 57.8 | G13: =45+30 -> 75 | H13: =105+30 -> 135 | I13: 15 | J13: =G13+Calcul!$C$10*I13 -> 75 | K13: =H13+Calcul!$C$10*I13 -> 135 | L13: =Calcul!$C$5*0.4 -> 0
B14: F3 | C14: F3 - 1 SDB + 1 WC indépendant | D14: 46.3 | E14: 11.8 | F14: =D14+Calcul!$C$10*I14 -> 46.3 | G14: =45+30+15 -> 90 | H14: =105+30+15 -> 150 | I14: 15 | J14: =G14+Calcul!$C$10*I14 -> 90 | K14: =H14+Calcul!$C$10*I14 -> 150 | L14: =Calcul!$C$5*0.4 -> 0
B15: F4 | C15: F4 - 1 SDB avec WC | D15: 60.1 | E15: 11.8 | F15: =D15+Calcul!$C$10*I15 -> 60.1 | G15: =45+30 -> 75 | H15: =120+30 -> 150 | I15: 15 | J15: =G15+Calcul!$C$10*I15 -> 75 | K15: =H15+Calcul!$C$10*I15 -> 150 | L15: =Calcul!$C$5*0.4 -> 0
B16: F4 | C16: F4 - 1 SDB + 1 WC indépendant | D16: 52.7 | E16: 11.8 | F16: =D16+Calcul!$C$10*I16 -> 52.7 | G16: =45+30+30 -> 105 | H16: =120+30+30 -> 180 | I16: 15 | J16: =G16+Calcul!$C$10*I16 -> 105 | K16: =H16+Calcul!$C$10*I16 -> 180 | L16: =Calcul!$C$5*0.4 -> 0
B17: F5 | C17: F5 - 1 SDB avec WC | D17: 62.2 | E17: 11.8 | F17: =D17+Calcul!$C$10*I17 -> 62.2 | G17: =45+30 -> 75 | H17: =135+30 -> 165 | I17: 15 | J17: =G17+Calcul!$C$10*I17 -> 75 | K17: =H17+Calcul!$C$10*I17 -> 165 | L17: =Calcul!$C$5*0.4 -> 0
B18: F5 | C18: F5 - 1 SDB + 1 WC indépendant | D18: 61.6 | E18: 11.8 | F18: =D18+Calcul!$C$10*I18 -> 61.6 | G18: =45+30+30 -> 105 | H18: =135+30+30 -> 195 | I18: 15 | J18: =G18+Calcul!$C$10*I18 -> 105 | K18: =H18+Calcul!$C$10*I18 -> 195 | L18: =Calcul!$C$5*0.4 -> 0
B19: F6 | C19: F6 - 1SDB avec WC + 1 WC | D19: 79.8 | E19: 11.8 | F19: =D19+Calcul!$C$10*I19 -> 79.8 | G19: =45+30+30 -> 105 | H19: =135+30+30 -> 195 | I19: 15 | J19: =G19+Calcul!$C$10*I19 -> 105 | K19: =H19+Calcul!$C$10*I19 -> 195 | L19: =Calcul!$C$5*0.4 -> 0
B20: F6 | C20: F6 - 1SDB avec WC + 1SDB | D20: 78.3 | E20: 11.8 | F20: =D20+Calcul!$C$10*I20 -> 78.3 | G20: =45+30+30 -> 105 | H20: =135+30+30 -> 195 | I20: 15 | J20: =G20+Calcul!$C$10*I20 -> 105 | K20: =H20+Calcul!$C$10*I20 -> 195 | L20: =Calcul!$C$5*0.4 -> 0
B21: F6 | C21: F6 - 2 SDB + 1 WC | D21: 77.7 | E21: 11.8 | F21: =D21+Calcul!$C$10*I21 -> 77.7 | G21: =45+30+30+30 -> 135 | H21: =135+30+30+30 -> 225 | I21: 15 | J21: =G21+Calcul!$C$10*I21 -> 135 | K21: =H21+Calcul!$C$10*I21 -> 225 | L21: =Calcul!$C$5*0.4 -> 0
B22: F7 | C22: F7 - 2 SDB + 1 WC | D22: 80.4 | E22: 11.8 | F22: =D22+Calcul!$C$10*I22 -> 80.4 | G22: =45+30+30+30 -> 135 | H22: =135+30+30+30 -> 225 | I22: 15 | J22: =G22+Calcul!$C$10*I22 -> 135 | K22: =H22+Calcul!$C$10*I22 -> 225 | L22: =Calcul!$C$5*0.4 -> 0
C23: Saisie manuelle des débits de ventilation
D24: hygro | E24: auto | F24: double flux | G24: naturelle | I24: calcul Q4 | L24: volume = | M24: =40*2.5 -> 100 | N24: nombre appart | O24: =Saisies!E10 -> 0
C25: débit hygro mini | D25: =(VLOOKUP(Calcul!C9,Ventilation!C6:K22,4,)*O24)+I27 ->  | E25: =(VLOOKUP(Calcul!C9,Ventilation!C5:K22,8,)*O24)+I27 ->  | F25: =0.8*Calcul!C5+I27 ->  | G25: =G26 ->  | I25: =IF(Chauffage!H20=0,IF(Saisies!$H$92<>0,Saisies!$H$92,INDEX('surface auto'!C21:C24,'surface auto'!A21,1)),1) -> 3 | M25: =I27+D25 -> 
C26: débit hygro maxi | D26: =(VLOOKUP(Calcul!C9,Ventilation!C5:K22,4,)*O24)+I27 ->  | E26: =(VLOOKUP(Calcul!C9,Ventilation!C5:K22,9,)*O24)+I27 ->  | F26: =0.8*Calcul!C5+Ventilation!I27 ->  | G26: =(VLOOKUP(Calcul!C9,Ventilation!C6:L22,10,)*O24)+I27 ->  | I26: =IF('surface auto'!AA18=0,Calcul!C14-'surface auto'!AK16,Calcul!C14-'surface auto'!AC13) ->  | J26: at bat sans plancher
I27: =I26*I25/1.6 ->  | J27: m3/h
C29: heures pointe | F29: W thc | G29: kwh/an
C30: double flux | D30: 1 | E30: 8760 | F30: 60 | G30: =(F30/1000)*24*365 -> 525.6
C31: simple flux hygro | D31: 0 | E31: 8760 | F31: 20 | G31: =(F31/1000)*24*365 -> 175.2
C32: simple flux auto | D32: 0 | E32: 1000 | F32: 35 | G32: =(F32/1000)*24*365 -> 306.6
C33: naturelle | D33: 0 | E33: 4300 | F33: 0
H34: débit pointe | I34: débit base
C35: vmc double flux avec échangeur | D35: 0 | E35: 8760 | F35: =IF($L$38<>0,$L$38,60) -> 60 | G35: =(E35*F35/1000)*Saisies!$E$10 -> 0 | H35: =IF(AND($L$39<>"",Saisies!$E$12="Saisie manuelle des débits de ventilation"),$L$39,F26) ->  | I35: =IF(AND($M$39<>"",Saisies!$E$12="Saisie manuelle des débits de ventilation"),$M$39,F25) -> 
C36: vmc double flux sans échangeur | D36: 0 | E36: 8760 | F36: =IF($L$38<>0,$L$38,35) -> 35 | G36: =(E36*F36/1000)*Saisies!$E$10 -> 0 | H36: =IF(AND($L$39<>"",Saisies!$E$12="Saisie manuelle des débits de ventilation"),$L$39,F26) ->  | I36: =IF(AND($M$39<>"",Saisies!$E$12="Saisie manuelle des débits de ventilation"),$M$39,F25) ->  | L36: POINTE | M36: BASE
C37: Extracteur mécanique sur conduit existant | D37: 0 | E37: 8760 | F37: =IF($L$38<>0,$L$38,40) -> 40 | G37: =(E37*F37/1000)*Saisies!$E$10 -> 0 | H37: =IF(AND($L$39<>"",Saisies!$E$12="Saisie manuelle des débits de ventilation"),$L$39,G26) ->  | I37: =IF(AND($M$39<>"",Saisies!$E$12="Saisie manuelle des débits de ventilation"),$M$39,G25) ->  | K37: forcer débit ventilation | L37: =Saisies!H95 -> 0 | M37: =Saisies!G95 -> 0
C38: vmc hygro A | D38: 0 | E38: 8760 | F38: =IF($L$38<>0,$L$38,20) -> 20 | G38: =(E38*F38/1000)*Saisies!$E$10 -> 0 | H38: =IF(AND($L$39<>"",Saisies!$E$12="Saisie manuelle des débits de ventilation"),$L$39,D26) ->  | I38: =IF(AND($M$39<>"",Saisies!$E$12="Saisie manuelle des débits de ventilation"),$M$39,D25) ->  | K38: wthc | L38: =Saisies!H96 -> 0 | M38: =+L38 -> 0
C39: vmc hygro B | D39: 0 | E39: 8760 | F39: =IF($L$38<>0,$L$38,20) -> 20 | G39: =(E39*F39/1000)*Saisies!$E$10 -> 0 | H39: =IF(AND($L$39<>"",Saisies!$E$12="Saisie manuelle des débits de ventilation"),$L$39,D26*1.2) ->  | I39: =IF(AND($M$39<>"",Saisies!$E$12="Saisie manuelle des débits de ventilation"),$M$39,D25*1.2) ->  | K39: tot | L39: =L37+I27 ->  | M39: =M37+I27 -> 
C40: vmc hygro gaz | D40: 0 | E40: 8760 | F40: =IF($L$38<>0,$L$38,20) -> 20 | G40: =(E40*F40/1000)*Saisies!$E$10 -> 0 | H40: =IF(AND($L$39<>"",Saisies!$E$12="Saisie manuelle des débits de ventilation"),$L$39,D26*1.1) ->  | I40: =IF(AND($M$39<>"",Saisies!$E$12="Saisie manuelle des débits de ventilation"),$M$39,D25*1.1) -> 
C41: vmc autoréglable avant 1982 | D41: 0 | E41: 8760 | F41: =IF($L$38<>0,$L$38,35) -> 35 | G41: =(E41*F41/1000)*Saisies!$E$10 -> 0 | H41: =IF(AND($L$39<>"",Saisies!$E$12="Saisie manuelle des débits de ventilation"),$L$39,E26) ->  | I41: =IF(AND($M$39<>"",Saisies!$E$12="Saisie manuelle des débits de ventilation"),$M$39,E25) -> 
C42: vmc autoréglable après 1982 | D42: 0 | E42: 8760 | F42: =IF($L$38<>0,$L$38,35) -> 35 | G42: =(E42*F42/1000)*Saisies!$E$10 -> 0 | H42: =IF(AND($L$39<>"",Saisies!$E$12="Saisie manuelle des débits de ventilation"),$L$39,E26/1.2) ->  | I42: =IF(AND($M$39<>"",Saisies!$E$12="Saisie manuelle des débits de ventilation"),$M$39,E25/1.2) -> 
C43: ventilation naturelle tirage thermique | D43: 0 | E43: 4300 | F43: 0 | G43: 0 | H43: =IF(AND($L$39<>"",Saisies!$E$12="Saisie manuelle des débits de ventilation"),$L$39,G26) ->  | I43: =IF(AND($M$39<>"",Saisies!$E$12="Saisie manuelle des débits de ventilation"),$M$39,G25) -> 
C44: ventilation par entrées d'air hautes et basses | D44: 0 | E44: 4300 | F44: 0 | G44: 0 | H44: =IF(AND($L$39<>"",Saisies!$E$12="Saisie manuelle des débits de ventilation"),$L$39,G26) ->  | I44: =IF(AND($M$39<>"",Saisies!$E$12="Saisie manuelle des débits de ventilation"),$M$39,G25) -> 
C45: Ventilation par ouverture des fenêtres | D45: 0 | E45: 4300 | F45: 0 | G45: 0 | H45: =IF(AND($L$39<>"",Saisies!$E$12="Saisie manuelle des débits de ventilation"),$L$39,((G26-I27)/2)+I27) ->  | I45: =H45 -> 
C46: ventilation hybride | D46: 0 | E46: 4300 | F46: =IF($L$38<>0,$L$38,15) -> 15 | G46: =(E46*F46/1000)*Saisies!$E$10 -> 0 | H46: =IF(AND($L$39<>"",Saisies!$E$12="Saisie manuelle des débits de ventilation"),$L$39,E26*1.2) ->  | I46: =IF(AND($M$39<>"",Saisies!$E$12="Saisie manuelle des débits de ventilation"),$M$39,E25*1.2) -> 
C47: ="" -> 
C49: Saisie simplifiée
C50: VMC double flux sans échangeur | D50: 0 | E50: 1000 | F50: 35 | G50: 307 | H50: =F26 ->  | I50: =F26 -> 
C51: Extracteur mécanique sur conduit existant | D51: 0 | E51: 1000 | F51: 35 | G51: 307 | H51: =F25 ->  | I51: =F25 -> 
C52: VMC Hygroréglable | D52: 0 | E52: 8760 | F52: 20 | G52: 175 | H52: =D26 ->  | I52: =D25 -> 
C53: VMC Autoréglable | D53: 0 | E53: 1000 | F53: 35 | G53: 307 | H53: =E26 ->  | I53: =E25 -> 
C54: Ventilation naturelle | D54: 0 | E54: 4300 | F54: 0 | G54: 0 | H54: =G26 ->  | I54: =G25 -> 

Sheet ECS (hidden)
B1: Consommation annuelle d'eau chaude sanitaire
B3: - encodez les données relatives à votre situation dans les cases bleues.
B4: - les résultats sont repris dans les cases jaunes.
A6: 1. | B6: Evaluation des besoins d'eau à 60°C en m³/an
A8: 1.1. | B8: Par ratio de bâtiment | D8: (sur base du fichier de données en Eau chaude sanitaire)
B10: Etablissement | C10: Caractéristiques | D10: Besoins en litres à 60°C | F10: Valeur | G10: Nombre d'unités | H10: Nombre de jours | I10: Total m³ à 60°C/an
B11: Hotel | C11: - 3 étoiles en montagne (sports d'hiver) | D11: par chambre et par jour | E11: 170 | F11: 170 | G11: 0 | H11: 0 | I11: =+G11*F11*H11/1000 -> 0 | J11: m³/an
C12: - 3 étoiles tous lieux | D12: par chambre et par jour | E12: 130 à 140 | F12: 135 | G12: 0 | H12: 0 | I12: =+G12*F12*H12/1000 -> 0 | J12: m³/an
C13: - hôtel de vacances à la semaine avec bain | D13: par chambre et par jour | E13: 100 | F13: 100 | G13: 0 | H13: 0 | I13: 0 | J13: m³/an
C14: - 1 étoile avec douche (50%) et bain (50%) | D14: par chambre et par jour | E14: 75 | F14: 75 | G14: 0 | H14: 0 | I14: 0 | J14: m³/an
C15: - lingerie | D15: par kg de linge sec | E15: 4 à 5 | F15: 4.5 | G15: 0 | H15: 0 | I15: 0 | J15: m³/an
B16: Restaurant | C16: 150 à 50 repas par jour | D16: par repas | E16: 12 à 20 | F16: 16 | G16: 0 | H16: 0 | I16: 0 | J16: m³/an
B17: Bureaux | C17: En absence de douches, restaurant, … | D17: par personne et par jour | E17: 2 à 6 | F17: 0.9 | G17: =IF('BDD typo'!A1=9,Saisies!E21,0) ->  | H17: =+Calcul!C27 -> 330 | J17: m³/an
B18: Grande cuisine | C18: cuisine à liaison froide | D18: par repas | E18: 2 à 3 | F18: 2.5 | G18: 0 | H18: 0 | I18: 0 | J18: m³/an
B19: Ecole | C19: - chambre d'internat | D19: par lit et par jour | E19: 30 à 40 | F19: 35 | G19: 0 | H19: 0 | I19: 0 | J19: m³/an
C20: - Repas, hors lave-v. | D20: par repas | E20: 3 à 5 | F20: 4 | G20: 0 | H20: 0 | I20: 0 | J20: m³/an
C21: - Repas, avec lave-v. | D21: par repas | E21: 9 à 10 | F21: 9.5 | G21: 0 | H21: 0 | I21: 0 | J21: m³/an
B22: Maison de retraite | C22: - chambre | D22: par lit et par jour | E22: 40 | F22: 40 | G22: 0 | H22: 0 | I22: 0 | J22: m³/an
C23: - Repas, hors lave-v. | D23: par repas | E23: 3 à 5 | F23: 4 | G23: 0 | H23: 0 | I23: 0 | J23: m³/an
C24: - Repas, avec lave-v. | D24: par repas | E24: 9 à 10 | F24: 9.5 | G24: 0 | H24: 0 | I24: 0 | J24: m³/an
B25: Maternité | C25: - chambre | D25: par lit et par jour | E25: 60 | F25: 60 | G25: 0 | H25: 0 | I25: 0 | J25: m³/an
C26: - Cuisine, avec lave-v. | D26: par repas | E26: 10 à 15 | F26: 12.5 | G26: 0 | H26: 0 | I26: 0 | J26: m³/an
B27: Hôpitaux | C27: - chambre | D27: par lit et par jour | E27: 50 à 60 | F27: 55 | G27: 0 | H27: 0 | I27: 0 | J27: m³/an
C28: - Cuisine, avec lave-v. (de 1 700 à 300 repas par jour) | D28: par repas | E28: 8 à 12 | F28: 10 | G28: 0 | H28: 0 | I28: 0 | J28: m³/an
B29: Foyer pour handicapés | C29: - chambre | D29: par lit et par jour | E29: 100 | F29: 100 | G29: 0 | H29: 0 | I29: 0 | J29: m³/an
C30: - Cuisine, avec lave-v. | D30: par repas | E30: 9 à 10 | F30: 9.5 | G30: 0 | H30: 0 | I30: 0 | J30: m³/an
B31: Centre d'Aide par le Travail | C31: - chambre | D31: par lit et par jour | E31: 60 | F31: 60 | G31: 0 | H31: 0 | I31: 0 | J31: m³/an
C32: - Cuisine, avec lave-v. | D32: par repas | E32: 9 à 10 | F32: 9.5 | G32: 0 | H32: 0 | I32: 0 | J32: m³/an
B33: Camping | C33: - 3 et 4 étoiles | D33: par campeur et par jour | E33: 12 | F33: 12 | G33: 0 | H33: 0 | I33: 0 | J33: m³/an
D34: par emplacement et par jour | E34: 45 | F34: 45 | G34: 0 | H34: 0 | I34: 0 | J34: m³/an
B35: Villa familiale | C35: standard simple | D35: par personne et par jour | E35: 35 | F35: =Calcul!C24 -> 35 | G35: =IF('BDD typo'!A1<9,Saisies!E21,0) ->  | H35: =+Calcul!C27 -> 330 | I35: =IF(Saisies!E10>1,0,+G35*F35*H35/1000) ->  | J35: m³/an
B36: Appartement | C36: standard moyen | D36: par personne et par jour | E36: 40 | F36: 35 | G36: =+Saisies!E10*Saisies!E21 -> 0 | H36: =+H35 -> 330 | I36: =IF(Saisies!E10>1,G36*F36*H36/1000,0) -> 0 | J36: m³/an
B37: Immeuble d'appartements en location | D37: par personne et par jour | E37: 35 | F37: 35 | G37: 0 | H37: 0 | I37: 0 | J37: m³/an
B38: (mais des valeurs moitié de celles-ci ont été mesurées dans les immeubles HLM en France). | H38: TOTAL : | I38: =SUM(I11:I37) ->  | J38: m³/an à 60°C
A41: 1.2. | B41: Par ratio de point de puisage | D41: (sur base du fichier de données en Eau chaude sanitaire)
D43: Litres par utilisateur à 45°C | E43: Litres par util. à 60°c | F43: Valeur choisie | G43: Nombre d'unités | H43: Nombre d'util. par an | I43: Total m³ à 60°C/an
B44: Industrie | C44: Lavabo individuel | D44: 22 | E44: 15 | F44: 15 | G44: 0 | H44: 0 | I44: =+G44*F44*H44/1000 -> 0 | J44: m³/an
C45: Lavabo-auge collectif
C46: - à robinet | D46: 11 à 22 | E46: 8 à 15 | F46: 11.5 | G46: 0 | H46: 0 | I46: =+G46*F46*H46/1000 -> 0 | J46: m³/an
C47: - à pissette | D47: 6 à 10 | E47: 5 à 8 | F47: 6.5 | G47: 0 | H47: 0 | I47: =+G47*F47*H47/1000 -> 0 | J47: m³/an
C48: lavabo collectif circulaire
C49: - à 6 places | D49: 43 | E49: 30 | F49: 30 | G49: 0 | H49: 0 | I49: =+G49*F49*H49/1000 -> 0 | J49: m³/an
C50: - à 10 places | D50: 54 | E50: 38 | F50: 38 | G50: 0 | H50: 0 | I50: 0 | J50: m³/an
C51: Douche commune | D51: 36 | E51: 25 | F51: 25 | G51: 0 | H51: 0 | I51: 0 | J51: m³/an
C52: Douche en cabine, travail peu salissant | D52: 50 | E52: 35 | F52: 35 | G52: 0 | H52: 0 | I52: 0 | J52: m³/an
C53: Douche en cabine, travail très salissant | D53: 60 | E53: 42 | F53: 42 | G53: 0 | H53: 0 | I53: 0 | J53: m³/an
C54: Baignoire | D54: 180 | E54: 125 | F54: 125 | G54: 0 | H54: 0 | I54: 0 | J54: m³/an
C55: Valeur moyenne y compris les besoins de cuisine | D55: 50 l par jour et par personne | F55: 50 | G55: 0 | H55: 0 | I55: 0 | J55: m³/an
B56: Ecoles | C56: Douches en milieu scolaire | D56: 35 | E56: 25 | F56: 25 | G56: 0 | H56: 0 | I56: =+G56*F56*H56/1000 -> 0 | J56: m³/an
B57: Bât. Sportif | C57: Douches en centre sportif | D57: 60 | E57: 42 | F57: 42 | G57: 0 | H57: 0 | I57: =+G57*F57*H57/1000 -> 0 | J57: m³/an
B58: Hébergement | C58: Baignoire normale | D58: 150 | E58: 105 | F58: 105 | G58: 0 | H58: 0 | I58: =+G58*F58*H58/1000 -> 0 | J58: m³/an
C59: Grande baignoire | D59: 180 | E59: 125 | F59: 125 | G59: 0 | H59: 0 | I59: =+G59*F59*H59/1000 -> 0 | J59: m³/an
C60: Baignoire d'hydrothérapie | D60: 300 | E60: 210 | F60: 210 | G60: 0 | H60: 0 | I60: =+G60*F60*H60/1000 -> 0 | J60: m³/an
H61: TOTAL : | I61: =SUM(I44:I60) -> 0 | J61: m³/an à 60°C
A63: 1.3. | B63: Par évaluation directe à chaque point de puisage
B65: Poste | C65: Consommation en litres/semaine | D65: Nombre de semaines | E65: Nombre de postes | F65: T° de puisage | H65: Quantité tot. en m³/an | I65: Quantité équiv. à 60°C en m³/an
B66: evier | H66: =+C66*D66*E66/1000 -> 0 | I66: =+H66*(F66-10)/(60-10) -> 0 | J66: m³/an
B67: lavabo | H67: 0 | I67: 0 | J67: m³/an
B68: douche | H68: 0 | I68: 0 | J68: m³/an
B69: bain | H69: 0 | I69: 0 | J69: m³/an
B70: autre… | H70: 0 | I70: 0 | J70: m³/an
B71: autre… | H71: 0 | I71: 0 | J71: m³/an
H72: TOTAL : | I72: =SUM(I66:I71) -> 0 | J72: m³/an à 60°C
A77: 2. | B77: Evaluation du besoin annuel net de chaleur pour l'eau chaude sanitaire
D78: température stockage : | I78: =Calcul!C26 -> 55 | J78: °C
D79: Quantité d'eau chaude retenue sur base de 1. : | I79: =IF(I38>0,I38,IF(I61>0,I61,I72)) ->  | J79: m³/an
D80: Quantité d'énergie correspondante : | I80: =+I79*1.163*(I78-N115) ->  | J80: kWh/an
A84: 3. | B84: Evaluation de la consommation annuelle correspondante
A87: 3.2. | B87: sur base des différents pertes des équipements et tuyauteries
B89: Pertes du ballon accumulateur (voir prog. calcul "isolation ballon") | H89: --> | I89: =IF(Chauffage!H20=1,IF(Chauffage!A164=6,0,I130),I130)*Saisies!E10 -> 0 | J89: kWh/an | K89: =L130*Saisies!E10 -> 
B90: Pertes de la tuyauterie de circulation (voir prog. calcul "isolation tuyauteries") | H90: --> | I90: =D128 ->  | J90: kWh/an | K90: =I90*M129 -> 
B91: Pertes d'eau chaude bloquée dans les tuyaux après usage (voir calcul "temps d'attente") | G91: 1 | H91: --> | I91: =IF(G91=0,0,B130) -> 0 | J91: kWh/an | K91: =I91*M129 -> 
B92: Pertes par veilleuse (consommation de 700 à 1200 kWh/an, suivant la flamme) | H92: --> | I92: 0 | J92: kWh/an
B94: Demande nette en eau chaude + pertes diverses | I94: =SUM(I89:I92) ->  | J94: kWh/an | K94: =SUM(K89:K91) -> 
L101: 1
L102: 2 | M102: lié au chauffage sans stockage
L103: 3 | M103: lié au chauffage avec stockage
L104: 4 | M104: chauffe bain gaz
D105: Rendement de production sélectionné : | I105: ='surface auto'!I10/100 ->  | L105: 5 | M105: ballon électrique
D106: Consommation annuelle correspondante : | I106: =(I94+I80)/I105 ->  | J106: kWh/an | L106: 6 | M106: Solaire avec appoint élec
D107: Rendement annuel global correspondant : | I107: =I80/I106 ->  | L107: 7 | M107: Chauffe eau thermodynamique
A111: Données climatiques
A112: Température de l'arrivée d'eau froide | B112: 1 | C112: 2 | D112: 3 | E112: 4 | F112: 5 | G112: 6 | H112: 7 | I112: 8 | J112: 9 | K112: 10 | L112: 11 | M112: 12 | N112: moy
A113: H1a | B113: 5.830967742 | C113: 5.865142857 | D113: 7.190903226 | E113: 9.347933333 | F113: 11.8663871 | G113: 13.9596 | H113: 15.16529032 | I113: 15.10193548 | J113: 13.81793333 | K113: 11.63219355 | L113: 9.1526 | M113: 7.030387097 | N113: =AVERAGE(B113:M113) -> 10.49677284
A114: H1b | B114: 5.830967742 | C114: 5.865142857 | D114: 7.190903226 | E114: 9.347933333 | F114: 11.8663871 | G114: 13.9596 | H114: 15.16529032 | I114: 15.10193548 | J114: 13.81793333 | K114: 11.63219355 | L114: 9.1526 | M114: 7.030387097 | N114: =AVERAGE(B114:M114) -> 10.49677284
A115: H1c | B115: 5.830967742 | C115: 5.865142857 | D115: 7.190903226 | E115: 9.347933333 | F115: 11.8663871 | G115: 13.9596 | H115: 15.16529032 | I115: 15.10193548 | J115: 13.81793333 | K115: 11.63219355 | L115: 9.1526 | M115: 7.030387097 | N115: =AVERAGE(B115:M115) -> 10.49677284
A116: H2a | B116: 7.330967742 | C116: 7.365142857 | D116: 8.690903226 | E116: 10.84793333 | F116: 13.3663871 | G116: 15.4596 | H116: 16.66529032 | I116: 16.60193548 | J116: 15.31793333 | K116: 13.13219355 | L116: 10.6526 | M116: 8.530387097 | N116: 11.99677284
A117: H2b | B117: 7.330967742 | C117: 7.365142857 | D117: 8.690903226 | E117: 10.84793333 | F117: 13.3663871 | G117: 15.4596 | H117: 16.66529032 | I117: 16.60193548 | J117: 15.31793333 | K117: 13.13219355 | L117: 10.6526 | M117: 8.530387097 | N117: 11.99677284
A118: H2c | B118: 7.330967742 | C118: 7.365142857 | D118: 8.690903226 | E118: 10.84793333 | F118: 13.3663871 | G118: 15.4596 | H118: 16.66529032 | I118: 16.60193548 | J118: 15.31793333 | K118: 13.13219355 | L118: 10.6526 | M118: 8.530387097 | N118: 11.99677284
A119: H2d | B119: 7.330967742 | C119: 7.365142857 | D119: 8.690903226 | E119: 10.84793333 | F119: 13.3663871 | G119: 15.4596 | H119: 16.66529032 | I119: 16.60193548 | J119: 15.31793333 | K119: 13.13219355 | L119: 10.6526 | M119: 8.530387097 | N119: 11.99677284
A120: H3 | B120: 9.830967742 | C120: 9.865142857 | D120: 11.19090323 | E120: 13.34793333 | F120: 15.8663871 | G120: 17.9596 | H120: 19.16529032 | I120: 19.10193548 | J120: 17.81793333 | K120: 15.63219355 | L120: 13.1526 | M120: 11.0303871 | N120: 14.49677284
A124: eau perdue dans distrib | D124: pertes tubes instantané (10l/min) | F124: pertes ballon
A125: linéaire tube (0,2 * shab) | B125: =0.2*Saisies!E11 -> 0 | C125: m de tube | D125: 0.53 | E125: kl | F125: =IF('surface auto'!I8="Chauffe bain gaz",0,Calcul!N62) ->  | G125: litres | H125: isolé? | I125: oui
A126: diametre | B126: 1.2 | C126: cm | D126: =D125*(I78-18) -> 19.61 | E126: w/m | F126: =(PI()*1.5*(J132+J133))+(2*PI()*(J132^2)/4) -> 0.235619449 | G126: m² | H126: Lambda Isolant | I126: 0.033 | J126: W/m.K
A127: contenance (diam 16) | B127: =(+(3.14*(B126/2)*(B126/2))*(B125*100))/1000 -> 0 | C127: l | D127: =((I38*1000)/10)/60 ->  | E127: h/an | F127: =I78 -> 55 | G127: °C | H127: Epaisseur | I127: 5 | J127: cm
A128: = | B128: =B127*0.001 -> 0 | C128: M3 | D128: =D127*D126*B125/1000 ->  | E128: kwh an | F128: =IF(Calcul!C28="non",16,Calcul!N65) -> 16 | G128: °C | H128: Coefficient k | I128: =IF(I125="non",10,1/(I127/(I126*100)+0.1)) -> 0.6191369606 | J128: W/m².K
A129: occupation | B129: =Calcul!C27 -> 330 | C129: jours par an | F129: 8760 | G129: heures | H129: Puissance | I129: =IFERROR(I128*F126*(F127-F128),0) -> 5.689347671 | J129: W | L129: =Chauffage!R18*24 ->  | M129: =L129/F129 -> 
A130: conso eau perdue | B130: =(B128*1.163*(F127-20))*(((3*Calcul!C23)*B129)) -> 0 | C130: kwh/an | H130: Déperdition annuelle | I130: =F129*I129/1000 -> 49.8386856 | J130: kWh/an | K130: apport recup | L130: =L129*I129/1000 -> 
B132: PUISSANCE BALLON | H132: 50 | I132: 0.4 | J132: =IFERROR((VLOOKUP(F125,H132:I152,2,FALSE)),0) -> 0
B133: volume ballon | C133: =+F125 ->  | H133: 100 | I133: =I132-0.014 -> 0.386 | J133: =I127/100 -> 0.05
B134: Puissance pour montée en T° | C134: =(+C133*4.18*(I78-N115))/3600 ->  | H134: 150 | I134: =I133-0.014 -> 0.372
B135: temps de montée en température en h | C135: 4 | H135: 200 | I135: =I134-0.014 -> 0.358
B136: Puissance ballon | C136: =C134/C135 ->  | H136: 250 | I136: 0.344
H137: 300 | I137: 0.33
H138: 350 | I138: 0.316
H139: 400 | I139: 0.302
H140: 450 | I140: 0.288
H141: 500 | I141: 0.274
H142: 550 | I142: 0.26
H143: 600 | I143: 0.246
H144: 650 | I144: 0.232
H145: 700 | I145: 0.218
H146: 750 | I146: 0.204
H147: 800 | I147: 0.19
H148: 850 | I148: 0.176
H149: 900 | I149: 0.162
H150: 950 | I150: 0.148
H151: 1000 | I151: 0.134

Sheet RG (hidden)
A1: Villes | B1: Latitude | C1: R. global | D1: janvier | E1: février | F1: mars | G1: avril | H1: mai | I1: juin | J1: juillet | K1: août | L1: septembre | M1: octobre | N1: novembre | O1: décembre | P1: Coeff. piscine
A2: Agen | B2: 44.2 | C2: =SUM(D2:O2) -> 1478.5 | D2: 68.3 | E2: 83 | F2: 138 | G2: 143 | H2: 157 | I2: 162 | J2: 180 | K2: 158 | L2: 144 | M2: 126 | N2: 70.2 | O2: 49 | P2: 0.15
A3: Ajaccio | B3: 41.9 | C3: 1763.3 | D3: 86 | E3: 95.2 | F3: 144 | G3: 163 | H3: 185 | I3: 187 | J3: 206 | K3: 201 | L3: 175 | M3: 146 | N3: 97 | O3: 78.1 | P3: 0.15
A4: Ambérieu | B4: 46 | C4: 1278.5 | D4: 47.6 | E4: 67.3 | F4: 105 | G4: 125 | H4: 144 | I4: 148 | J4: 169 | K4: 153 | L4: 130 | M4: 99.8 | N4: 54.8 | O4: 35 | P4: 0.15
A5: Angers | B5: 47.5 | C5: 1337.1 | D5: 53.3 | E5: 62.5 | F5: 126 | G5: 146 | H5: 161 | I5: 154 | J5: 168 | K5: 143 | L5: 112 | M5: 105 | N5: 63.3 | O5: 43 | P5: 0.1
A6: Angoulème | B6: 45.6 | C6: 1452.6 | D6: 68.5 | E6: 82.1 | F6: 120 | G6: 144 | H6: 165 | I6: 166 | J6: 167 | K6: 155 | L6: 144 | M6: 120 | N6: 72.5 | O6: 48.5 | P6: 0.15
A7: Annecy | B7: 46.2 | C7: 1319 | D7: 44.6 | E7: 74.2 | F7: 115 | G7: 127 | H7: 146 | I7: 149 | J7: 171 | K7: 159 | L7: 139 | M7: 101 | N7: 50.2 | O7: 43 | P7: 0.1
A8: Bastia | B8: 42.7 | C8: 1757 | D8: 96 | E8: 106 | F8: 144 | G8: 159 | H8: 168 | I8: 179 | J8: 198 | K8: 181 | L8: 167 | M8: 159 | N8: 111 | O8: 89 | P8: 0.15
A9: Besançon | B9: 47.3 | C9: 1353.2 | D9: 44.4 | E9: 70.4 | F9: 112 | G9: 136 | H9: 159 | I9: 159 | J9: 170 | K9: 157 | L9: 135 | M9: 109 | N9: 57.4 | O9: 44 | P9: 0.1
A10: Biarritz | B10: 43.5 | C10: 1418.3 | D10: 62 | E10: 84.9 | F10: 125 | G10: 137 | H10: 156 | I10: 155 | J10: 161 | K10: 155 | L10: 138 | M10: 118 | N10: 71.9 | O10: 54.5 | P10: 0.15
A11: Bordeaux | B11: 44.8 | C11: 1461.1 | D11: 59.4 | E11: 85.7 | F11: 126 | G11: 147 | H11: 161 | I11: 164 | J11: 173 | K11: 167 | L11: 141 | M11: 118 | N11: 66.6 | O11: 52.4 | P11: 0.15
A12: Bourges | B12: 47.1 | C12: 1313.1 | D12: 45.3 | E12: 69.3 | F12: 112 | G12: 137 | H12: 152 | I12: 153 | J12: 164 | K12: 151 | L12: 131 | M12: 105 | N12: 55.2 | O12: 38.3 | P12: 0.1
A13: Brest | B13: 48.4 | C13: 1247.7 | D13: 45.7 | E13: 70.9 | F13: 104 | G13: 128 | H13: 146 | I13: 148 | J13: 158 | K13: 138 | L13: 120 | M13: 94.1 | N13: 54.2 | O13: 40.8 | P13: 0.1
A14: Caen | B14: 49.2 | C14: 1316.6 | D14: 46.7 | E14: 64.8 | F14: 122 | G14: 134 | H14: 157 | I14: 158 | J14: 161 | K14: 151 | L14: 123 | M14: 102 | N14: 57.4 | O14: 39.7 | P14: 0.1
A15: Carcassonne | B15: 43.2 | C15: 1546.9 | D15: 83.1 | E15: 94.8 | F15: 139 | G15: 139.7 | H15: 166 | I15: 147 | J15: 171 | K15: 187 | L15: 160 | M15: 125 | N15: 70.6 | O15: 63.7 | P15: 0.15
A16: Cazaux | B16: 44.5 | C16: 1535.1 | D16: 75 | E16: 89 | F16: 147 | G16: 147 | H16: 164 | I16: 164 | J16: 178 | K16: 162 | L16: 147 | M16: 134 | N16: 73.4 | O16: 54.7 | P16: 0.15
A17: Chartres | B17: 48.4 | C17: 1229.9 | D17: 41.6 | E17: 65.2 | F17: 107 | G17: 130 | H17: 148 | I17: 152 | J17: 153 | K17: 131 | L17: 133 | M17: 86.9 | N17: 48.1 | O17: 34.1 | P17: 0.1
A18: Clermont-Fd | B18: 45.8 | C18: 1376.5 | D18: 55.2 | E18: 74.8 | F18: 117 | G18: 135 | H18: 153 | I18: 153 | J18: 168 | K18: 157 | L18: 138 | M18: 110 | N18: 66.2 | O18: 49.3 | P18: 0.15
A19: Cognac | B19: 45.7 | C19: 1403.1 | D19: 59.2 | E19: 63.6 | F19: 116 | G19: 141 | H19: 157 | I19: 159 | J19: 169 | K19: 173 | L19: 131 | M19: 118 | N19: 64.2 | O19: 52.1 | P19: 0.15
A20: Colmar | B20: 48 | C20: 1300.2 | D20: 48.8 | E20: 70.3 | F20: 109 | G20: 136 | H20: 148 | I20: 148 | J20: 161 | K20: 149 | L20: 136 | M20: 94.5 | N20: 59.2 | O20: 40.4 | P20: 0.1
A21: Dijon | B21: 47.3 | C21: 1292.9 | D21: 48.3 | E21: 71.9 | F21: 108 | G21: 135 | H21: 145 | I21: 149 | J21: 164 | K21: 148 | L21: 137 | M21: 98.7 | N21: 50.8 | O21: 37.2 | P21: 0.1
A22: Embrun | B22: 44.6 | C22: 1667.7 | D22: 86.1 | E22: 103 | F22: 145 | G22: 155 | H22: 172 | I22: 170 | J22: 188 | K22: 179 | L22: 165 | M22: 138 | N22: 89.5 | O22: 77.1 | P22: 0.15
A23: Gourdon | B23: 43.7 | C23: 1427.6 | D23: 57.2 | E23: 84 | F23: 122 | G23: 138 | H23: 158 | I23: 160 | J23: 173 | K23: 162 | L23: 139 | M23: 117 | N23: 63.4 | O23: 54 | P23: 0.15
A24: Grenoble | B24: 45.2 | C24: 1429.3 | D24: 59.8 | E24: 80.7 | F24: 122 | G24: 141 | H24: 165 | I24: 162 | J24: 177 | K24: 171 | L24: 143 | M24: 105 | N24: 59.2 | O24: 43.6 | P24: 0.15
A25: La Rochelle | B25: 46.2 | C25: 1542.4 | D25: 58.3 | E25: 88.9 | F25: 131 | G25: 156 | H25: 177 | I25: 177 | J25: 187 | K25: 177 | L25: 147 | M25: 121 | N25: 65.5 | O25: 56.7 | P25: 0.1
A26: Langres | B26: 47.8 | C26: 1321.3 | D26: 47.9 | E26: 68.4 | F26: 115 | G26: 132 | H26: 157 | I26: 155 | J26: 164 | K26: 152 | L26: 133 | M26: 106 | N26: 51.3 | O26: 39.7 | P26: 0.1
A27: Le Mans | B27: 48 | C27: 1361.9 | D27: 51.3 | E27: 68.2 | F27: 119 | G27: 143 | H27: 160 | I27: 161 | J27: 169 | K27: 157 | L27: 131 | M27: 104 | N27: 57.5 | O27: 40.9 | P27: 0.1
A28: Le Puy-en-Velay | B28: 45 | C28: 1428.7 | D28: 60.3 | E28: 78.1 | F28: 118 | G28: 138 | H28: 159 | I28: 158 | J28: 177 | K28: 165 | L28: 147 | M28: 113 | N28: 67.9 | O28: 47.4 | P28: 0.15
A29: Lille | B29: 50.6 | C29: 1194.4 | D29: 31.9 | E29: 71.9 | F29: 104 | G29: 128 | H29: 151 | I29: 146 | J29: 146 | K29: 139 | L29: 111 | M29: 89.2 | N29: 46.7 | O29: 29.7 | P29: 0.1
A30: Limoges | B30: 45.8 | C30: 1368.5 | D30: 53.2 | E30: 77.7 | F30: 113 | G30: 135 | H30: 155 | I30: 156 | J30: 165 | K30: 158 | L30: 136 | M30: 111 | N30: 64 | O30: 44.6 | P30: 0.15
A31: Lyon | B31: 45.8 | C31: 1421.3 | D31: 45.9 | E31: 75.3 | F31: 121 | G31: 145 | H31: 168 | I31: 166 | J31: 180 | K31: 168 | L31: 142 | M31: 105 | N31: 62.7 | O31: 42.4 | P31: 0.15
A32: Marseille | B32: 43.3 | C32: 1739.8 | D32: 82.8 | E32: 106 | F32: 146 | G32: 168 | H32: 184 | I32: 184 | J32: 202 | K32: 195 | L32: 167 | M32: 137 | N32: 95.3 | O32: 72.7 | P32: 0.15
A33: Metz | B33: 49 | C33: 1178.9 | D33: 36.3 | E33: 59.9 | F33: 100 | G33: 121 | H33: 147 | I33: 147 | J33: 151 | K33: 139 | L33: 119 | M33: 81 | N33: 47.7 | O33: 30 | P33: 0.1
A34: Millau | B34: 44.1 | C34: 1597.6 | D34: 72.5 | E34: 97.4 | F34: 136 | G34: 143 | H34: 159 | I34: 167 | J34: 196 | K34: 178 | L34: 157 | M34: 137 | N34: 83.7 | O34: 71 | P34: 0.15
A35: Mont de Marsan | B35: 43.9 | C35: 1426.8 | D35: 60 | E35: 86 | F35: 127 | G35: 140 | H35: 156 | I35: 154 | J35: 166 | K35: 158 | L35: 138 | M35: 119 | N35: 68.8 | O35: 54 | P35: 0.15
A36: Montélimar | B36: 44.5 | C36: 1685 | D36: 76.7 | E36: 96.3 | F36: 143 | G36: 166 | H36: 175 | I36: 182 | J36: 202 | K36: 186 | L36: 167 | M36: 139 | N36: 85.5 | O36: 66.5 | P36: 0.15
A37: Montpellier | B37: 43.6 | C37: 1704.6 | D37: 84.6 | E37: 106 | F37: 143 | G37: 165 | H37: 179 | I37: 180 | J37: 198 | K37: 188 | L37: 162 | M37: 131 | N37: 95 | O37: 73 | P37: 0.15
A38: Mulhouse | B38: 47.6 | C38: 1188.2 | D38: 46.6 | E38: 65.8 | F38: 94.7 | G38: 108 | H38: 134 | I38: 140 | J38: 159 | K38: 147 | L38: 119 | M38: 87.6 | N38: 47.6 | O38: 38.9 | P38: 0.1
A39: Nancy | B39: 48.7 | C39: 1246 | D39: 46 | E39: 67.3 | F39: 102 | G39: 130 | H39: 145 | I39: 149 | J39: 160 | K39: 148 | L39: 133 | M39: 86.5 | N39: 45.4 | O39: 33.8 | P39: 0.1
A40: Nantes | B40: 47.2 | C40: 1368.9 | D40: 53.8 | E40: 71.8 | F40: 115 | G40: 142 | H40: 161 | I40: 160 | J40: 167 | K40: 156 | L40: 131 | M40: 106 | N40: 61.5 | O40: 43.8 | P40: 0.1
A41: Nice | B41: 43.7 | C41: 1751.4 | D41: 88.2 | E41: 109 | F41: 147 | G41: 166 | H41: 179 | I41: 179 | J41: 202 | K41: 193 | L41: 168 | M41: 145 | N41: 95.7 | O41: 79.5 | P41: 0.15
A42: Nimes | B42: 43.8 | C42: 1748.4 | D42: 89.8 | E42: 107 | F42: 150 | G42: 166 | H42: 172 | I42: 184 | J42: 205 | K42: 189 | L42: 160 | M42: 146 | N42: 96.4 | O42: 83.2 | P42: 0.15
A43: Orléans | B43: 47.9 | C43: 1313 | D43: 42.6 | E43: 68.9 | F43: 114 | G43: 138 | H43: 158 | I43: 158 | J43: 163 | K43: 152 | L43: 128 | M43: 98.8 | N43: 52.2 | O43: 39.5 | P43: 0.1
A44: Paris | B44: 48.8 | C44: 1229.7 | D44: 34.8 | E44: 64.4 | F44: 107 | G44: 128 | H44: 149 | I44: 153 | J44: 155 | K44: 144 | L44: 121 | M44: 90.1 | N44: 48.3 | O44: 35.1 | P44: 0.1
A45: Perpignan | B45: 42.7 | C45: 1690 | D45: 92.1 | E45: 111 | F45: 148 | G45: 163 | H45: 172 | I45: 169 | J45: 187 | K45: 179 | L45: 156 | M45: 131 | N45: 98.9 | O45: 83 | P45: 0.15
A46: Reims | B46: 49.3 | C46: 1265.5 | D46: 43.8 | E46: 63 | F46: 107 | G46: 135 | H46: 156 | I46: 153 | J46: 157 | K46: 145 | L46: 124 | M46: 95 | N46: 50.3 | O46: 36.4 | P46: 0.1
A47: Rennes | B47: 48.1 | C47: 1351.6 | D47: 46.7 | E47: 69.4 | F47: 111 | G47: 139 | H47: 158 | I47: 158 | J47: 192 | K47: 152 | L47: 127 | M47: 100 | N47: 58.3 | O47: 40.2 | P47: 0.1
A48: Rouen | B48: 49.4 | C48: 1219.9 | D48: 33 | E48: 63.7 | F48: 106 | G48: 129 | H48: 151 | I48: 151 | J48: 153 | K48: 141 | L48: 120 | M48: 87.9 | N48: 49.7 | O48: 34.6 | P48: 0.1
A49: Saint Auban | B49: 44.4 | C49: 1753.2 | D49: 97.3 | E49: 121 | F49: 106 | G49: 172 | H49: 185 | I49: 183 | J49: 200 | K49: 194 | L49: 173 | M49: 141 | N49: 98.1 | O49: 82.8 | P49: 0.15
A50: Saint Quentin | B50: 49.8 | C50: 1214.1 | D50: 36.6 | E50: 57.6 | F50: 99.4 | G50: 128 | H50: 152 | I50: 152 | J50: 152 | K50: 140 | L50: 117 | M50: 96.9 | N50: 48.7 | O50: 33.9 | P50: 0.1
A51: Sarreguemines | B51: 49.1 | C51: 1149.3 | D51: 36.9 | E51: 65.8 | F51: 95 | G51: 113 | H51: 135 | I51: 139 | J51: 147 | K51: 137 | L51: 126 | M51: 80 | N51: 45.5 | O51: 29.1 | P51: 0.1
A52: Strasbourg | B52: 48.6 | C52: 1231.7 | D52: 35.2 | E52: 61.7 | F52: 106 | G52: 129 | H52: 149 | I52: 148 | J52: 157 | K52: 150 | L52: 124 | M52: 87.6 | N52: 46.6 | O52: 37.6 | P52: 0.1
A53: Toulon | B53: 43.1 | C53: 1855 | D53: 102 | E53: 111 | F53: 155 | G53: 176 | H53: 184 | I53: 188 | J53: 205 | K53: 193 | L53: 172 | M53: 158 | N53: 108 | O53: 103 | P53: 0.15
A54: Toulouse | B54: 43.6 | C54: 1741.6 | D54: 88.6 | E54: 105 | F54: 148 | G54: 168 | H54: 173 | I54: 184 | J54: 207 | K54: 188 | L54: 159 | M54: 141 | N54: 93.5 | O54: 86.5 | P54: 0.15
A55: Tours | B55: 47.4 | C55: 1307.2 | D55: 44.9 | E55: 72 | F55: 111 | G55: 136 | H55: 147 | I55: 154 | J55: 168 | K55: 148 | L55: 130 | M55: 98.5 | N55: 56.6 | O55: 41.2 | P55: 0.1
A56: Valenciennes | B56: 50.4 | C56: 1048.3 | D56: 33.1 | E56: 55.1 | F56: 83.2 | G56: 109 | H56: 132 | I56: 128 | J56: 132 | K56: 124 | L56: 101 | M56: 80.2 | N56: 41.3 | O56: 29.4 | P56: 0.1
A57: Vichy | B57: 46.1 | C57: 1296.2 | D57: 56.4 | E57: 69.7 | F57: 103 | G57: 125 | H57: 140 | I57: 150 | J57: 166 | K57: 150 | L57: 133 | M57: 103 | N57: 58.4 | O57: 41.7 | P57: 0.1

Sheet macro
L7: Ce classeur ne contient pas de virus ni de code malveillant,
L8: mais son utilisation nécéssite l'activation des macros
L9: Merci de valider les deux messages ci-dessous s'ils apparaissent en haut de cette fenêtre
